Workbook

Sheet Map
B2: US Migration Data by State (2010 - 2012) | BD2: =Model!C4 -> Migration in 2011 | BF2: n Influx | BG2: Gross State Product
J3: to | BD3: by State (Thousands) | BF3: u Outflow | BG3: ($ Billion) | BK3: HELP
AC5: Click a state to | AZ5: ="US Population " & RIGHT(Model!$C$4,4) -> US Population 2011 | BC5: 1 | BI5: 1 | BK5: Please go to the 'Help' worksheet for more information
AC6: highlight below | AS6: =OFFSET(Model!$AM$11,0,Model!$B$4,1,1) -> 307900319 | BC6: 2 | BI6: 2 | BK6: on using this workbook.
BC7: 3 | BI7: 3
AZ8: Mouse over | BC8: 4 | BI8: 4
AZ9: for State Codes | BC9: 5 | BI9: 5
BC10: 6 | BI10: 6
BC11: 7 | BI11: 7
BC12: 8 | BI12: 8
BC13: 9 | BI13: 9
AQ14: Scale | BC14: 10 | BI14: 10
BC15: 11 | BI15: 11
BC16: 12 | BI16: 12
L17: Scale | BC17: 13 | BI17: 13
BC18: 14 | BI18: 14
BC19: 15 | BI19: 15
BC20: 16 | BI20: 16
BC21: 17 | BI21: 17
BC22: 18 | BI22: 18
BC23: 19 | BI23: 19
BC24: 20 | BI24: 20
BC25: 21 | BI25: 21
BC26: 22 | BI26: 22
BC27: 23 | BI27: 23
BC28: 24 | BI28: 24
BC29: 25 | BI29: 25
BC30: 26 | BI30: 26
BC31: 27 | BI31: 27
BC32: 28 | BI32: 28
BC33: 29 | BI33: 29
BA34: =OFFSET(Map_Data!$D$1,MATCH(MouseClick,Map_Data!$E$2:$E$54,0),0,1) -> Illinois | BC34: 30 | BI34: 30
BA35: IL | BC35: 31 | BI35: 31
BC36: 32 | BI36: 32
BC37: 33 | BI37: 33
BC38: 34 | BI38: 34
BC39: 35 | BI39: 35
BC40: 36 | BI40: 36
BC41: 37 | BI41: 37
BC42: 38 | BI42: 38
BC43: 39 | BI43: 39
B44: =Model!$C$4 & " to " & Model!$C$5 & " by State" -> Migration in 2011 to Ohio by State | BC44: 40 | BI44: 40
BC45: 41 | BI45: 41
BC46: 42 | BI46: 42
BC47: 43 | BI47: 43
BC48: 44 | BI48: 44
BC49: 45 | BI49: 45
BC50: 46 | BI50: 46
BC51: 47 | BI51: 47
B52: Seasonally Adjusted Unemployment Rate (%) | AF52: 31 | AG52: 32 | AH52: 33 | AI52: 34 | AJ52: 35 | AK52: 36 | AL52: 37 | AM52: 38 | AN52: 39 | AO52: 40 | AP52: 41 | AQ52: 42 | AR52: 43 | AS52: 44 | AT52: 45 | AU52: 46 | AV52: 47 | AW52: 48 | AX52: 49 | AY52: 50 | AZ52: 51 | BA52: 52 | BC52: 48 | BI52: 48
BC53: 49 | BI53: 49
J54: Influx | X54: State Pop.(M) | AL54: GSP ($ Bn) | BC54: 50 | BI54: 50
G55: =Model!AN6 -> 172633 | Q55: =Model!AP6 -> 196391 | U55: =Model!AN8/1000000 -> 11.405101 | AE55: =Model!AP8/1000000 -> 11.414635 | AI55: =Model!AN5/1000000000 -> 465.679 | AS55: =Model!AP5/1000000000 -> 509.393 | BC55: 51 | BI55: 51
B56: State Trends | BC56: 52 | BI56: 52
J57: Outflow | X57: Int. Migration % | AM57: All trend-line ranges:
G58: =Model!AN7 -> 188013 | Q58: =Model!AP7 -> 199202 | U58: =Model!AN9 -> 12.74342945 | AE58: =Model!AP9 -> 12.62252363 | AM58: 2010 - 2012

Sheet Model
B3: Selected Dataset | F3: TRUE | L3: Scale Options | Q3: Palette | U3: Selected Data | AD3: Chart Data | AM3: Sparkline & Table Data
B4: =IFERROR(MATCH($C$4,MapDatasetNames,0),0) -> 2 | C4: Migration in 2011 | M4: Freq | N4: Class Name | O4: Freq. | Q4: Colors | U4: # | V4: Data | W4: Sort Order | X4: State Code | Y4: Data 2 | Z4: State Code | AA4: Data 2 | AB4: ER % | AD4: # | AE4: Bullet Index | AF4: Influx | AG4: Sort Order | AH4: State | AI4: Sorted Data | AJ4: Outflow | AK4: GSP $ | AN4: 2010 | AO4: 2011 | AP4: 2012
B5: =IFERROR(MATCH($C$5,State_Names,0),0) -> 36 | C5: Ohio | E5: =OFFSET(Map_Data!E1,MATCH(Model!C5,State_Names,0),0,1,1) -> OH | M5: =FREQUENCY(ActiveDataSet,ClassEnd) -> 30 | N5: =E16:E24 -> Class1 | O5: =IF(ISERROR(M5),"",M5) -> 30 | R5: GnBu | U5: 1 | V5: =ActiveDataSet -> 1567 | W5: =RANK(V5,$V$5:$V$56,0)+COUNTIF($V$5:V5,V5)-1 -> 32 | X5: =OFFSET(Map_Data!$E$1,MATCH(Model!U5,Model!$W$5:$W$56,0),0,1,1) -> FL | Y5: =LARGE(ActiveDataSet,U5) -> 16492 | AB5: =OFFSET(Map_Data!$U$1,MATCH(X5,Map_Data!$E$2:$E$53,0),$B$4,1,1) -> 9.5 | AD5: 1 | AE5: 0.5 | AF5: =Influx -> 117726 | AG5: =RANK(AF5,$AF$5:$AF$56,0)+COUNTIF($AF$5:AF5,AF5)-1 -> 23 | AH5: =OFFSET(Map_Data!$D$1,MATCH(Model!AD5,Model!$AG$5:$AG$56,0),0,1,1) -> Texas | AI5: =LARGE($AF$5:$AF$56,AD5) -> 514726 | AJ5: =OFFSET(Map_Data!$N$1,MATCH(AH5,Map_Data!$D$2:$D$53,0),Model!$B$4,1,1) -> 404839 | AK5: =OFFSET(Map_Data!$H$1,MATCH(AH5,Map_Data!$D$2:$D$53,0),Model!$B$4,1,1) -> 1321005000000 | AM5: GSP $ | AN5: =OFFSET(Map_Data!$E$1,MATCH(Model!$C$5,State_Names,0),4,1,3) -> 465679000000 | AO5: 490265000000 | AP5: 509393000000
M6: 6 | N6: Class2 | O6: 6 | R6: BuGn | U6: 2 | V6: 1637 | W6: =RANK(V6,$V$5:$V$56,0)+COUNTIF($V$5:V6,V6)-1 -> 30 | X6: =OFFSET(Map_Data!$E$1,MATCH(Model!U6,Model!$W$5:$W$56,0),0,1,1) -> MI | Y6: =LARGE(ActiveDataSet,U6) -> 14330 | AB6: =OFFSET(Map_Data!$U$1,MATCH(X6,Map_Data!$E$2:$E$53,0),$B$4,1,1) -> 9.4 | AD6: 2 | AE6: 1.5 | AF6: 35084 | AG6: =RANK(AF6,$AF$5:$AF$56,0)+COUNTIF($AF$5:AF6,AF6)-1 -> 43 | AH6: =OFFSET(Map_Data!$D$1,MATCH(Model!AD6,Model!$AG$5:$AG$56,0),0,1,1) -> Florida | AI6: =LARGE($AF$5:$AF$56,AD6) -> 498597 | AJ6: =OFFSET(Map_Data!$N$1,MATCH(AH6,Map_Data!$D$2:$D$53,0),Model!$B$4,1,1) -> 437202 | AK6: =OFFSET(Map_Data!$H$1,MATCH(AH6,Map_Data!$D$2:$D$53,0),Model!$B$4,1,1) -> 746439000000 | AM6: Influx | AN6: =OFFSET(Map_Data!$E$1,MATCH(Model!$C$5,State_Names,0),7,1,3) -> 172633 | AO6: 191778 | AP6: 196391
B7: Map Data Summary | M7: 4 | N7: Class3 | O7: 4 | R7: YlOrRd | U7: 3 | V7: 6763 | W7: =RANK(V7,$V$5:$V$56,0)+COUNTIF($V$5:V7,V7)-1 -> 11 | X7: =OFFSET(Map_Data!$E$1,MATCH(Model!U7,Model!$W$5:$W$56,0),0,1,1) -> PA | Y7: 14292 | AB7: =OFFSET(Map_Data!$U$1,MATCH(X7,Map_Data!$E$2:$E$53,0),$B$4,1,1) -> 7.8 | AD7: 3 | AE7: 2.5 | AF7: 222877 | AG7: =RANK(AF7,$AF$5:$AF$56,0)+COUNTIF($AF$5:AF7,AF7)-1 -> 9 | AH7: =OFFSET(Map_Data!$D$1,MATCH(Model!AD7,Model!$AG$5:$AG$56,0),0,1,1) -> California | AI7: 468428 | AJ7: =OFFSET(Map_Data!$N$1,MATCH(AH7,Map_Data!$D$2:$D$53,0),Model!$B$4,1,1) -> 562343 | AK7: =OFFSET(Map_Data!$H$1,MATCH(AH7,Map_Data!$D$2:$D$53,0),Model!$B$4,1,1) -> 1908985000000 | AM7: Outflow | AN7: =OFFSET(Map_Data!$E$1,MATCH(Model!$C$5,State_Names,0),10,1,3) -> 188013 | AO7: 206049 | AP7: 199202
D8: Minimum Value | E8: =IFERROR(MIN(ActiveDataSet),"") -> 0 | F8: =OFFSET(Map_Data!E1,0,Model!B4,1,1) -> 2011 | M8: 4 | N8: Class4 | O8: 4 | U8: 4 | V8: 1952 | W8: =RANK(V8,$V$5:$V$56,0)+COUNTIF($V$5:V8,V8)-1 -> 26 | X8: =OFFSET(Map_Data!$E$1,MATCH(Model!U8,Model!$W$5:$W$56,0),0,1,1) -> KY | Y8: 12744 | AB8: =OFFSET(Map_Data!$U$1,MATCH(X8,Map_Data!$E$2:$E$53,0),$B$4,1,1) -> 8.7 | AD8: 4 | AE8: 3.5 | AF8: 69845 | AG8: =RANK(AF8,$AF$5:$AF$56,0)+COUNTIF($AF$5:AF8,AF8)-1 -> 34 | AH8: =OFFSET(Map_Data!$D$1,MATCH(Model!AD8,Model!$AG$5:$AG$56,0),0,1,1) -> New York | AI8: 282209 | AJ8: =OFFSET(Map_Data!$N$1,MATCH(AH8,Map_Data!$D$2:$D$53,0),Model!$B$4,1,1) -> 377800 | AK8: =OFFSET(Map_Data!$H$1,MATCH(AH8,Map_Data!$D$2:$D$53,0),Model!$B$4,1,1) -> 1169436000000 | AM8: State Pop | AN8: =OFFSET('Raw_Data-1'!$D$3,MATCH(Model!$C$5,'Raw_Data-1'!C4:C55,0),0,1,1) -> 11405101 | AO8: =OFFSET('Raw_Data-1'!$A$55,MATCH(Model!$C$5,'Raw_Data-1'!C4:C55,0),3,1,1) -> 11418944 | AP8: =OFFSET('Raw_Data-1'!$A$107,MATCH(Model!$C$5,'Raw_Data-1'!C4:C55,0),3,1,1) -> 11414635
D9: Maximum Value | E9: =IFERROR(MAX(ActiveDataSet),"") -> 16492 | F9: =OFFSET(Map_Data!E1,0,Model!B4,1,1) -> 2011 | M9: 2 | N9: Class5 | O9: 2 | Q9: YlOrRd | R9: =MATCH(Q9,R5:R7,0) -> 3 | U9: 5 | V9: 9032 | W9: =RANK(V9,$V$5:$V$56,0)+COUNTIF($V$5:V9,V9)-1 -> 7 | X9: =OFFSET(Map_Data!$E$1,MATCH(Model!U9,Model!$W$5:$W$56,0),0,1,1) -> TX | Y9: 11987 | AB9: =OFFSET(Map_Data!$U$1,MATCH(X9,Map_Data!$E$2:$E$53,0),$B$4,1,1) -> 7.4 | AD9: 5 | AE9: 4.5 | AF9: 468428 | AG9: =RANK(AF9,$AF$5:$AF$56,0)+COUNTIF($AF$5:AF9,AF9)-1 -> 3 | AH9: =OFFSET(Map_Data!$D$1,MATCH(Model!AD9,Model!$AG$5:$AG$56,0),0,1,1) -> Georgia | AI9: 271077 | AJ9: =OFFSET(Map_Data!$N$1,MATCH(AH9,Map_Data!$D$2:$D$53,0),Model!$B$4,1,1) -> 248892 | AK9: =OFFSET(Map_Data!$H$1,MATCH(AH9,Map_Data!$D$2:$D$53,0),Model!$B$4,1,1) -> 417438000000 | AM9: State Migration | AN9: =OFFSET(Map_Data!$E$1,MATCH(Model!$C$5,State_Names,0),14,1,3) -> 12.74342945 | AO9: 12.48547151 | AP9: 12.62252363
D10: Median | E10: =IFERROR(MEDIAN(ActiveDataSet),"") -> 1912 | F10: =OFFSET(Map_Data!E1,0,Model!B4,1,1) -> 2011 | M10: 2 | N10: Class6 | O10: 2 | U10: 6 | V10: 2690 | W10: =RANK(V10,$V$5:$V$56,0)+COUNTIF($V$5:V10,V10)-1 -> 19 | X10: =OFFSET(Map_Data!$E$1,MATCH(Model!U10,Model!$W$5:$W$56,0),0,1,1) -> IN | Y10: 11588 | AB10: =OFFSET(Map_Data!$U$1,MATCH(X10,Map_Data!$E$2:$E$53,0),$B$4,1,1) -> 8.5 | AD10: 6 | AE10: 5.5 | AF10: 202124 | AG10: =RANK(AF10,$AF$5:$AF$56,0)+COUNTIF($AF$5:AF10,AF10)-1 -> 12 | AH10: =OFFSET(Map_Data!$D$1,MATCH(Model!AD10,Model!$AG$5:$AG$56,0),0,1,1) -> North Carolina | AI10: 265291 | AJ10: =OFFSET(Map_Data!$N$1,MATCH(AH10,Map_Data!$D$2:$D$53,0),Model!$B$4,1,1) -> 225147 | AK10: =OFFSET(Map_Data!$H$1,MATCH(AH10,Map_Data!$D$2:$D$53,0),Model!$B$4,1,1) -> 436144000000 | AM10: US Migration | AN10: 2.206347458 | AO10: 2.269376018 | AP10: 2.279192227
D11: Average | E11: =IFERROR(AVERAGE(ActiveDataSet),"") -> 3718.942308 | F11: =OFFSET(Map_Data!E1,0,Model!B4,1,1) -> 2011 | M11: 3 | N11: Class7 | O11: 3 | U11: 7 | V11: 1189 | W11: =RANK(V11,$V$5:$V$56,0)+COUNTIF($V$5:V11,V11)-1 -> 35 | X11: =OFFSET(Map_Data!$E$1,MATCH(Model!U11,Model!$W$5:$W$56,0),0,1,1) -> CA | Y11: 9032 | AB11: =OFFSET(Map_Data!$U$1,MATCH(X11,Map_Data!$E$2:$E$53,0),$B$4,1,1) -> 11.2 | AD11: 7 | AE11: 6.5 | AF11: 71502 | AG11: =RANK(AF11,$AF$5:$AF$56,0)+COUNTIF($AF$5:AF11,AF11)-1 -> 32 | AH11: =OFFSET(Map_Data!$D$1,MATCH(Model!AD11,Model!$AG$5:$AG$56,0),0,1,1) -> Virginia | AI11: 257130 | AJ11: =OFFSET(Map_Data!$N$1,MATCH(AH11,Map_Data!$D$2:$D$53,0),Model!$B$4,1,1) -> 229227 | AK11: =OFFSET(Map_Data!$H$1,MATCH(AH11,Map_Data!$D$2:$D$53,0),Model!$B$4,1,1) -> 433611000000 | AM11: US Population | AN11: 305628607 | AO11: 307900319 | AP11: 310212755
M12: 1 | N12: Class8 | O12: 1 | U12: 8 | V12: 263 | W12: =RANK(V12,$V$5:$V$56,0)+COUNTIF($V$5:V12,V12)-1 -> 45 | X12: =OFFSET(Map_Data!$E$1,MATCH(Model!U12,Model!$W$5:$W$56,0),0,1,1) -> NY | Y12: 8784 | AB12: =OFFSET(Map_Data!$U$1,MATCH(X12,Map_Data!$E$2:$E$53,0),$B$4,1,1) -> 8.4 | AD12: 8 | AE12: 7.5 | AF12: 33912 | AG12: =RANK(AF12,$AF$5:$AF$56,0)+COUNTIF($AF$5:AF12,AF12)-1 -> 44 | AH12: =OFFSET(Map_Data!$D$1,MATCH(Model!AD12,Model!$AG$5:$AG$56,0),0,1,1) -> Pennsylvania | AI12: 234291 | AJ12: =OFFSET(Map_Data!$N$1,MATCH(AH12,Map_Data!$D$2:$D$53,0),Model!$B$4,1,1) -> 215127 | AK12: =OFFSET(Map_Data!$H$1,MATCH(AH12,Map_Data!$D$2:$D$53,0),Model!$B$4,1,1) -> 581256000000 | AM12: Unemployment | AN12: =OFFSET(Map_Data!$E$1,MATCH(Model!$C$5,State_Names,0),17,1,3) -> 9.3 | AO12: 7.9 | AP12: 7.3
M13: 0 | N13: Class9 | O13: 0 | U13: 9 | V13: 587 | W13: =RANK(V13,$V$5:$V$56,0)+COUNTIF($V$5:V13,V13)-1 -> 42 | X13: =OFFSET(Map_Data!$E$1,MATCH(Model!U13,Model!$W$5:$W$56,0),0,1,1) -> WV | Y13: 7548 | AB13: =OFFSET(Map_Data!$U$1,MATCH(X13,Map_Data!$E$2:$E$53,0),$B$4,1,1) -> 7.3 | AD13: 9 | AE13: 8.5 | AF13: 48066 | AG13: =RANK(AF13,$AF$5:$AF$56,0)+COUNTIF($AF$5:AF13,AF13)-1 -> 41 | AH13: =OFFSET(Map_Data!$D$1,MATCH(Model!AD13,Model!$AG$5:$AG$56,0),0,1,1) -> Arizona | AI13: 222877 | AJ13: =OFFSET(Map_Data!$N$1,MATCH(AH13,Map_Data!$D$2:$D$53,0),Model!$B$4,1,1) -> 211816 | AK13: =OFFSET(Map_Data!$H$1,MATCH(AH13,Map_Data!$D$2:$D$53,0),Model!$B$4,1,1) -> 255989000000
B14: Color Table | U14: 10 | V14: 16492 | W14: =RANK(V14,$V$5:$V$56,0)+COUNTIF($V$5:V14,V14)-1 -> 1 | X14: =OFFSET(Map_Data!$E$1,MATCH(Model!U14,Model!$W$5:$W$56,0),0,1,1) -> IL | Y14: 7027 | Z14: IL | AA14: 7027 | AB14: =OFFSET(Map_Data!$U$1,MATCH(X14,Map_Data!$E$2:$E$53,0),$B$4,1,1) -> 9.4 | AD14: 10 | AE14: 9.5 | AF14: 498597 | AG14: =RANK(AF14,$AF$5:$AF$56,0)+COUNTIF($AF$5:AF14,AF14)-1 -> 2 | AH14: =OFFSET(Map_Data!$D$1,MATCH(Model!AD14,Model!$AG$5:$AG$56,0),0,1,1) -> Illinois | AI14: 216204 | AJ14: =OFFSET(Map_Data!$N$1,MATCH(AH14,Map_Data!$D$2:$D$53,0),Model!$B$4,1,1) -> 269008 | AK14: =OFFSET(Map_Data!$H$1,MATCH(AH14,Map_Data!$D$2:$D$53,0),Model!$B$4,1,1) -> 670247000000
B15: Levels | C15: Class Start | D15: Class End | E15: Class Name | F15: Color | G15: Class Range | H15: Red | I15: Green | J15: Blue | U15: 11 | V15: 4290 | W15: =RANK(V15,$V$5:$V$56,0)+COUNTIF($V$5:V15,V15)-1 -> 16 | X15: =OFFSET(Map_Data!$E$1,MATCH(Model!U15,Model!$W$5:$W$56,0),0,1,1) -> AZ | Y15: 6763 | AB15: =OFFSET(Map_Data!$U$1,MATCH(X15,Map_Data!$E$2:$E$53,0),$B$4,1,1) -> 8.7 | AD15: 11 | AE15: 10.5 | AF15: 271077 | AG15: =RANK(AF15,$AF$5:$AF$56,0)+COUNTIF($AF$5:AF15,AF15)-1 -> 5 | AH15: =OFFSET(Map_Data!$D$1,MATCH(Model!AD15,Model!$AG$5:$AG$56,0),0,1,1) -> Washington | AI15: 208507 | AJ15: =OFFSET(Map_Data!$N$1,MATCH(AH15,Map_Data!$D$2:$D$53,0),Model!$B$4,1,1) -> 190644 | AK15: =OFFSET(Map_Data!$H$1,MATCH(AH15,Map_Data!$D$2:$D$53,0),Model!$B$4,1,1) -> 357056000000
B16: =ROW()-15 -> 1 | C16: 0 | D16: 2061.5 | E16: =IF(ColorTable[[#This Row],[Class Start]]<>"","Class"&ColorTable[[#This Row],[Levels]],"") -> Class1 | G16: =IF(ColorTable[[#This Row],[Class Name]]<>"",TEXT(ColorTable[[#This Row],[Class Start]],"0")&" - "&TEXT(ColorTable[[#This Row],[Class End]],"0"),"") -> 0 - 2062 | H16: 255 | I16: 255 | J16: 204 | U16: 12 | V16: 1044 | W16: =RANK(V16,$V$5:$V$56,0)+COUNTIF($V$5:V16,V16)-1 -> 38 | X16: =OFFSET(Map_Data!$E$1,MATCH(Model!U16,Model!$W$5:$W$56,0),0,1,1) -> TN | Y16: 6468 | AB16: =OFFSET(Map_Data!$U$1,MATCH(X16,Map_Data!$E$2:$E$53,0),$B$4,1,1) -> 8.5 | AD16: 12 | AE16: 11.5 | AF16: 57542 | AG16: =RANK(AF16,$AF$5:$AF$56,0)+COUNTIF($AF$5:AF16,AF16)-1 -> 38 | AH16: =OFFSET(Map_Data!$D$1,MATCH(Model!AD16,Model!$AG$5:$AG$56,0),0,1,1) -> Colorado | AI16: 202124 | AJ16: =OFFSET(Map_Data!$N$1,MATCH(AH16,Map_Data!$D$2:$D$53,0),Model!$B$4,1,1) -> 160623 | AK16: =OFFSET(Map_Data!$H$1,MATCH(AH16,Map_Data!$D$2:$D$53,0),Model!$B$4,1,1) -> 264733000000
B17: 2 | C17: 2061.5 | D17: 4123 | E17: =IF(ColorTable[[#This Row],[Class Start]]<>"","Class"&ColorTable[[#This Row],[Levels]],"") -> Class2 | G17: =IF(ColorTable[[#This Row],[Class Name]]<>"",TEXT(ColorTable[[#This Row],[Class Start]],"0")&" - "&TEXT(ColorTable[[#This Row],[Class End]],"0"),"") -> 2062 - 4123 | H17: 255 | I17: 237 | J17: 160 | U17: 13 | V17: 312 | W17: =RANK(V17,$V$5:$V$56,0)+COUNTIF($V$5:V17,V17)-1 -> 44 | X17: =OFFSET(Map_Data!$E$1,MATCH(Model!U17,Model!$W$5:$W$56,0),0,1,1) -> VA | Y17: 5425 | AB17: =OFFSET(Map_Data!$U$1,MATCH(X17,Map_Data!$E$2:$E$53,0),$B$4,1,1) -> 6.2 | AD17: 13 | AE17: 12.5 | AF17: 60336 | AG17: =RANK(AF17,$AF$5:$AF$56,0)+COUNTIF($AF$5:AF17,AF17)-1 -> 37 | AH17: =OFFSET(Map_Data!$D$1,MATCH(Model!AD17,Model!$AG$5:$AG$56,0),0,1,1) -> Ohio | AI17: 191778 | AJ17: =OFFSET(Map_Data!$N$1,MATCH(AH17,Map_Data!$D$2:$D$53,0),Model!$B$4,1,1) -> 206049 | AK17: =OFFSET(Map_Data!$H$1,MATCH(AH17,Map_Data!$D$2:$D$53,0),Model!$B$4,1,1) -> 490265000000
B18: 3 | C18: 4123 | D18: 6184.5 | E18: =IF(ColorTable[[#This Row],[Class Start]]<>"","Class"&ColorTable[[#This Row],[Levels]],"") -> Class3 | G18: =IF(ColorTable[[#This Row],[Class Name]]<>"",TEXT(ColorTable[[#This Row],[Class Start]],"0")&" - "&TEXT(ColorTable[[#This Row],[Class End]],"0"),"") -> 4123 - 6185 | H18: 254 | I18: 217 | J18: 118 | U18: 14 | V18: 7027 | W18: =RANK(V18,$V$5:$V$56,0)+COUNTIF($V$5:V18,V18)-1 -> 10 | X18: =OFFSET(Map_Data!$E$1,MATCH(Model!U18,Model!$W$5:$W$56,0),0,1,1) -> MD | Y18: 4982 | AB18: =OFFSET(Map_Data!$U$1,MATCH(X18,Map_Data!$E$2:$E$53,0),$B$4,1,1) -> 7 | AD18: 14 | AE18: 13.5 | AF18: 216204 | AG18: =RANK(AF18,$AF$5:$AF$56,0)+COUNTIF($AF$5:AF18,AF18)-1 -> 10 | AH18: =OFFSET(Map_Data!$D$1,MATCH(Model!AD18,Model!$AG$5:$AG$56,0),0,1,1) -> Tennessee | AI18: 170969 | AJ18: =OFFSET(Map_Data!$N$1,MATCH(AH18,Map_Data!$D$2:$D$53,0),Model!$B$4,1,1) -> 154243 | AK18: =OFFSET(Map_Data!$H$1,MATCH(AH18,Map_Data!$D$2:$D$53,0),Model!$B$4,1,1) -> 263626000000
B19: 4 | C19: 6184.5 | D19: 8246 | E19: =IF(ColorTable[[#This Row],[Class Start]]<>"","Class"&ColorTable[[#This Row],[Levels]],"") -> Class4 | G19: =IF(ColorTable[[#This Row],[Class Name]]<>"",TEXT(ColorTable[[#This Row],[Class Start]],"0")&" - "&TEXT(ColorTable[[#This Row],[Class End]],"0"),"") -> 6185 - 8246 | H19: 254 | I19: 178 | J19: 76 | U19: 15 | V19: 11588 | W19: =RANK(V19,$V$5:$V$56,0)+COUNTIF($V$5:V19,V19)-1 -> 6 | X19: =OFFSET(Map_Data!$E$1,MATCH(Model!U19,Model!$W$5:$W$56,0),0,1,1) -> NC | Y19: 4572 | AB19: =OFFSET(Map_Data!$U$1,MATCH(X19,Map_Data!$E$2:$E$53,0),$B$4,1,1) -> 9.7 | AD19: 15 | AE19: 14.5 | AF19: 127874 | AG19: =RANK(AF19,$AF$5:$AF$56,0)+COUNTIF($AF$5:AF19,AF19)-1 -> 22 | AH19: =OFFSET(Map_Data!$D$1,MATCH(Model!AD19,Model!$AG$5:$AG$56,0),0,1,1) -> South Carolina | AI19: 157644 | AJ19: =OFFSET(Map_Data!$N$1,MATCH(AH19,Map_Data!$D$2:$D$53,0),Model!$B$4,1,1) -> 121426 | AK19: =OFFSET(Map_Data!$H$1,MATCH(AH19,Map_Data!$D$2:$D$53,0),Model!$B$4,1,1) -> 168716000000
B20: 5 | C20: 8246 | D20: 10307.5 | E20: =IF(ColorTable[[#This Row],[Class Start]]<>"","Class"&ColorTable[[#This Row],[Levels]],"") -> Class5 | G20: =IF(ColorTable[[#This Row],[Class Name]]<>"",TEXT(ColorTable[[#This Row],[Class Start]],"0")&" - "&TEXT(ColorTable[[#This Row],[Class End]],"0"),"") -> 8246 - 10308 | H20: 253 | I20: 141 | J20: 60 | U20: 16 | V20: 1146 | W20: =RANK(V20,$V$5:$V$56,0)+COUNTIF($V$5:V20,V20)-1 -> 37 | X20: =OFFSET(Map_Data!$E$1,MATCH(Model!U20,Model!$W$5:$W$56,0),0,1,1) -> GA | Y20: 4290 | AB20: =OFFSET(Map_Data!$U$1,MATCH(X20,Map_Data!$E$2:$E$53,0),$B$4,1,1) -> 9.5 | AD20: 16 | AE20: 15.5 | AF20: 70405 | AG20: =RANK(AF20,$AF$5:$AF$56,0)+COUNTIF($AF$5:AF20,AF20)-1 -> 33 | AH20: =OFFSET(Map_Data!$D$1,MATCH(Model!AD20,Model!$AG$5:$AG$56,0),0,1,1) -> Maryland | AI20: 153979 | AJ20: =OFFSET(Map_Data!$N$1,MATCH(AH20,Map_Data!$D$2:$D$53,0),Model!$B$4,1,1) -> 165041 | AK20: =OFFSET(Map_Data!$H$1,MATCH(AH20,Map_Data!$D$2:$D$53,0),Model!$B$4,1,1) -> 305175000000
B21: 6 | C21: 10307.5 | D21: 12369 | E21: =IF(ColorTable[[#This Row],[Class Start]]<>"","Class"&ColorTable[[#This Row],[Levels]],"") -> Class6 | G21: =IF(ColorTable[[#This Row],[Class Name]]<>"",TEXT(ColorTable[[#This Row],[Class Start]],"0")&" - "&TEXT(ColorTable[[#This Row],[Class End]],"0"),"") -> 10308 - 12369 | H21: 252 | I21: 78 | J21: 42 | U21: 17 | V21: 657 | W21: =RANK(V21,$V$5:$V$56,0)+COUNTIF($V$5:V21,V21)-1 -> 41 | X21: =OFFSET(Map_Data!$E$1,MATCH(Model!U21,Model!$W$5:$W$56,0),0,1,1) -> NJ | Y21: 3936 | AB21: =OFFSET(Map_Data!$U$1,MATCH(X21,Map_Data!$E$2:$E$53,0),$B$4,1,1) -> 9.2 | AD21: 17 | AE21: 16.5 | AF21: 83640 | AG21: =RANK(AF21,$AF$5:$AF$56,0)+COUNTIF($AF$5:AF21,AF21)-1 -> 31 | AH21: =OFFSET(Map_Data!$D$1,MATCH(Model!AD21,Model!$AG$5:$AG$56,0),0,1,1) -> Missouri | AI21: 149439 | AJ21: =OFFSET(Map_Data!$N$1,MATCH(AH21,Map_Data!$D$2:$D$53,0),Model!$B$4,1,1) -> 138404 | AK21: =OFFSET(Map_Data!$H$1,MATCH(AH21,Map_Data!$D$2:$D$53,0),Model!$B$4,1,1) -> 249546000000
B22: 7 | C22: 12369 | D22: 14430.5 | E22: =IF(ColorTable[[#This Row],[Class Start]]<>"","Class"&ColorTable[[#This Row],[Levels]],"") -> Class7 | G22: =IF(ColorTable[[#This Row],[Class Name]]<>"",TEXT(ColorTable[[#This Row],[Class Start]],"0")&" - "&TEXT(ColorTable[[#This Row],[Class End]],"0"),"") -> 12369 - 14431 | H22: 227 | I22: 26 | J22: 28 | U22: 18 | V22: 12744 | W22: =RANK(V22,$V$5:$V$56,0)+COUNTIF($V$5:V22,V22)-1 -> 4 | X22: =OFFSET(Map_Data!$E$1,MATCH(Model!U22,Model!$W$5:$W$56,0),0,1,1) -> SC | Y22: 3826 | AB22: =OFFSET(Map_Data!$U$1,MATCH(X22,Map_Data!$E$2:$E$53,0),$B$4,1,1) -> 9.7 | AD22: 18 | AE22: 17.5 | AF22: 110031 | AG22: =RANK(AF22,$AF$5:$AF$56,0)+COUNTIF($AF$5:AF22,AF22)-1 -> 25 | AH22: =OFFSET(Map_Data!$D$1,MATCH(Model!AD22,Model!$AG$5:$AG$56,0),0,1,1) -> New Jersey | AI22: 140194 | AJ22: =OFFSET(Map_Data!$N$1,MATCH(AH22,Map_Data!$D$2:$D$53,0),Model!$B$4,1,1) -> 216369 | AK22: =OFFSET(Map_Data!$H$1,MATCH(AH22,Map_Data!$D$2:$D$53,0),Model!$B$4,1,1) -> 493175000000
B23: 8 | C23: 14430.5 | D23: 16492 | E23: =IF(ColorTable[[#This Row],[Class Start]]<>"","Class"&ColorTable[[#This Row],[Levels]],"") -> Class8 | G23: =IF(ColorTable[[#This Row],[Class Name]]<>"",TEXT(ColorTable[[#This Row],[Class Start]],"0")&" - "&TEXT(ColorTable[[#This Row],[Class End]],"0"),"") -> 14431 - 16492 | H23: 189 | I23: 0 | J23: 38 | U23: 19 | V23: 1872 | W23: =RANK(V23,$V$5:$V$56,0)+COUNTIF($V$5:V23,V23)-1 -> 27 | X23: =OFFSET(Map_Data!$E$1,MATCH(Model!U23,Model!$W$5:$W$56,0),0,1,1) -> CO | Y23: 2690 | AB23: =OFFSET(Map_Data!$U$1,MATCH(X23,Map_Data!$E$2:$E$53,0),$B$4,1,1) -> 8.3 | AD23: 19 | AE23: 18.5 | AF23: 99138 | AG23: =RANK(AF23,$AF$5:$AF$56,0)+COUNTIF($AF$5:AF23,AF23)-1 -> 29 | AH23: =OFFSET(Map_Data!$D$1,MATCH(Model!AD23,Model!$AG$5:$AG$56,0),0,1,1) -> Massachusetts | AI23: 139830 | AJ23: =OFFSET(Map_Data!$N$1,MATCH(AH23,Map_Data!$D$2:$D$53,0),Model!$B$4,1,1) -> 145869 | AK23: =OFFSET(Map_Data!$H$1,MATCH(AH23,Map_Data!$D$2:$D$53,0),Model!$B$4,1,1) -> 388575000000
B24: 9 | C24: 16492 | E24: =IF(ColorTable[[#This Row],[Class Start]]<>"","Class"&ColorTable[[#This Row],[Levels]],"") -> Class9 | G24: =IF(ColorTable[[#This Row],[Class Name]]<>"",TEXT(ColorTable[[#This Row],[Class Start]],"0")&" - "&TEXT(ColorTable[[#This Row],[Class End]],"0"),"") -> 16492 - 0 | H24: 128 | I24: 0 | J24: 38 | U24: 20 | V24: 0 | W24: =RANK(V24,$V$5:$V$56,0)+COUNTIF($V$5:V24,V24)-1 -> 51 | X24: =OFFSET(Map_Data!$E$1,MATCH(Model!U24,Model!$W$5:$W$56,0),0,1,1) -> WI | Y24: 2534 | AB24: =OFFSET(Map_Data!$U$1,MATCH(X24,Map_Data!$E$2:$E$53,0),$B$4,1,1) -> 7.1 | AD24: 20 | AE24: 19.5 | AF24: 33818 | AG24: =RANK(AF24,$AF$5:$AF$56,0)+COUNTIF($AF$5:AF24,AF24)-1 -> 45 | AH24: =OFFSET(Map_Data!$D$1,MATCH(Model!AD24,Model!$AG$5:$AG$56,0),0,1,1) -> Michigan | AI24: 139158 | AJ24: =OFFSET(Map_Data!$N$1,MATCH(AH24,Map_Data!$D$2:$D$53,0),Model!$B$4,1,1) -> 186505 | AK24: =OFFSET(Map_Data!$H$1,MATCH(AH24,Map_Data!$D$2:$D$53,0),Model!$B$4,1,1) -> 385123000000
U25: 21 | V25: 4982 | W25: =RANK(V25,$V$5:$V$56,0)+COUNTIF($V$5:V25,V25)-1 -> 14 | X25: =OFFSET(Map_Data!$E$1,MATCH(Model!U25,Model!$W$5:$W$56,0),0,1,1) -> OK | Y25: 2333 | AB25: =OFFSET(Map_Data!$U$1,MATCH(X25,Map_Data!$E$2:$E$53,0),$B$4,1,1) -> 5.7 | AD25: 21 | AE25: 20.5 | AF25: 153979 | AG25: =RANK(AF25,$AF$5:$AF$56,0)+COUNTIF($AF$5:AF25,AF25)-1 -> 16 | AH25: =OFFSET(Map_Data!$D$1,MATCH(Model!AD25,Model!$AG$5:$AG$56,0),0,1,1) -> Oregon | AI25: 127906 | AJ25: =OFFSET(Map_Data!$N$1,MATCH(AH25,Map_Data!$D$2:$D$53,0),Model!$B$4,1,1) -> 109795 | AK25: =OFFSET(Map_Data!$H$1,MATCH(AH25,Map_Data!$D$2:$D$53,0),Model!$B$4,1,1) -> 188981000000
U26: 22 | V26: 2101 | W26: =RANK(V26,$V$5:$V$56,0)+COUNTIF($V$5:V26,V26)-1 -> 22 | X26: =OFFSET(Map_Data!$E$1,MATCH(Model!U26,Model!$W$5:$W$56,0),0,1,1) -> MA | Y26: 2101 | AB26: =OFFSET(Map_Data!$U$1,MATCH(X26,Map_Data!$E$2:$E$53,0),$B$4,1,1) -> 6.9 | AD26: 22 | AE26: 21.5 | AF26: 139830 | AG26: =RANK(AF26,$AF$5:$AF$56,0)+COUNTIF($AF$5:AF26,AF26)-1 -> 19 | AH26: =OFFSET(Map_Data!$D$1,MATCH(Model!AD26,Model!$AG$5:$AG$56,0),0,1,1) -> Indiana | AI26: 127874 | AJ26: =OFFSET(Map_Data!$N$1,MATCH(AH26,Map_Data!$D$2:$D$53,0),Model!$B$4,1,1) -> 143228 | AK26: =OFFSET(Map_Data!$H$1,MATCH(AH26,Map_Data!$D$2:$D$53,0),Model!$B$4,1,1) -> 284344000000
U27: 23 | V27: 14330 | W27: =RANK(V27,$V$5:$V$56,0)+COUNTIF($V$5:V27,V27)-1 -> 2 | X27: =OFFSET(Map_Data!$E$1,MATCH(Model!U27,Model!$W$5:$W$56,0),0,1,1) -> MO | Y27: 2003 | AB27: =OFFSET(Map_Data!$U$1,MATCH(X27,Map_Data!$E$2:$E$53,0),$B$4,1,1) -> 7.6 | AD27: 23 | AE27: 22.5 | AF27: 139158 | AG27: =RANK(AF27,$AF$5:$AF$56,0)+COUNTIF($AF$5:AF27,AF27)-1 -> 20 | AH27: =OFFSET(Map_Data!$D$1,MATCH(Model!AD27,Model!$AG$5:$AG$56,0),0,1,1) -> Alabama | AI27: 117726 | AJ27: =OFFSET(Map_Data!$N$1,MATCH(AH27,Map_Data!$D$2:$D$53,0),Model!$B$4,1,1) -> 106806 | AK27: =OFFSET(Map_Data!$H$1,MATCH(AH27,Map_Data!$D$2:$D$53,0),Model!$B$4,1,1) -> 178533000000
U28: 24 | V28: 1788 | W28: =RANK(V28,$V$5:$V$56,0)+COUNTIF($V$5:V28,V28)-1 -> 29 | X28: =OFFSET(Map_Data!$E$1,MATCH(Model!U28,Model!$W$5:$W$56,0),0,1,1) -> NH | Y28: 1992 | AB28: =OFFSET(Map_Data!$U$1,MATCH(X28,Map_Data!$E$2:$E$53,0),$B$4,1,1) -> 5.4 | AD28: 24 | AE28: 23.5 | AF28: 101029 | AG28: =RANK(AF28,$AF$5:$AF$56,0)+COUNTIF($AF$5:AF28,AF28)-1 -> 28 | AH28: =OFFSET(Map_Data!$D$1,MATCH(Model!AD28,Model!$AG$5:$AG$56,0),0,1,1) -> Nevada | AI28: 110345 | AJ28: =OFFSET(Map_Data!$N$1,MATCH(AH28,Map_Data!$D$2:$D$53,0),Model!$B$4,1,1) -> 115943 | AK28: =OFFSET(Map_Data!$H$1,MATCH(AH28,Map_Data!$D$2:$D$53,0),Model!$B$4,1,1) -> 129421000000
U29: 25 | V29: 691 | W29: =RANK(V29,$V$5:$V$56,0)+COUNTIF($V$5:V29,V29)-1 -> 39 | X29: =OFFSET(Map_Data!$E$1,MATCH(Model!U29,Model!$W$5:$W$56,0),0,1,1) -> WA | Y29: 1979 | AB29: =OFFSET(Map_Data!$U$1,MATCH(X29,Map_Data!$E$2:$E$53,0),$B$4,1,1) -> 8.6 | AD29: 25 | AE29: 24.5 | AF29: 68511 | AG29: =RANK(AF29,$AF$5:$AF$56,0)+COUNTIF($AF$5:AF29,AF29)-1 -> 35 | AH29: =OFFSET(Map_Data!$D$1,MATCH(Model!AD29,Model!$AG$5:$AG$56,0),0,1,1) -> Kentucky | AI29: 110031 | AJ29: =OFFSET(Map_Data!$N$1,MATCH(AH29,Map_Data!$D$2:$D$53,0),Model!$B$4,1,1) -> 99256 | AK29: =OFFSET(Map_Data!$H$1,MATCH(AH29,Map_Data!$D$2:$D$53,0),Model!$B$4,1,1) -> 168019000000
U30: 26 | V30: 2003 | W30: =RANK(V30,$V$5:$V$56,0)+COUNTIF($V$5:V30,V30)-1 -> 23 | X30: =OFFSET(Map_Data!$E$1,MATCH(Model!U30,Model!$W$5:$W$56,0),0,1,1) -> AR | Y30: 1952 | AB30: =OFFSET(Map_Data!$U$1,MATCH(X30,Map_Data!$E$2:$E$53,0),$B$4,1,1) -> 7.6 | AD30: 26 | AE30: 25.5 | AF30: 149439 | AG30: =RANK(AF30,$AF$5:$AF$56,0)+COUNTIF($AF$5:AF30,AF30)-1 -> 17 | AH30: =OFFSET(Map_Data!$D$1,MATCH(Model!AD30,Model!$AG$5:$AG$56,0),0,1,1) -> Wisconsin | AI30: 109439 | AJ30: =OFFSET(Map_Data!$N$1,MATCH(AH30,Map_Data!$D$2:$D$53,0),Model!$B$4,1,1) -> 105370 | AK30: =OFFSET(Map_Data!$H$1,MATCH(AH30,Map_Data!$D$2:$D$53,0),Model!$B$4,1,1) -> 253349000000
U31: 27 | V31: 101 | W31: =RANK(V31,$V$5:$V$56,0)+COUNTIF($V$5:V31,V31)-1 -> 48 | X31: =OFFSET(Map_Data!$E$1,MATCH(Model!U31,Model!$W$5:$W$56,0),0,1,1) -> LA | Y31: 1872 | AB31: =OFFSET(Map_Data!$U$1,MATCH(X31,Map_Data!$E$2:$E$53,0),$B$4,1,1) -> 7 | AD31: 27 | AE31: 26.5 | AF31: 33553 | AG31: =RANK(AF31,$AF$5:$AF$56,0)+COUNTIF($AF$5:AF31,AF31)-1 -> 46 | AH31: =OFFSET(Map_Data!$D$1,MATCH(Model!AD31,Model!$AG$5:$AG$56,0),0,1,1) -> Oklahoma | AI31: 108878 | AJ31: =OFFSET(Map_Data!$N$1,MATCH(AH31,Map_Data!$D$2:$D$53,0),Model!$B$4,1,1) -> 81009 | AK31: =OFFSET(Map_Data!$H$1,MATCH(AH31,Map_Data!$D$2:$D$53,0),Model!$B$4,1,1) -> 156058000000
U32: 28 | V32: 1176 | W32: =RANK(V32,$V$5:$V$56,0)+COUNTIF($V$5:V32,V32)-1 -> 36 | X32: =OFFSET(Map_Data!$E$1,MATCH(Model!U32,Model!$W$5:$W$56,0),0,1,1) -> NV | Y32: 1851 | AB32: =OFFSET(Map_Data!$U$1,MATCH(X32,Map_Data!$E$2:$E$53,0),$B$4,1,1) -> 12.4 | AD32: 28 | AE32: 27.5 | AF32: 52070 | AG32: =RANK(AF32,$AF$5:$AF$56,0)+COUNTIF($AF$5:AF32,AF32)-1 -> 39 | AH32: =OFFSET(Map_Data!$D$1,MATCH(Model!AD32,Model!$AG$5:$AG$56,0),0,1,1) -> Minnesota | AI32: 101029 | AJ32: =OFFSET(Map_Data!$N$1,MATCH(AH32,Map_Data!$D$2:$D$53,0),Model!$B$4,1,1) -> 103253 | AK32: =OFFSET(Map_Data!$H$1,MATCH(AH32,Map_Data!$D$2:$D$53,0),Model!$B$4,1,1) -> 279987000000
U33: 29 | V33: 1851 | W33: =RANK(V33,$V$5:$V$56,0)+COUNTIF($V$5:V33,V33)-1 -> 28 | X33: =OFFSET(Map_Data!$E$1,MATCH(Model!U33,Model!$W$5:$W$56,0),0,1,1) -> MN | Y33: 1788 | AB33: =OFFSET(Map_Data!$U$1,MATCH(X33,Map_Data!$E$2:$E$53,0),$B$4,1,1) -> 5.8 | AD33: 29 | AE33: 28.5 | AF33: 110345 | AG33: =RANK(AF33,$AF$5:$AF$56,0)+COUNTIF($AF$5:AF33,AF33)-1 -> 24 | AH33: =OFFSET(Map_Data!$D$1,MATCH(Model!AD33,Model!$AG$5:$AG$56,0),0,1,1) -> Louisiana | AI33: 99138 | AJ33: =OFFSET(Map_Data!$N$1,MATCH(AH33,Map_Data!$D$2:$D$53,0),Model!$B$4,1,1) -> 86593 | AK33: =OFFSET(Map_Data!$H$1,MATCH(AH33,Map_Data!$D$2:$D$53,0),Model!$B$4,1,1) -> 237389000000
U34: 30 | V34: 1992 | W34: =RANK(V34,$V$5:$V$56,0)+COUNTIF($V$5:V34,V34)-1 -> 24 | X34: =OFFSET(Map_Data!$E$1,MATCH(Model!U34,Model!$W$5:$W$56,0),0,1,1) -> AK | Y34: 1637 | AB34: =OFFSET(Map_Data!$U$1,MATCH(X34,Map_Data!$E$2:$E$53,0),$B$4,1,1) -> 7.4 | AD34: 30 | AE34: 29.5 | AF34: 37000 | AG34: =RANK(AF34,$AF$5:$AF$56,0)+COUNTIF($AF$5:AF34,AF34)-1 -> 42 | AH34: =OFFSET(Map_Data!$D$1,MATCH(Model!AD34,Model!$AG$5:$AG$56,0),0,1,1) -> Utah | AI34: 85217 | AJ34: =OFFSET(Map_Data!$N$1,MATCH(AH34,Map_Data!$D$2:$D$53,0),Model!$B$4,1,1) -> 73211 | AK34: =OFFSET(Map_Data!$H$1,MATCH(AH34,Map_Data!$D$2:$D$53,0),Model!$B$4,1,1) -> 124454000000
U35: 31 | V35: 3936 | W35: =RANK(V35,$V$5:$V$56,0)+COUNTIF($V$5:V35,V35)-1 -> 17 | X35: =OFFSET(Map_Data!$E$1,MATCH(Model!U35,Model!$W$5:$W$56,0),0,1,1) -> PR | Y35: 1607 | AB35: =OFFSET(Map_Data!$U$1,MATCH(X35,Map_Data!$E$2:$E$53,0),$B$4,1,1) -> 16.2 | AD35: 31 | AE35: 30.5 | AF35: 140194 | AG35: =RANK(AF35,$AF$5:$AF$56,0)+COUNTIF($AF$5:AF35,AF35)-1 -> 18 | AH35: =OFFSET(Map_Data!$D$1,MATCH(Model!AD35,Model!$AG$5:$AG$56,0),0,1,1) -> Kansas | AI35: 83640 | AJ35: =OFFSET(Map_Data!$N$1,MATCH(AH35,Map_Data!$D$2:$D$53,0),Model!$B$4,1,1) -> 94180 | AK35: =OFFSET(Map_Data!$H$1,MATCH(AH35,Map_Data!$D$2:$D$53,0),Model!$B$4,1,1) -> 134767000000
U36: 32 | V36: 255 | W36: =RANK(V36,$V$5:$V$56,0)+COUNTIF($V$5:V36,V36)-1 -> 46 | X36: =OFFSET(Map_Data!$E$1,MATCH(Model!U36,Model!$W$5:$W$56,0),0,1,1) -> AL | Y36: 1567 | AB36: =OFFSET(Map_Data!$U$1,MATCH(X36,Map_Data!$E$2:$E$53,0),$B$4,1,1) -> 7.3 | AD36: 32 | AE36: 31.5 | AF36: 62130 | AG36: =RANK(AF36,$AF$5:$AF$56,0)+COUNTIF($AF$5:AF36,AF36)-1 -> 36 | AH36: =OFFSET(Map_Data!$D$1,MATCH(Model!AD36,Model!$AG$5:$AG$56,0),0,1,1) -> Connecticut | AI36: 71502 | AJ36: =OFFSET(Map_Data!$N$1,MATCH(AH36,Map_Data!$D$2:$D$53,0),Model!$B$4,1,1) -> 91295 | AK36: =OFFSET(Map_Data!$H$1,MATCH(AH36,Map_Data!$D$2:$D$53,0),Model!$B$4,1,1) -> 225409000000
U37: 33 | V37: 8784 | W37: =RANK(V37,$V$5:$V$56,0)+COUNTIF($V$5:V37,V37)-1 -> 8 | X37: =OFFSET(Map_Data!$E$1,MATCH(Model!U37,Model!$W$5:$W$56,0),0,1,1) -> OR | Y37: =LARGE(ActiveDataSet,U37) -> 1326 | AB37: =OFFSET(Map_Data!$U$1,MATCH(X37,Map_Data!$E$2:$E$53,0),$B$4,1,1) -> 9.2 | AD37: 33 | AE37: 32.5 | AF37: 282209 | AG37: =RANK(AF37,$AF$5:$AF$56,0)+COUNTIF($AF$5:AF37,AF37)-1 -> 4 | AH37: =OFFSET(Map_Data!$D$1,MATCH(Model!AD37,Model!$AG$5:$AG$56,0),0,1,1) -> Iowa | AI37: 70405 | AJ37: =OFFSET(Map_Data!$N$1,MATCH(AH37,Map_Data!$D$2:$D$53,0),Model!$B$4,1,1) -> 74516 | AK37: =OFFSET(Map_Data!$H$1,MATCH(AH37,Map_Data!$D$2:$D$53,0),Model!$B$4,1,1) -> 146057000000
U38: 34 | V38: 4572 | W38: =RANK(V38,$V$5:$V$56,0)+COUNTIF($V$5:V38,V38)-1 -> 15 | X38: =OFFSET(Map_Data!$E$1,MATCH(Model!U38,Model!$W$5:$W$56,0),0,1,1) -> WY | Y38: 1280 | AB38: =OFFSET(Map_Data!$U$1,MATCH(X38,Map_Data!$E$2:$E$53,0),$B$4,1,1) -> 5.8 | AD38: 34 | AE38: 33.5 | AF38: 265291 | AG38: =RANK(AF38,$AF$5:$AF$56,0)+COUNTIF($AF$5:AF38,AF38)-1 -> 6 | AH38: =OFFSET(Map_Data!$D$1,MATCH(Model!AD38,Model!$AG$5:$AG$56,0),0,1,1) -> Arkansas | AI38: 69845 | AJ38: =OFFSET(Map_Data!$N$1,MATCH(AH38,Map_Data!$D$2:$D$53,0),Model!$B$4,1,1) -> 77226 | AK38: =OFFSET(Map_Data!$H$1,MATCH(AH38,Map_Data!$D$2:$D$53,0),Model!$B$4,1,1) -> 106557000000
U39: 35 | V39: 204 | W39: =RANK(V39,$V$5:$V$56,0)+COUNTIF($V$5:V39,V39)-1 -> 47 | X39: =OFFSET(Map_Data!$E$1,MATCH(Model!U39,Model!$W$5:$W$56,0),0,1,1) -> CT | Y39: 1189 | AB39: =OFFSET(Map_Data!$U$1,MATCH(X39,Map_Data!$E$2:$E$53,0),$B$4,1,1) -> 8.3 | AD39: 35 | AE39: 34.5 | AF39: 32510 | AG39: =RANK(AF39,$AF$5:$AF$56,0)+COUNTIF($AF$5:AF39,AF39)-1 -> 47 | AH39: =OFFSET(Map_Data!$D$1,MATCH(Model!AD39,Model!$AG$5:$AG$56,0),0,1,1) -> Mississippi | AI39: 68511 | AJ39: =OFFSET(Map_Data!$N$1,MATCH(AH39,Map_Data!$D$2:$D$53,0),Model!$B$4,1,1) -> 68597 | AK39: =OFFSET(Map_Data!$H$1,MATCH(AH39,Map_Data!$D$2:$D$53,0),Model!$B$4,1,1) -> 97533000000
U40: 36 | V40: 0 | W40: =RANK(V40,$V$5:$V$56,0)+COUNTIF($V$5:V40,V40)-1 -> 52 | X40: =OFFSET(Map_Data!$E$1,MATCH(Model!U40,Model!$W$5:$W$56,0),0,1,1) -> NE | Y40: 1176 | AB40: =OFFSET(Map_Data!$U$1,MATCH(X40,Map_Data!$E$2:$E$53,0),$B$4,1,1) -> 4.2 | AD40: 36 | AE40: 35.5 | AF40: 191778 | AG40: =RANK(AF40,$AF$5:$AF$56,0)+COUNTIF($AF$5:AF40,AF40)-1 -> 13 | AH40: =OFFSET(Map_Data!$D$1,MATCH(Model!AD40,Model!$AG$5:$AG$56,0),0,1,1) -> New Mexico | AI40: 62130 | AJ40: =OFFSET(Map_Data!$N$1,MATCH(AH40,Map_Data!$D$2:$D$53,0),Model!$B$4,1,1) -> 61431 | AK40: =OFFSET(Map_Data!$H$1,MATCH(AH40,Map_Data!$D$2:$D$53,0),Model!$B$4,1,1) -> 79555000000
U41: 37 | V41: 2333 | W41: =RANK(V41,$V$5:$V$56,0)+COUNTIF($V$5:V41,V41)-1 -> 21 | X41: =OFFSET(Map_Data!$E$1,MATCH(Model!U41,Model!$W$5:$W$56,0),0,1,1) -> IA | Y41: 1146 | AB41: =OFFSET(Map_Data!$U$1,MATCH(X41,Map_Data!$E$2:$E$53,0),$B$4,1,1) -> 5.5 | AD41: 37 | AE41: 36.5 | AF41: 108878 | AG41: =RANK(AF41,$AF$5:$AF$56,0)+COUNTIF($AF$5:AF41,AF41)-1 -> 27 | AH41: =OFFSET(Map_Data!$D$1,MATCH(Model!AD41,Model!$AG$5:$AG$56,0),0,1,1) -> Idaho | AI41: 60336 | AJ41: =OFFSET(Map_Data!$N$1,MATCH(AH41,Map_Data!$D$2:$D$53,0),Model!$B$4,1,1) -> 57831 | AK41: =OFFSET(Map_Data!$H$1,MATCH(AH41,Map_Data!$D$2:$D$53,0),Model!$B$4,1,1) -> 57096000000
U42: 38 | V42: 1326 | W42: =RANK(V42,$V$5:$V$56,0)+COUNTIF($V$5:V42,V42)-1 -> 33 | X42: =OFFSET(Map_Data!$E$1,MATCH(Model!U42,Model!$W$5:$W$56,0),0,1,1) -> HI | Y42: 1044 | AB42: =OFFSET(Map_Data!$U$1,MATCH(X42,Map_Data!$E$2:$E$53,0),$B$4,1,1) -> 6.4 | AD42: 38 | AE42: 37.5 | AF42: 127906 | AG42: =RANK(AF42,$AF$5:$AF$56,0)+COUNTIF($AF$5:AF42,AF42)-1 -> 21 | AH42: =OFFSET(Map_Data!$D$1,MATCH(Model!AD42,Model!$AG$5:$AG$56,0),0,1,1) -> Hawaii | AI42: 57542 | AJ42: =OFFSET(Map_Data!$N$1,MATCH(AH42,Map_Data!$D$2:$D$53,0),Model!$B$4,1,1) -> 61940 | AK42: =OFFSET(Map_Data!$H$1,MATCH(AH42,Map_Data!$D$2:$D$53,0),Model!$B$4,1,1) -> 70006000000
U43: 39 | V43: 14292 | W43: =RANK(V43,$V$5:$V$56,0)+COUNTIF($V$5:V43,V43)-1 -> 3 | X43: =OFFSET(Map_Data!$E$1,MATCH(Model!U43,Model!$W$5:$W$56,0),0,1,1) -> MS | Y43: 691 | AB43: =OFFSET(Map_Data!$U$1,MATCH(X43,Map_Data!$E$2:$E$53,0),$B$4,1,1) -> 9.8 | AD43: 39 | AE43: 38.5 | AF43: 234291 | AG43: =RANK(AF43,$AF$5:$AF$56,0)+COUNTIF($AF$5:AF43,AF43)-1 -> 8 | AH43: =OFFSET(Map_Data!$D$1,MATCH(Model!AD43,Model!$AG$5:$AG$56,0),0,1,1) -> Nebraska | AI43: 52070 | AJ43: =OFFSET(Map_Data!$N$1,MATCH(AH43,Map_Data!$D$2:$D$53,0),Model!$B$4,1,1) -> 52809 | AK43: =OFFSET(Map_Data!$H$1,MATCH(AH43,Map_Data!$D$2:$D$53,0),Model!$B$4,1,1) -> 96230000000
U44: 40 | V44: 369 | W44: =RANK(V44,$V$5:$V$56,0)+COUNTIF($V$5:V44,V44)-1 -> 43 | X44: =OFFSET(Map_Data!$E$1,MATCH(Model!U44,Model!$W$5:$W$56,0),0,1,1) -> UT | Y44: 691 | AB44: =OFFSET(Map_Data!$U$1,MATCH(X44,Map_Data!$E$2:$E$53,0),$B$4,1,1) -> 5.9 | AD44: 40 | AE44: 39.5 | AF44: 26769 | AG44: =RANK(AF44,$AF$5:$AF$56,0)+COUNTIF($AF$5:AF44,AF44)-1 -> 50 | AH44: =OFFSET(Map_Data!$D$1,MATCH(Model!AD44,Model!$AG$5:$AG$56,0),0,1,1) -> West Virginia | AI44: 50068 | AJ44: =OFFSET(Map_Data!$N$1,MATCH(AH44,Map_Data!$D$2:$D$53,0),Model!$B$4,1,1) -> 45956 | AK44: =OFFSET(Map_Data!$H$1,MATCH(AH44,Map_Data!$D$2:$D$53,0),Model!$B$4,1,1) -> 66109000000
U45: 41 | V45: 3826 | W45: =RANK(V45,$V$5:$V$56,0)+COUNTIF($V$5:V45,V45)-1 -> 18 | X45: =OFFSET(Map_Data!$E$1,MATCH(Model!U45,Model!$W$5:$W$56,0),0,1,1) -> KS | Y45: 657 | AB45: =OFFSET(Map_Data!$U$1,MATCH(X45,Map_Data!$E$2:$E$53,0),$B$4,1,1) -> 6.1 | AD45: 41 | AE45: 40.5 | AF45: 157644 | AG45: =RANK(AF45,$AF$5:$AF$56,0)+COUNTIF($AF$5:AF45,AF45)-1 -> 15 | AH45: =OFFSET(Map_Data!$D$1,MATCH(Model!AD45,Model!$AG$5:$AG$56,0),0,1,1) -> District of Columbia | AI45: 48066 | AJ45: =OFFSET(Map_Data!$N$1,MATCH(AH45,Map_Data!$D$2:$D$53,0),Model!$B$4,1,1) -> 49732 | AK45: =OFFSET(Map_Data!$H$1,MATCH(AH45,Map_Data!$D$2:$D$53,0),Model!$B$4,1,1) -> 107201000000
U46: 42 | V46: 34 | W46: =RANK(V46,$V$5:$V$56,0)+COUNTIF($V$5:V46,V46)-1 -> 50 | X46: =OFFSET(Map_Data!$E$1,MATCH(Model!U46,Model!$W$5:$W$56,0),0,1,1) -> DC | Y46: 587 | AB46: =OFFSET(Map_Data!$U$1,MATCH(X46,Map_Data!$E$2:$E$53,0),$B$4,1,1) -> 9.7 | AD46: 42 | AE46: 41.5 | AF46: 27506 | AG46: =RANK(AF46,$AF$5:$AF$56,0)+COUNTIF($AF$5:AF46,AF46)-1 -> 49 | AH46: =OFFSET(Map_Data!$D$1,MATCH(Model!AD46,Model!$AG$5:$AG$56,0),0,1,1) -> New Hampshire | AI46: 37000 | AJ46: =OFFSET(Map_Data!$N$1,MATCH(AH46,Map_Data!$D$2:$D$53,0),Model!$B$4,1,1) -> 43277 | AK46: =OFFSET(Map_Data!$H$1,MATCH(AH46,Map_Data!$D$2:$D$53,0),Model!$B$4,1,1) -> 63333000000
U47: 43 | V47: 6468 | W47: =RANK(V47,$V$5:$V$56,0)+COUNTIF($V$5:V47,V47)-1 -> 12 | X47: =OFFSET(Map_Data!$E$1,MATCH(Model!U47,Model!$W$5:$W$56,0),0,1,1) -> RI | Y47: 369 | AB47: =OFFSET(Map_Data!$U$1,MATCH(X47,Map_Data!$E$2:$E$53,0),$B$4,1,1) -> 10.9 | AD47: 43 | AE47: 42.5 | AF47: 170969 | AG47: =RANK(AF47,$AF$5:$AF$56,0)+COUNTIF($AF$5:AF47,AF47)-1 -> 14 | AH47: =OFFSET(Map_Data!$D$1,MATCH(Model!AD47,Model!$AG$5:$AG$56,0),0,1,1) -> Alaska | AI47: 35084 | AJ47: =OFFSET(Map_Data!$N$1,MATCH(AH47,Map_Data!$D$2:$D$53,0),Model!$B$4,1,1) -> 88850 | AK47: =OFFSET(Map_Data!$H$1,MATCH(AH47,Map_Data!$D$2:$D$53,0),Model!$B$4,1,1) -> 51237000000
U48: 44 | V48: 11987 | W48: =RANK(V48,$V$5:$V$56,0)+COUNTIF($V$5:V48,V48)-1 -> 5 | X48: =OFFSET(Map_Data!$E$1,MATCH(Model!U48,Model!$W$5:$W$56,0),0,1,1) -> ID | Y48: 312 | AB48: =OFFSET(Map_Data!$U$1,MATCH(X48,Map_Data!$E$2:$E$53,0),$B$4,1,1) -> 7.8 | AD48: 44 | AE48: 43.5 | AF48: 514726 | AG48: =RANK(AF48,$AF$5:$AF$56,0)+COUNTIF($AF$5:AF48,AF48)-1 -> 1 | AH48: =OFFSET(Map_Data!$D$1,MATCH(Model!AD48,Model!$AG$5:$AG$56,0),0,1,1) -> Delaware | AI48: 33912 | AJ48: =OFFSET(Map_Data!$N$1,MATCH(AH48,Map_Data!$D$2:$D$53,0),Model!$B$4,1,1) -> 26631 | AK48: =OFFSET(Map_Data!$H$1,MATCH(AH48,Map_Data!$D$2:$D$53,0),Model!$B$4,1,1) -> 64377000000
U49: 45 | V49: 691 | W49: =RANK(V49,$V$5:$V$56,0)+COUNTIF($V$5:V49,V49)-1 -> 40 | X49: =OFFSET(Map_Data!$E$1,MATCH(Model!U49,Model!$W$5:$W$56,0),0,1,1) -> DE | Y49: 263 | AB49: =OFFSET(Map_Data!$U$1,MATCH(X49,Map_Data!$E$2:$E$53,0),$B$4,1,1) -> 7.2 | AD49: 45 | AE49: 44.5 | AF49: 85217 | AG49: =RANK(AF49,$AF$5:$AF$56,0)+COUNTIF($AF$5:AF49,AF49)-1 -> 30 | AH49: =OFFSET(Map_Data!$D$1,MATCH(Model!AD49,Model!$AG$5:$AG$56,0),0,1,1) -> Maine | AI49: 33818 | AJ49: =OFFSET(Map_Data!$N$1,MATCH(AH49,Map_Data!$D$2:$D$53,0),Model!$B$4,1,1) -> 33729 | AK49: =OFFSET(Map_Data!$H$1,MATCH(AH49,Map_Data!$D$2:$D$53,0),Model!$B$4,1,1) -> 52489000000
U50: 46 | V50: 68 | W50: =RANK(V50,$V$5:$V$56,0)+COUNTIF($V$5:V50,V50)-1 -> 49 | X50: =OFFSET(Map_Data!$E$1,MATCH(Model!U50,Model!$W$5:$W$56,0),0,1,1) -> NM | Y50: 255 | AB50: =OFFSET(Map_Data!$U$1,MATCH(X50,Map_Data!$E$2:$E$53,0),$B$4,1,1) -> 7.2 | AD50: 46 | AE50: 45.5 | AF50: 20463 | AG50: =RANK(AF50,$AF$5:$AF$56,0)+COUNTIF($AF$5:AF50,AF50)-1 -> 52 | AH50: =OFFSET(Map_Data!$D$1,MATCH(Model!AD50,Model!$AG$5:$AG$56,0),0,1,1) -> Montana | AI50: 33553 | AJ50: =OFFSET(Map_Data!$N$1,MATCH(AH50,Map_Data!$D$2:$D$53,0),Model!$B$4,1,1) -> 31204 | AK50: =OFFSET(Map_Data!$H$1,MATCH(AH50,Map_Data!$D$2:$D$53,0),Model!$B$4,1,1) -> 38933000000
U51: 47 | V51: 5425 | W51: =RANK(V51,$V$5:$V$56,0)+COUNTIF($V$5:V51,V51)-1 -> 13 | X51: =OFFSET(Map_Data!$E$1,MATCH(Model!U51,Model!$W$5:$W$56,0),0,1,1) -> ND | Y51: 204 | AB51: =OFFSET(Map_Data!$U$1,MATCH(X51,Map_Data!$E$2:$E$53,0),$B$4,1,1) -> 3.1 | AD51: 47 | AE51: 46.5 | AF51: 257130 | AG51: =RANK(AF51,$AF$5:$AF$56,0)+COUNTIF($AF$5:AF51,AF51)-1 -> 7 | AH51: =OFFSET(Map_Data!$D$1,MATCH(Model!AD51,Model!$AG$5:$AG$56,0),0,1,1) -> North Dakota | AI51: 32510 | AJ51: =OFFSET(Map_Data!$N$1,MATCH(AH51,Map_Data!$D$2:$D$53,0),Model!$B$4,1,1) -> 26563 | AK51: =OFFSET(Map_Data!$H$1,MATCH(AH51,Map_Data!$D$2:$D$53,0),Model!$B$4,1,1) -> 39992000000
U52: 48 | V52: 1979 | W52: =RANK(V52,$V$5:$V$56,0)+COUNTIF($V$5:V52,V52)-1 -> 25 | X52: =OFFSET(Map_Data!$E$1,MATCH(Model!U52,Model!$W$5:$W$56,0),0,1,1) -> MT | Y52: 101 | AB52: =OFFSET(Map_Data!$U$1,MATCH(X52,Map_Data!$E$2:$E$53,0),$B$4,1,1) -> 6.2 | AD52: 48 | AE52: 47.5 | AF52: 208507 | AG52: =RANK(AF52,$AF$5:$AF$56,0)+COUNTIF($AF$5:AF52,AF52)-1 -> 11 | AH52: =OFFSET(Map_Data!$D$1,MATCH(Model!AD52,Model!$AG$5:$AG$56,0),0,1,1) -> Wyoming | AI52: 30651 | AJ52: =OFFSET(Map_Data!$N$1,MATCH(AH52,Map_Data!$D$2:$D$53,0),Model!$B$4,1,1) -> 31991 | AK52: =OFFSET(Map_Data!$H$1,MATCH(AH52,Map_Data!$D$2:$D$53,0),Model!$B$4,1,1) -> 38190000000
U53: 49 | V53: 7548 | W53: =RANK(V53,$V$5:$V$56,0)+COUNTIF($V$5:V53,V53)-1 -> 9 | X53: =OFFSET(Map_Data!$E$1,MATCH(Model!U53,Model!$W$5:$W$56,0),0,1,1) -> VT | Y53: 68 | AB53: =OFFSET(Map_Data!$U$1,MATCH(X53,Map_Data!$E$2:$E$53,0),$B$4,1,1) -> 5.1 | AD53: 49 | AE53: 48.5 | AF53: 50068 | AG53: =RANK(AF53,$AF$5:$AF$56,0)+COUNTIF($AF$5:AF53,AF53)-1 -> 40 | AH53: =OFFSET(Map_Data!$D$1,MATCH(Model!AD53,Model!$AG$5:$AG$56,0),0,1,1) -> South Dakota | AI53: 27506 | AJ53: =OFFSET(Map_Data!$N$1,MATCH(AH53,Map_Data!$D$2:$D$53,0),Model!$B$4,1,1) -> 29383 | AK53: =OFFSET(Map_Data!$H$1,MATCH(AH53,Map_Data!$D$2:$D$53,0),Model!$B$4,1,1) -> 41667000000
U54: 50 | V54: 2534 | W54: =RANK(V54,$V$5:$V$56,0)+COUNTIF($V$5:V54,V54)-1 -> 20 | X54: =OFFSET(Map_Data!$E$1,MATCH(Model!U54,Model!$W$5:$W$56,0),0,1,1) -> SD | Y54: 34 | AB54: =OFFSET(Map_Data!$U$1,MATCH(X54,Map_Data!$E$2:$E$53,0),$B$4,1,1) -> 4.4 | AD54: 50 | AE54: 49.5 | AF54: 109439 | AG54: =RANK(AF54,$AF$5:$AF$56,0)+COUNTIF($AF$5:AF54,AF54)-1 -> 26 | AH54: =OFFSET(Map_Data!$D$1,MATCH(Model!AD54,Model!$AG$5:$AG$56,0),0,1,1) -> Rhode Island | AI54: 26769 | AJ54: =OFFSET(Map_Data!$N$1,MATCH(AH54,Map_Data!$D$2:$D$53,0),Model!$B$4,1,1) -> 31065 | AK54: =OFFSET(Map_Data!$H$1,MATCH(AH54,Map_Data!$D$2:$D$53,0),Model!$B$4,1,1) -> 49423000000
U55: 51 | V55: 1280 | W55: =RANK(V55,$V$5:$V$56,0)+COUNTIF($V$5:V55,V55)-1 -> 34 | X55: =OFFSET(Map_Data!$E$1,MATCH(Model!U55,Model!$W$5:$W$56,0),0,1,1) -> ME | Y55: 0 | AB55: =OFFSET(Map_Data!$U$1,MATCH(X55,Map_Data!$E$2:$E$53,0),$B$4,1,1) -> 7.4 | AD55: 51 | AE55: 50.5 | AF55: 30651 | AG55: =RANK(AF55,$AF$5:$AF$56,0)+COUNTIF($AF$5:AF55,AF55)-1 -> 48 | AH55: =OFFSET(Map_Data!$D$1,MATCH(Model!AD55,Model!$AG$5:$AG$56,0),0,1,1) -> Puerto Rico | AI55: 22649 | AJ55: =OFFSET(Map_Data!$N$1,MATCH(AH55,Map_Data!$D$2:$D$53,0),Model!$B$4,1,1) -> 76218 | AK55: =OFFSET(Map_Data!$H$1,MATCH(AH55,Map_Data!$D$2:$D$53,0),Model!$B$4,1,1) -> 98757000000
U56: 52 | V56: 1607 | W56: =RANK(V56,$V$5:$V$56,0)+COUNTIF($V$5:V56,V56)-1 -> 31 | X56: =OFFSET(Map_Data!$E$1,MATCH(Model!U56,Model!$W$5:$W$56,0),0,1,1) -> OH | Y56: =LARGE(ActiveDataSet,U56) -> 0 | AB56: =OFFSET(Map_Data!$U$1,MATCH(X56,Map_Data!$E$2:$E$53,0),$B$4,1,1) -> 7.9 | AD56: 52 | AE56: 51.5 | AF56: 22649 | AG56: =RANK(AF56,$AF$5:$AF$56,0)+COUNTIF($AF$5:AF56,AF56)-1 -> 51 | AH56: =OFFSET(Map_Data!$D$1,MATCH(Model!AD56,Model!$AG$5:$AG$56,0),0,1,1) -> Vermont | AI56: 20463 | AJ56: =OFFSET(Map_Data!$N$1,MATCH(AH56,Map_Data!$D$2:$D$53,0),Model!$B$4,1,1) -> 18172 | AK56: =OFFSET(Map_Data!$H$1,MATCH(AH56,Map_Data!$D$2:$D$53,0),Model!$B$4,1,1) -> 26545000000

Sheet Map_Data
A1: Dataset ID # | B1: Dataset Name | C1: State ID # | D1: State Name | E1: State Code | F1: 2010 | G1: 2011 | H1: 2012 | I1: GSP 2010 | J1: GSP 2011 | K1: GSP 2012 | L1: Influx 2010 | M1: Influx 2011 | N1: Influx 2012 | O1: Outflow 2010 | P1: Outflow 2011 | Q1: Outflow 2012 | R1: Deg C | S1: Internal 2010 | T1: Internal 2011 | U1: Internal 2012 | V1: ER % 2010 | W1: ER % 2011 | X1: ER % 2012
A2: 1 | B2: Migration in 2010 | C2: 1 | D2: Alabama | E2: AL | F2: =TRANSPOSE(OFFSET('Raw_Data-1'!$J$3,Model!$B$5,1,1,52)) -> 1289 | G2: =TRANSPOSE(OFFSET('Raw_Data-1'!$J$3,52+Model!$B$5,1,1,52)) -> 1567 | H2: =TRANSPOSE(OFFSET('Raw_Data-1'!$J$3,104+Model!$B$5,1,1,52)) -> 3705 | I2: 172842000000 | J2: 178533000000 | K2: 183547000000 | L2: 108723 | M2: 117726 | N2: 104600 | O2: 99221 | P2: 106806 | Q2: 109210 | R2: 17.09490741 | S2: 13.1190151 | T2: 12.39744015 | U2: 12.39028064 | V2: 8.9 | W2: 7.3 | X2: 6.8 | Z2: HELP
A3: 2 | B3: Migration in 2011 | C3: 2 | D3: Alaska | E3: AK | F3: 1556 | G3: 1637 | H3: 2207 | I3: 47910000000 | J3: 51237000000 | K3: 51859000000 | L3: 36326 | M3: 35084 | N3: 33415 | O3: 94692 | P3: 88850 | Q3: 84068 | R3: 2.305555556 | S3: 13.63891125 | T3: 14.08502139 | U3: 12.56444246 | V3: 7.8 | W3: 7.4 | X3: 6.6
A4: 3 | B4: Migration in 2012 | C4: 3 | D4: Arizona | E4: AZ | F4: 4715 | G4: 6763 | H4: 4929 | I4: 247329000000 | J4: 255989000000 | K4: 266891000000 | L4: 222725 | M4: 222877 | N4: 232457 | O4: 176768 | P4: 211816 | Q4: 206842 | R4: 15.725 | S4: 15.8222779 | T4: 16.0624438 | U4: 14.7442064 | V4: 10 | W4: 8.7 | X4: 8.1
A5: 4 | B5: GSP 2010 | C5: 4 | D5: Arkansas | E5: AR | F5: 434 | G5: 1952 | H5: 884 | I5: 103170000000 | J5: 106557000000 | K5: 109557000000 | L5: 79127 | M5: 69845 | N5: 76948 | O5: 64264 | P5: 77226 | Q5: 64967 | R5: 15.78935185 | S5: 14.29894499 | T5: 13.96224221 | U5: 12.80765481 | V5: 8.1 | W5: 7.6 | X5: 7.5
A6: 5 | B6: GSP 2011 | C6: 5 | D6: California | E6: CA | F6: 8997 | G6: 9032 | H6: 8995 | I6: 1845249000000 | J6: 1908985000000 | K6: 2003479000000 | L6: 444749 | M6: 468428 | N6: 493641 | O6: 573988 | P6: 562343 | Q6: 566986 | R6: 15.22314815 | S6: 14.66701557 | T6: 14.16117347 | U6: 13.431595 | V6: 12.2 | W6: 11.2 | X6: 9.7
A7: 6 | B7: GSP 2012 | C7: 6 | D7: Colorado | E7: CO | F7: 2859 | G7: 2690 | H7: 3180 | I7: 254551000000 | J7: 264733000000 | K7: 274048000000 | L7: 186366 | M7: 202124 | N7: 205060 | O7: 140620 | P7: 160623 | Q7: 161530 | R7: 7.303240741 | S7: 14.54260964 | T7: 15.11818594 | U7: 14.67465296 | V7: 9 | W7: 8.3 | X7: 7.3
A8: 7 | B8: Influx 2010 | C8: 7 | D8: Connecticut | E8: CT | F8: 1307 | G8: 1189 | H8: 1355 | I8: 221767000000 | J8: 225409000000 | K8: 229317000000 | L8: 77333 | M8: 71502 | N8: 80311 | O8: 89360 | P8: 91295 | Q8: 87023 | R8: 9.471759259 | S8: 9.683418871 | T8: 8.929634705 | U8: 9.420195487 | V8: 9.4 | W8: 8.3 | X8: 8.1
A9: 8 | B9: Influx 2011 | C9: 8 | D9: Delaware | E9: DE | F9: 15 | G9: 263 | H9: 1079 | I9: 62832000000 | J9: 64377000000 | K9: 65984000000 | L9: 30759 | M9: 33912 | N9: 34757 | O9: 30055 | P9: 26631 | Q9: 25149 | R9: 12.92962963 | S9: 10.11460848 | T9: 9.268524845 | U9: 9.486573657 | V9: 7.7 | W9: 7.2 | X9: 7
A10: 9 | B10: Influx 2012 | C10: 9 | D10: District of Columbia | E10: DC | F10: 972 | G10: 587 | H10: 985 | I10: 103745000000 | J10: 107201000000 | K10: 109793000000 | L10: 51244 | M10: 48066 | N10: 53830 | O10: 56052 | P10: 49732 | Q10: 59513 | R10: 12.34305556 | S10: 10.68560043 | T10: 10.87608403 | U10: 9.921148697 | V10: 10.1 | W10: 9.7 | X10: 8.7
A11: 10 | B11: Outflow 2010 | C11: 10 | D11: Florida | E11: FL | F11: 16495 | G11: 16492 | H11: 16366 | I11: 727972000000 | J11: 746439000000 | K11: 777164000000 | L11: 482889 | M11: 498597 | N11: 537148 | O11: 427853 | P11: 437202 | Q11: 428325 | R11: 21.51527778 | S11: 13.18952573 | T11: 13.0102935 | U11: 12.45270897 | V11: 11.1 | W11: 9.5 | X11: 8.1
A12: 11 | B12: Outflow 2011 | C12: 11 | D12: Georgia | E12: GA | F12: 9502 | G12: 4290 | H12: 8052 | I12: 402006000000 | J12: 417438000000 | K12: 433569000000 | L12: 249459 | M12: 271077 | N12: 277466 | O12: 244992 | P12: 248892 | Q12: 252262 | R12: 17.50648148 | S12: 13.33593819 | T12: 13.2934922 | U12: 12.61977307 | V12: 10.2 | W12: 9.5 | X12: 8.7
A13: 12 | B13: Outflow 2012 | C13: 12 | D13: Hawaii | E13: HI | F13: 436 | G13: 1044 | H13: 1198 | I13: 67274000000 | J13: 70006000000 | K13: 72424000000 | L13: 53581 | M13: 57542 | N13: 55145 | O13: 49218 | P13: 61940 | Q13: 61509 | R13: 25.12962963 | S13: 9.976795214 | T13: 9.038625547 | U13: 9.806655553 | V13: 6.6 | W13: 6.4 | X13: 5
A14: 13 | B14: Deg C | C14: 13 | D14: Idaho | E14: ID | F14: 564 | G14: 312 | H14: 412 | I14: 55639000000 | J14: 57096000000 | K14: 58243000000 | L14: 55638 | M14: 60336 | N14: 59283 | O14: 53122 | P14: 57831 | Q14: 55191 | R14: 6.881481481 | S14: 13.49300146 | T14: 13.36426361 | U14: 13.35957982 | V14: 8.7 | W14: 7.8 | X14: 6.8
A15: 14 | B15: Internal 2010 | C15: 14 | D15: Illinois | E15: IL | F15: 7092 | G15: 7027 | H15: 9510 | I15: 642769000000 | J15: 670247000000 | K15: 695238000000 | L15: 203959 | M15: 216204 | N15: 208755 | O15: 277579 | P15: 269008 | Q15: 277953 | R15: 10.96527778 | S15: 11.07658552 | T15: 10.64483573 | U15: 11.3255601 | V15: 9.5 | W15: 9.4 | X15: 9.1
A16: 15 | B16: Internal 2011 | C16: 15 | D16: Indiana | E16: IN | F16: 9438 | G16: 11588 | H16: 13534 | I16: 270739000000 | J16: 284344000000 | K16: 298625000000 | L16: 127353 | M16: 127874 | N16: 134137 | O16: 130170 | P16: 143228 | Q16: 144597 | R16: 10.90925926 | S16: 12.98681094 | T16: 12.57011832 | U16: 12.47049163 | V16: 9.2 | W16: 8.5 | X16: 8
A17: 16 | B17: Internal 2012 | C17: 16 | D17: Iowa | E17: IA | F17: 1270 | G17: 1146 | H17: 1039 | I17: 138378000000 | J17: 146057000000 | K17: 152436000000 | L17: 72557 | M17: 70405 | N17: 75760 | O17: 66922 | P17: 74516 | Q17: 73325 | R17: 8.780555556 | S17: 12.46742092 | T17: 12.23872236 | U17: 11.9565708 | V17: 6.2 | W17: 5.5 | X17: 5
A18: 17 | B18: ER % 2010 | C18: 17 | D18: Kansas | E18: KS | F18: 1016 | G18: 657 | H18: 1166 | I18: 126640000000 | J18: 134767000000 | K18: 138953000000 | L18: 95059 | M18: 83640 | N18: 88284 | O18: 90681 | P18: 94180 | Q18: 93134 | R18: 12.36342593 | S18: 13.19301611 | T18: 12.8029379 | U18: 13.39888118 | V18: 6.9 | W18: 6.1 | X18: 5.6
A19: 18 | B19: ER % 2011 | C19: 18 | D19: Kentucky | E19: KY | F19: 9159 | G19: 12744 | H19: 13227 | I19: 161064000000 | J19: 168019000000 | K19: 173466000000 | L19: 118443 | M19: 110031 | N19: 112787 | O19: 92999 | P19: 99256 | Q19: 103004 | R19: 13.10648148 | S19: 12.09985293 | T19: 11.71701113 | U19: 12.04795702 | V19: 10 | W19: 8.7 | X19: 8.2
A20: 19 | B20: ER % 2012 | C20: 19 | D20: Louisiana | E20: LA | F20: 743 | G20: 1872 | H20: 2214 | I20: 227373000000 | J20: 237389000000 | K20: 243264000000 | L20: 97889 | M20: 99138 | N20: 91215 | O20: 88131 | P20: 86593 | Q20: 95956 | R20: 19.10833333 | S20: 12.20670146 | T20: 11.92155851 | U20: 11.62375707 | V20: 7.7 | W20: 7 | X20: 6.2
C21: 20 | D21: Maine | E21: ME | F21: 291 | G21: 0 | H21: 1189 | I21: 51343000000 | J21: 52489000000 | K21: 53656000000 | L21: 27758 | M21: 33818 | N21: 27523 | O21: 32209 | P21: 33729 | Q21: 38574 | R21: 4.984259259 | S21: 11.1678801 | T21: 11.93935705 | U21: 11.51106807 | V21: 8 | W21: 7.4 | X21: 7
C22: 21 | D22: Maryland | E22: MD | F22: 3828 | G22: 4982 | H22: 5026 | I22: 295981000000 | J22: 305175000000 | K22: 317678000000 | L22: 164484 | M22: 153979 | N22: 154983 | O22: 159866 | P22: 165041 | Q22: 157664 | R22: 12.34305556 | S22: 10.30087715 | T22: 9.61775712 | U22: 9.455439655 | V22: 7.5 | W22: 7 | X22: 6.9
C23: 22 | D23: Massachusetts | E23: MA | F23: 3686 | G23: 2101 | H23: 2189 | I23: 376908000000 | J23: 388575000000 | K23: 403823000000 | L23: 140162 | M23: 139830 | N23: 142577 | O23: 144152 | P23: 145869 | Q23: 158156 | R23: 8.810648148 | S23: 10.88914744 | T23: 10.07575222 | U23: 9.518525627 | V23: 7.9 | W23: 6.9 | X23: 6.9
C24: 23 | D24: Michigan | E24: MI | F24: 15130 | G24: 14330 | H24: 16336 | I24: 367107000000 | J24: 385123000000 | K24: 400504000000 | L24: 116149 | M24: 139158 | N24: 133981 | O24: 178207 | P24: 186505 | Q24: 175733 | R24: 6.893518519 | S24: 13.23380653 | T24: 12.72623338 | U24: 12.96766125 | V24: 11.3 | W24: 9.4 | X24: 8.9
C25: 24 | D25: Minnesota | E25: MN | F25: 2298 | G25: 1788 | H25: 1122 | I25: 268578000000 | J25: 279987000000 | K25: 294729000000 | L25: 89872 | M25: 101029 | N25: 101042 | O25: 104765 | P25: 103253 | Q25: 115946 | R25: 5.088425926 | S25: 12.3553465 | T25: 12.2443759 | U25: 12.28568182 | V25: 7 | W25: 5.8 | X25: 5.4
C26: 25 | D26: Mississippi | E26: MS | F26: 89 | G26: 691 | H26: 1017 | I26: 95763000000 | J26: 97533000000 | K26: 101490000000 | L26: 72321 | M26: 68511 | N26: 73500 | O26: 68363 | P26: 68597 | Q26: 66947 | R26: 17.41481481 | S26: 11.60830887 | T26: 11.31266138 | U26: 11.52788483 | V26: 10.6 | W26: 9.8 | X26: 9.1
C27: 26 | D27: Missouri | E27: MO | F27: 1171 | G27: 2003 | H27: 3026 | I27: 243876000000 | J27: 249546000000 | K27: 258832000000 | L27: 145226 | M27: 149439 | N27: 162930 | O27: 148055 | P27: 138404 | Q27: 142754 | R27: 12.47268519 | S27: 13.28736477 | T27: 13.49040131 | U27: 13.45942053 | V27: 9.2 | W27: 7.6 | X27: 6.8
C28: 27 | D28: Montana | E28: MT | F28: 460 | G28: 101 | H28: 276 | I28: 36521000000 | J28: 38933000000 | K28: 40422000000 | L28: 35630 | M28: 33553 | N28: 37690 | O28: 35870 | P28: 31204 | Q28: 33832 | R28: 5.968055556 | S28: 12.0338434 | T28: 12.3810122 | U28: 12.70290414 | V28: 6.7 | W28: 6.2 | X28: 5.8
C29: 28 | D29: Nebraska | E29: NE | F29: 1531 | G29: 1176 | H29: 1052 | I29: 90910000000 | J29: 96230000000 | K29: 99557000000 | L29: 51290 | M29: 52070 | N29: 43266 | O29: 43531 | P29: 52809 | Q29: 48816 | R29: 9.315277778 | S29: 13.70196988 | T29: 13.93788873 | U29: 13.00614402 | V29: 4.6 | W29: 4.2 | X29: 4
C30: 29 | D30: Nevada | E30: NV | F30: 2240 | G30: 1851 | H30: 907 | I30: 124838000000 | J30: 129421000000 | K30: 133584000000 | L30: 102677 | M30: 110345 | N30: 124285 | O30: 109409 | P30: 115943 | Q30: 98882 | R30: 9.930092593 | S30: 19.39221644 | T30: 17.86670267 | U30: 17.66776258 | V30: 13.8 | W30: 12.4 | X30: 10.6
C31: 30 | D31: New Hampshire | E31: NH | F31: 175 | G31: 1992 | H31: 189 | I31: 61147000000 | J31: 63333000000 | K31: 64697000000 | L31: 39367 | M31: 37000 | N31: 50484 | O31: 38399 | P31: 43277 | Q31: 38696 | R31: 6.558796296 | S31: 10.83033903 | T31: 9.353684446 | U31: 9.556806698 | V31: 5.7 | W31: 5.4 | X31: 5.5
C32: 31 | D32: New Jersey | E32: NJ | F32: 2465 | G32: 3936 | H32: 4703 | I32: 483007000000 | J32: 493175000000 | K32: 508003000000 | L32: 127369 | M32: 140194 | N32: 130223 | O32: 193972 | P32: 216369 | Q32: 219202 | R32: 11.47175926 | S32: 7.8586368 | T32: 7.951649275 | U32: 7.471607515 | V32: 9.5 | W32: 9.2 | X32: 9.1
C33: 32 | D33: New Mexico | E33: NM | F33: 515 | G33: 255 | H33: 1361 | I33: 77686000000 | J33: 79555000000 | K33: 80600000000 | L33: 73605 | M33: 62130 | N33: 54693 | O33: 50438 | P33: 61431 | Q33: 63921 | R33: 11.91064815 | S33: 10.81920562 | T33: 11.1039156 | U33: 10.97949864 | V33: 7.9 | W33: 7.2 | X33: 6.9
C34: 33 | D34: New York | E34: NY | F34: 5988 | G34: 8784 | H34: 8732 | I34: 1136417000000 | J34: 1169436000000 | K34: 1205930000000 | L34: 269427 | M34: 282209 | N34: 270053 | O34: 363139 | P34: 377800 | Q34: 405864 | R34: 7.415740741 | S34: 9.28201438 | T34: 9.123246601 | U34: 8.904006701 | V34: 8.3 | W34: 8.4 | X34: 8.2
C35: 34 | D35: North Carolina | E35: NC | F35: 5985 | G35: 4572 | H35: 5498 | I35: 426875000000 | J35: 436144000000 | K35: 455973000000 | L35: 263256 | M35: 265291 | N35: 273149 | O35: 207025 | P35: 225147 | Q35: 238663 | R35: 15.00324074 | S35: 12.08303505 | T35: 12.16542487 | U35: 11.91931116 | V35: 10.5 | W35: 9.7 | X35: 8.9
C36: 35 | D36: North Dakota | E36: ND | F36: 26 | G36: 204 | H36: 453 | I36: 35357000000 | J36: 39992000000 | K36: 46016000000 | L36: 30100 | M36: 32510 | N36: 38213 | O36: 24450 | P36: 26563 | Q36: 23959 | R36: 4.685185185 | S36: 11.37527905 | T36: 11.82488325 | U36: 12.21939064 | V36: 3.6 | W36: 3.1 | X36: 3
C37: 36 | D37: Ohio | E37: OH | F37: 0 | G37: 0 | H37: 0 | I37: 465679000000 | J37: 490265000000 | K37: 509393000000 | L37: 172633 | M37: 191778 | N37: 196391 | O37: 188013 | P37: 206049 | Q37: 199202 | R37: 10.37777778 | S37: 12.74342945 | T37: 12.48547151 | U37: 12.62252363 | V37: 9.3 | W37: 7.9 | X37: 7.3
C38: 37 | D38: Oklahoma | E38: OK | F38: 1228 | G38: 2333 | H38: 858 | I38: 147649000000 | J38: 156058000000 | K38: 160953000000 | L38: 106511 | M38: 108878 | N38: 108972 | O38: 90616 | P38: 81009 | Q38: 102572 | R38: 15.29907407 | S38: 14.22999012 | T38: 14.12077597 | U38: 14.12288883 | V38: 6.4 | W38: 5.7 | X38: 5.4
C39: 38 | D39: Oregon | E39: OR | F39: 342 | G39: 1326 | H39: 432 | I39: 181523000000 | J39: 188981000000 | K39: 198702000000 | L39: 116700 | M39: 127906 | N39: 118925 | O39: 100185 | P39: 109795 | Q39: 108182 | R39: 9.113888889 | S39: 14.38692275 | T39: 14.34768959 | U39: 14.53475275 | V39: 10.3 | W39: 9.2 | X39: 8.4
C40: 39 | D40: Pennsylvania | E40: PA | F40: 12012 | G40: 14292 | H40: 14147 | I40: 558818000000 | J40: 581256000000 | K40: 600897000000 | L40: 235580 | M40: 234291 | N40: 215500 | O40: 209810 | P40: 215127 | Q40: 237156 | R40: 9.318981481 | S40: 9.852463376 | T40: 9.710680461 | U40: 9.915834276 | V40: 8.1 | W40: 7.8 | X40: 7.9
C41: 40 | D41: Rhode Island | E41: RI | F41: 444 | G41: 369 | H41: 435 | I41: 48572000000 | J41: 49423000000 | K41: 50956000000 | L41: 32059 | M41: 26769 | N41: 33446 | O41: 24948 | P41: 31065 | Q41: 30498 | R41: 10.03842593 | S41: 9.556628032 | T41: 9.777581628 | U41: 9.722477168 | V41: 11.5 | W41: 10.9 | X41: 9.7
C42: 41 | D42: South Carolina | E42: SC | F42: 2479 | G42: 3826 | H42: 2445 | I42: 162292000000 | J42: 168716000000 | K42: 176217000000 | L42: 152441 | M42: 157644 | N42: 156705 | O42: 117569 | P42: 121426 | Q42: 127418 | R42: 16.90046296 | S42: 11.75254768 | T42: 11.8219014 | U42: 12.08746583 | V42: 10.6 | W42: 9.7 | X42: 8.3
C43: 42 | D43: South Dakota | E43: SD | F43: 207 | G43: 34 | H43: 47 | I43: 38297000000 | J43: 41667000000 | K43: 42464000000 | L43: 25777 | M43: 27506 | N43: 26051 | O43: 27915 | P43: 29383 | Q43: 22534 | R43: 7.298611111 | S43: 12.01627078 | T43: 11.62587896 | U43: 14.06965579 | V43: 5 | W43: 4.4 | X43: 4
C44: 43 | D44: Tennessee | E44: TN | F44: 4987 | G44: 6468 | H44: 3542 | I44: 253602000000 | J44: 263626000000 | K44: 277036000000 | L44: 159778 | M44: 170969 | N44: 177098 | O44: 143135 | P44: 154243 | Q44: 163843 | R44: 14.20740741 | S44: 12.75493394 | T44: 12.54535826 | U44: 12.27724787 | V44: 9.7 | W44: 8.5 | X44: 8.1
C45: 44 | D45: Texas | E45: TX | F45: 7465 | G45: 11987 | H45: 11760 | I45: 1226714000000 | J45: 1321005000000 | K45: 1397369000000 | L45: 486558 | M45: 514726 | N45: 507752 | O45: 411641 | P45: 404839 | Q45: 402187 | R45: 18.24027778 | S45: 15.02201989 | T45: 14.40456832 | U45: 14.21942952 | V45: 8.2 | W45: 7.4 | X45: 6.5
C46: 45 | D46: Utah | E46: UT | F46: 485 | G46: 691 | H46: 197 | I46: 118225000000 | J46: 124454000000 | K46: 130486000000 | L46: 77780 | M46: 85217 | N46: 87870 | O46: 75541 | P46: 73211 | Q46: 82165 | R46: 9.241666667 | S46: 14.25847557 | T46: 13.50304572 | U46: 13.33052926 | V46: 7.7 | W46: 5.9 | X46: 4.9
C47: 46 | D47: Vermont | E47: VT | F47: 182 | G47: 68 | H47: 364 | I47: 25809000000 | J47: 26545000000 | K47: 27296000000 | L47: 22529 | M47: 20463 | N47: 24431 | O47: 18380 | P47: 18172 | Q47: 20056 | R47: 6.044444444 | S47: 9.531082741 | T47: 9.772046209 | U47: 9.874174492 | V47: 6.1 | W47: 5.1 | X47: 4.6
C48: 47 | D48: Virginia | E48: VA | F48: 6769 | G48: 5425 | H48: 3193 | I48: 422763000000 | J48: 433611000000 | K48: 445876000000 | L48: 259507 | M48: 257130 | N48: 250653 | O48: 232002 | P48: 229227 | Q48: 238540 | R48: 12.84166667 | S48: 10.97611796 | T48: 11.1266831 | U48: 11.31970274 | V48: 6.7 | W48: 6.2 | X48: 5.7
C49: 48 | D49: Washington | E49: WA | F49: 2567 | G49: 1979 | H49: 2862 | I49: 342702000000 | J49: 357056000000 | K49: 375730000000 | L49: 191784 | M49: 208507 | N49: 215494 | O49: 166162 | P49: 190644 | Q49: 180462 | R49: 9.036111111 | S49: 14.21524349 | T49: 13.63160027 | U49: 13.27356893 | V49: 9.6 | W49: 8.6 | X49: 7.4
C50: 49 | D50: West Virginia | E50: WV | F50: 7814 | G50: 7548 | H50: 7820 | I50: 62732000000 | J50: 66109000000 | K50: 69380000000 | L50: 39609 | M50: 50068 | N50: 47125 | O50: 49349 | P50: 45956 | Q50: 47425 | R50: 10.9537037 | S50: 9.062712193 | T50: 9.379325215 | U50: 9.475390173 | V50: 8.4 | W50: 7.3 | X50: 7.1
C51: 50 | D51: Wisconsin | E51: WI | F51: 1771 | G51: 2534 | H51: 974 | I51: 245415000000 | J51: 253349000000 | K51: 261548000000 | L51: 93065 | M51: 109439 | N51: 99192 | O51: 111240 | P51: 105370 | Q51: 97724 | R51: 6.175 | S51: 12.29891329 | T51: 11.96383065 | U51: 12.25537157 | V51: 7.8 | W51: 7.1 | X51: 6.9
C52: 51 | D52: Wyoming | E52: WY | F52: 144 | G52: 1280 | H52: 202 | I52: 36459000000 | J52: 38190000000 | K52: 38422000000 | L52: 28046 | M52: 30651 | N52: 31149 | O52: 28186 | P52: 31991 | Q52: 32228 | R52: 5.547222222 | S52: 14.76872417 | T52: 11.87198182 | U52: 13.57194761 | V52: 6.5 | W52: 5.8 | X52: 5
C53: 52 | D53: Puerto Rico | E53: PR | F53: 2140 | G53: 1607 | H53: 1403 | I53: 101496000000 | J53: 98757000000 | K53: 97147000000 | L53: 31732 | M53: 22649 | N53: 20044 | O53: 59885 | P53: 76218 | Q53: 74500 | R53: 26.68981481 | S53: 6.734488547 | T53: 6.493604183 | U53: 6.560518928 | V53: 16.3 | W53: 16.2 | X53: 15.2
C54: 53 | D54: United States | E54: US | I54: 14388813000000 | J54: 14959778000000 | K54: 15566077000000 | L54: 6743229 | M54: 6987416 | N54: 7070345 | S54: 12.62410786 | T54: 12.3412347 | U54: 12.15185269 | V54: 9.4 | W54: 8.5 | X54: 7.9

Sheet Sample_Palette
B2: Sample Color Palette
B3: ColorName | C3: NumOfColors | D3: ColorNum | E3: ColorLetter | F3: R | G3: G | H3: B | I3: Sample | L3: Apache-Style Software License for ColorBrewer software and ColorBrewer Color Schemes
B4: GnBu | C4: 2 | D4: 1 | E4: C | F4: 224 | G4: 243 | H4: 219
D5: 2 | E5: I | F5: 67 | G5: 162 | H5: 202 | L5: Copyright (c) 2002 Cynthia Brewer, Mark Harrower, and The Pennsylvania State University.
C6: 3 | D6: 1 | E6: C | F6: 224 | G6: 243 | H6: 219
D7: 2 | E7: F | F7: 168 | G7: 221 | H7: 181 | L7: Licensed under the Apache License, Version 2.0 (the "License"); you may not use this file except in compliance with the License.
D8: 3 | E8: I | F8: 67 | G8: 162 | H8: 202 | L8: You may obtain a copy of the License at
C9: 4 | D9: 1 | E9: B | F9: 240 | G9: 249 | H9: 232
D10: 2 | E10: E | F10: 186 | G10: 228 | H10: 188 | L10: http://www.apache.org/licenses/LICENSE-2.0
D11: 3 | E11: G | F11: 123 | G11: 204 | H11: 196
D12: 4 | E12: J | F12: 43 | G12: 140 | H12: 190 | L12: Unless required by applicable law or agreed to in writing, software distributed under the License is distributed on an "AS IS" BASIS,
C13: 5 | D13: 1 | E13: B | F13: 240 | G13: 249 | H13: 232 | L13: WITHOUT WARRANTIES OR CONDITIONS OF ANY KIND, either express or implied.
D14: 2 | E14: E | F14: 186 | G14: 228 | H14: 188 | L14: See the License for the specific language governing permissions and limitations under the License.
D15: 3 | E15: G | F15: 123 | G15: 204 | H15: 196
D16: 4 | E16: I | F16: 67 | G16: 162 | H16: 202
D17: 5 | E17: K | F17: 8 | G17: 104 | H17: 172 | L17: Redistribution and use in source and binary forms, with or without modification, are permitted provided that the following conditions are met:
C18: 6 | D18: 1 | E18: B | F18: 240 | G18: 249 | H18: 232 | L18: 1. Redistributions as source code must retain the above copyright notice, this list of conditions and the following disclaimer.
D19: 2 | E19: D | F19: 204 | G19: 235 | H19: 197 | L19: 2. The end-user documentation included with the redistribution, if any, must include the following acknowledgment:
D20: 3 | E20: F | F20: 168 | G20: 221 | H20: 181 | L20: This product includes color specifications and designs developed by Cynthia Brewer (http://colorbrewer.org/).
D21: 4 | E21: G | F21: 123 | G21: 204 | H21: 196 | L21: Alternately, this acknowledgment may appear in the software itself, if and wherever such third-party acknowledgments normally appear.
D22: 5 | E22: I | F22: 67 | G22: 162 | H22: 202 | L22: 4. The name "ColorBrewer" must not be used to endorse or promote products derived from this software without prior written permission.
D23: 6 | E23: K | F23: 8 | G23: 104 | H23: 172 | L23: For written permission, please contact Cynthia Brewer at cbrewer@psu.edu.
C24: 7 | D24: 1 | E24: B | F24: 240 | G24: 249 | H24: 232 | L24: 5. Products derived from this software may not be called "ColorBrewer", nor may "ColorBrewer" appear in their name, without prior written permission of Cynthia Brewer.
D25: 2 | E25: D | F25: 204 | G25: 235 | H25: 197
D26: 3 | E26: F | F26: 168 | G26: 221 | H26: 181
D27: 4 | E27: G | F27: 123 | G27: 204 | H27: 196 | L27: This version of the file (4) is sorted to have schemes in the same order as on the ColorBrewer site. Color patches are included
D28: 5 | E28: H | F28: 78 | G28: 179 | H28: 211 | L28: in column K. These were programmed by David P. Ryan as rectangles filled with corresponding RGB colors and inserted in the
D29: 6 | E29: J | F29: 43 | G29: 140 | H29: 190 | L29: cells as comments. Thank you to David for the idea and initiative in making the color examples available in the file.
D30: 7 | E30: L | F30: 8 | G30: 88 | H30: 158
C31: 8 | D31: 1 | E31: A | F31: 247 | G31: 252 | H31: 240 | L31: The original ColorBrewer web site is at http://ColorBrewer.org
D32: 2 | E32: C | F32: 224 | G32: 243 | H32: 219
D33: 3 | E33: D | F33: 204 | G33: 235 | H33: 197 | L33: For more information about ColorBrewer, check the updates section of the site at http://www.personal.psu.edu/cab38/ColorBrewer/ColorBrewer_updates.html
D34: 4 | E34: F | F34: 168 | G34: 221 | H34: 181
D35: 5 | E35: G | F35: 123 | G35: 204 | H35: 196
D36: 6 | E36: H | F36: 78 | G36: 179 | H36: 211
D37: 7 | E37: J | F37: 43 | G37: 140 | H37: 190
D38: 8 | E38: L | F38: 8 | G38: 88 | H38: 158
C39: 9 | D39: 1 | E39: A | F39: 247 | G39: 252 | H39: 240
D40: 2 | E40: C | F40: 224 | G40: 243 | H40: 219
D41: 3 | E41: D | F41: 204 | G41: 235 | H41: 197
D42: 4 | E42: F | F42: 168 | G42: 221 | H42: 181
D43: 5 | E43: G | F43: 123 | G43: 204 | H43: 196
D44: 6 | E44: H | F44: 78 | G44: 179 | H44: 211
D45: 7 | E45: J | F45: 43 | G45: 140 | H45: 190
D46: 8 | E46: K | F46: 8 | G46: 104 | H46: 172
D47: 9 | E47: M | F47: 8 | G47: 64 | H47: 129
B48: BuGn | C48: 2 | D48: 1 | E48: C | F48: 229 | G48: 245 | H48: 249
D49: 3 | E49: I | F49: 44 | G49: 162 | H49: 95
C50: 3 | D50: 1 | E50: C | F50: 229 | G50: 245 | H50: 249
D51: 2 | E51: F | F51: 153 | G51: 216 | H51: 201
D52: 3 | E52: I | F52: 44 | G52: 162 | H52: 95
C53: 4 | D53: 1 | E53: B | F53: 237 | G53: 248 | H53: 251
D54: 2 | E54: E | F54: 178 | G54: 226 | H54: 226
D55: 3 | E55: G | F55: 102 | G55: 194 | H55: 164
D56: 4 | E56: J | F56: 35 | G56: 139 | H56: 69
C57: 5 | D57: 1 | E57: B | F57: 237 | G57: 248 | H57: 251
D58: 2 | E58: E | F58: 178 | G58: 226 | H58: 226
D59: 3 | E59: G | F59: 102 | G59: 194 | H59: 164
D60: 4 | E60: I | F60: 44 | G60: 162 | H60: 95
D61: 5 | E61: K | F61: 0 | G61: 109 | H61: 44
C62: 6 | D62: 1 | E62: B | F62: 237 | G62: 248 | H62: 251
D63: 2 | E63: D | F63: 204 | G63: 236 | H63: 230
D64: 3 | E64: F | F64: 153 | G64: 216 | H64: 201
D65: 4 | E65: G | F65: 102 | G65: 194 | H65: 164
D66: 5 | E66: I | F66: 44 | G66: 162 | H66: 95
D67: 6 | E67: K | F67: 0 | G67: 109 | H67: 44
C68: 7 | D68: 1 | E68: B | F68: 237 | G68: 248 | H68: 251
D69: 2 | E69: D | F69: 204 | G69: 236 | H69: 230
D70: 3 | E70: F | F70: 153 | G70: 216 | H70: 201
D71: 4 | E71: G | F71: 102 | G71: 194 | H71: 164
D72: 5 | E72: H | F72: 65 | G72: 174 | H72: 118
D73: 6 | E73: J | F73: 35 | G73: 139 | H73: 69
D74: 7 | E74: L | F74: 0 | G74: 88 | H74: 36
C75: 8 | D75: 1 | E75: A | F75: 247 | G75: 252 | H75: 253
D76: 2 | E76: C | F76: 229 | G76: 245 | H76: 249
D77: 3 | E77: D | F77: 204 | G77: 236 | H77: 230
D78: 4 | E78: F | F78: 153 | G78: 216 | H78: 201
D79: 5 | E79: G | F79: 102 | G79: 194 | H79: 164
D80: 6 | E80: H | F80: 65 | G80: 174 | H80: 118
D81: 7 | E81: J | F81: 35 | G81: 139 | H81: 69
D82: 8 | E82: L | F82: 0 | G82: 88 | H82: 36
C83: 9 | D83: 1 | E83: A | F83: 247 | G83: 252 | H83: 253
D84: 2 | E84: C | F84: 229 | G84: 245 | H84: 249
D85: 3 | E85: D | F85: 204 | G85: 236 | H85: 230
D86: 4 | E86: F | F86: 153 | G86: 216 | H86: 201
D87: 5 | E87: G | F87: 102 | G87: 194 | H87: 164
D88: 6 | E88: H | F88: 65 | G88: 174 | H88: 118
D89: 7 | E89: J | F89: 35 | G89: 139 | H89: 69
D90: 8 | E90: K | F90: 0 | G90: 109 | H90: 44
D91: 9 | E91: M | F91: 0 | G91: 68 | H91: 27
B92: YlOrRd | C92: 2 | D92: 1 | E92: C | F92: 255 | G92: 237 | H92: 160
D93: 3 | E93: I | F93: 240 | G93: 59 | H93: 32
C94: 3 | D94: 1 | E94: C | F94: 255 | G94: 237 | H94: 160
D95: 2 | E95: F | F95: 254 | G95: 178 | H95: 76
D96: 3 | E96: I | F96: 240 | G96: 59 | H96: 32
C97: 4 | D97: 1 | E97: B | F97: 255 | G97: 255 | H97: 178
D98: 2 | E98: E | F98: 254 | G98: 204 | H98: 92
D99: 3 | E99: G | F99: 253 | G99: 141 | H99: 60
D100: 4 | E100: J | F100: 227 | G100: 26 | H100: 28
C101: 5 | D101: 1 | E101: B | F101: 255 | G101: 255 | H101: 178
D102: 2 | E102: E | F102: 254 | G102: 204 | H102: 92
D103: 3 | E103: G | F103: 253 | G103: 141 | H103: 60
D104: 4 | E104: I | F104: 240 | G104: 59 | H104: 32
D105: 5 | E105: K | F105: 189 | G105: 0 | H105: 38
C106: 6 | D106: 1 | E106: B | F106: 255 | G106: 255 | H106: 178
D107: 2 | E107: D | F107: 254 | G107: 217 | H107: 118
D108: 3 | E108: F | F108: 254 | G108: 178 | H108: 76
D109: 4 | E109: G | F109: 253 | G109: 141 | H109: 60
D110: 5 | E110: I | F110: 240 | G110: 59 | H110: 32
D111: 6 | E111: K | F111: 189 | G111: 0 | H111: 38
C112: 7 | D112: 1 | E112: B | F112: 255 | G112: 255 | H112: 178
D113: 2 | E113: D | F113: 254 | G113: 217 | H113: 118
D114: 3 | E114: F | F114: 254 | G114: 178 | H114: 76
D115: 4 | E115: G | F115: 253 | G115: 141 | H115: 60
D116: 5 | E116: H | F116: 252 | G116: 78 | H116: 42
D117: 6 | E117: J | F117: 227 | G117: 26 | H117: 28
D118: 7 | E118: L | F118: 177 | G118: 0 | H118: 38
C119: 8 | D119: 1 | E119: A | F119: 255 | G119: 255 | H119: 204
D120: 2 | E120: C | F120: 255 | G120: 237 | H120: 160
D121: 3 | E121: D | F121: 254 | G121: 217 | H121: 118
D122: 4 | E122: F | F122: 254 | G122: 178 | H122: 76
D123: 5 | E123: G | F123: 253 | G123: 141 | H123: 60
D124: 6 | E124: H | F124: 252 | G124: 78 | H124: 42
D125: 7 | E125: J | F125: 227 | G125: 26 | H125: 28
D126: 8 | E126: L | F126: 177 | G126: 0 | H126: 38
C127: 9 | D127: 1 | E127: A | F127: 255 | G127: 255 | H127: 204
D128: 2 | E128: C | F128: 255 | G128: 237 | H128: 160
D129: 3 | E129: D | F129: 254 | G129: 217 | H129: 118
D130: 4 | E130: F | F130: 254 | G130: 178 | H130: 76
D131: 5 | E131: G | F131: 253 | G131: 141 | H131: 60
D132: 6 | E132: H | F132: 252 | G132: 78 | H132: 42
D133: 7 | E133: J | F133: 227 | G133: 26 | H133: 28
D134: 8 | E134: K | F134: 189 | G134: 0 | H134: 38
D135: 9 | E135: M | F135: 128 | G135: 0 | H135: 38

Sheet Raw_Data-1
D1: Population 1 year and over | F1: Same residence 1 year ago | H1: Different residence, same state 1 year ago | J1: 1 | K1: 2 | L1: 3 | M1: 4 | N1: 5 | O1: 6 | P1: 7 | Q1: 8 | R1: 9 | S1: 10 | T1: 11 | U1: 12 | V1: 13 | W1: 14 | X1: 15 | Y1: 16 | Z1: 17 | AA1: 18 | AB1: 19 | AC1: 20 | AD1: 21 | AE1: 22 | AF1: 23 | AG1: 24 | AH1: 25 | AI1: 26 | AJ1: 27 | AK1: 28 | AL1: 29 | AM1: 30 | AN1: 31 | AO1: 32 | AP1: 33 | AQ1: 34 | AR1: 35 | AS1: 36 | AT1: 37 | AU1: 38 | AV1: 39 | AW1: 40 | AX1: 41 | AY1: 42 | AZ1: 43 | BA1: 44 | BB1: 45 | BC1: 46 | BD1: 47 | BE1: 48 | BF1: 49 | BG1: 50 | BH1: 51 | BI1: 52 | BJ1: 53
J2: State of Residence Last year (Estimate)
A3: Year | B3: # | C3: Current residence in -- | D3: Estimate | E3: MOE | F3: Estimate | G3: MOE | H3: Estimate | I3: MOE | J3: TOTAL | K3: Alabama | L3: Alaska | M3: Arizona | N3: Arkansas | O3: California | P3: Colorado | Q3: Connecticut | R3: Delaware | S3: District of Columbia | T3: Florida | U3: Georgia | V3: Hawaii | W3: Idaho | X3: Illinois | Y3: Indiana | Z3: Iowa | AA3: Kansas | AB3: Kentucky | AC3: Louisiana | AD3: Maine | AE3: Maryland | AF3: Massachusetts | AG3: Michigan | AH3: Minnesota | AI3: Mississippi | AJ3: Missouri | AK3: Montana | AL3: Nebraska | AM3: Nevada | AN3: New Hampshire | AO3: New Jersey | AP3: New Mexico | AQ3: New York | AR3: North Carolina | AS3: North Dakota | AT3: Ohio | AU3: Oklahoma | AV3: Oregon | AW3: Pennsylvania | AX3: Rhode Island | AY3: South Carolina | AZ3: South Dakota | BA3: Tennessee | BB3: Texas | BC3: Utah | BD3: Vermont | BE3: Virginia | BF3: Washington | BG3: West Virginia | BH3: Wisconsin | BI3: Wyoming | BJ3: Puerto Rico | BK3: GSP $ | BL3: Per capita income | BM3: External Migration to State % of pop | BN3: Internal Migration within State % of pop | BO3: Unemployment Rate % | BQ3: GDP Data Sources
A4: 2010 | B4: 1 | C4: Alabama | D4: 4729509 | E4: 3716 | F4: 3987155 | G4: 21708 | H4: 620465 | I4: 21448 | J4: 108723 | L4: 3013 | M4: 676 | N4: 1481 | O4: 3827 | P4: 1278 | Q4: 454 | R4: 811 | S4: 211 | T4: 15062 | U4: 21644 | V4: 267 | W4: 304 | X4: 2503 | Y4: 3945 | Z4: 669 | AA4: 649 | AB4: 1967 | AC4: 1901 | AD4: 97 | AE4: 716 | AF4: 435 | AG4: 2334 | AH4: 386 | AI4: 7233 | AJ4: 1373 | AK4: 229 | AL4: 169 | AM4: 265 | AN4: 0 | AO4: 356 | AP4: 650 | AQ4: 3686 | AR4: 2371 | AS4: 169 | AT4: 2222 | AU4: 880 | AV4: 485 | AW4: 1477 | AX4: 0 | AY4: 2368 | AZ4: 31 | BA4: 7409 | BB4: 6500 | BC4: 1336 | BD4: 0 | BE4: 2490 | BF4: 1171 | BG4: 41 | BH4: 1155 | BI4: 27 | BJ4: 228 | BK4: 172842000000 | BL4: =BK4/D4 -> 36545.44267 | BM4: =J4/D4 -> 0.0229882214 | BN4: =H4/D4 -> 0.131190151 | BO4: 8.9 | BQ4: http://www.bea.gov/newsreleases/regional/gdp_state/gsp_newsrelease.htm
A5: 2010 | B5: 2 | C5: Alaska | D5: 702974 | E5: 1600 | F5: 565031 | G5: 7596 | H5: 95878 | I5: 7984 | J5: 36326 | K5: 477 | M5: 1354 | N5: 47 | O5: 3906 | P5: 1930 | Q5: 0 | R5: 0 | S5: 14 | T5: 2315 | U5: 1251 | V5: 1705 | W5: 895 | X5: 388 | Y5: 9 | Z5: 262 | AA5: 106 | AB5: 1440 | AC5: 100 | AD5: 574 | AE5: 704 | AF5: 107 | AG5: 923 | AH5: 530 | AI5: 263 | AJ5: 0 | AK5: 616 | AL5: 215 | AM5: 240 | AN5: 316 | AO5: 413 | AP5: 421 | AQ5: 255 | AR5: 698 | AS5: 69 | AT5: 156 | AU5: 1455 | AV5: 1793 | AW5: 126 | AX5: 0 | AY5: 121 | AZ5: 531 | BA5: 477 | BB5: 4123 | BC5: 1274 | BD5: 353 | BE5: 714 | BF5: 2421 | BG5: 0 | BH5: 158 | BI5: 81 | BJ5: 19 | BK5: 47910000000 | BL5: =BK5/D5 -> 68153.30297 | BM5: =J5/D5 -> 0.05167474188 | BN5: =H5/D5 -> 0.1363891125 | BO5: 7.8 | BQ5: https://www.google.com/publicdata/explore?ds=d5bncppjof8f9_&met_y=ny_gdp_mktp_cd&hl=en&dl=en&idim=country:PRI:CRI:DOM
A6: 2010 | B6: 3 | C6: Arizona | D6: 6332786 | E6: 4439 | F6: 5069002 | G6: 35057 | H6: 1001991 | I6: 32027 | J6: 222725 | K6: 416 | L6: 3109 | N6: 689 | O6: 47164 | P6: 7687 | Q6: 479 | R6: 738 | S6: 0 | T6: 7712 | U6: 4261 | V6: 1966 | W6: 2147 | X6: 12250 | Y6: 2690 | Z6: 3008 | AA6: 1935 | AB6: 1705 | AC6: 2014 | AD6: 241 | AE6: 1284 | AF6: 1449 | AG6: 6354 | AH6: 5421 | AI6: 272 | AJ6: 4567 | AK6: 1343 | AL6: 1750 | AM6: 10342 | AN6: 64 | AO6: 1782 | AP6: 4419 | AQ6: 6618 | AR6: 4463 | AS6: 826 | AT6: 5225 | AU6: 2910 | AV6: 5430 | AW6: 5535 | AX6: 403 | AY6: 2310 | AZ6: 1351 | BA6: 3061 | BB6: 14705 | BC6: 7164 | BD6: 664 | BE6: 3413 | BF6: 12645 | BG6: 595 | BH6: 5556 | BI6: 593 | BJ6: 599 | BK6: 247329000000 | BL6: 39055.32257 | BM6: 0.0351701447 | BN6: 0.158222779 | BO6: 10 | BQ6: 2012 data for GSP/GDP is calculated/forecast (except for PR)
A7: 2010 | B7: 4 | C7: Arkansas | D7: 2888304 | E7: 2453 | F7: 2387806 | G7: 18627 | H7: 412997 | I7: 17485 | J7: 79127 | K7: 1405 | L7: 934 | M7: 777 | O7: 4457 | P7: 2535 | Q7: 451 | R7: 0 | S7: 154 | T7: 3578 | U7: 3921 | V7: 129 | W7: 618 | X7: 3221 | Y7: 722 | Z7: 85 | AA7: 3611 | AB7: 2540 | AC7: 4012 | AD7: 0 | AE7: 306 | AF7: 190 | AG7: 1506 | AH7: 222 | AI7: 2764 | AJ7: 7320 | AK7: 85 | AL7: 394 | AM7: 67 | AN7: 0 | AO7: 77 | AP7: 0 | AQ7: 289 | AR7: 1561 | AS7: 0 | AT7: 1137 | AU7: 8607 | AV7: 239 | AW7: 731 | AX7: 0 | AY7: 1496 | AZ7: 243 | BA7: 2653 | BB7: 13707 | BC7: 361 | BD7: 0 | BE7: 494 | BF7: 264 | BG7: 0 | BH7: 821 | BI7: 443 | BJ7: 87 | BK7: 103170000000 | BL7: 35719.92422 | BM7: 0.02739566195 | BN7: 0.1429894499 | BO7: 8.1
A8: 2010 | B8: 5 | C8: California | D8: 36907897 | E8: 10889 | F8: 30790221 | G8: 71574 | H8: 5413287 | I8: 66460 | J8: 444749 | K8: 3364 | L8: 9579 | M8: 33854 | N8: 4172 | P8: 15662 | Q8: 4631 | R8: 643 | S8: 3683 | T8: 20362 | U8: 8820 | V8: 9528 | W8: 5719 | X8: 16482 | Y8: 6550 | Z8: 3163 | AA8: 3857 | AB8: 3394 | AC8: 2989 | AD8: 1796 | AE8: 10626 | AF8: 11969 | AG8: 10435 | AH8: 5095 | AI8: 2757 | AJ8: 6921 | AK8: 3009 | AL8: 3062 | AM8: 27724 | AN8: 1614 | AO8: 10108 | AP8: 4632 | AQ8: 20981 | AR8: 9593 | AS8: 392 | AT8: 8170 | AU8: 5708 | AV8: 20913 | AW8: 9948 | AX8: 526 | AY8: 5016 | AZ8: 1604 | BA8: 4349 | BB8: 36582 | BC8: 10653 | BD8: 525 | BE8: 14232 | BF8: 30544 | BG8: 1446 | BH8: 6031 | BI8: 1336 | BJ8: 1223 | BK8: 1845249000000 | BL8: 49996.04827 | BM8: 0.01205023955 | BN8: 0.1466701557 | BO8: 12.2 | BQ8: Unemployment data
A9: 2010 | B9: 6 | C9: Colorado | D9: 4988190 | E9: 3936 | F9: 4042039 | G9: 25546 | H9: 725413 | I9: 23003 | J9: 186366 | K9: 954 | L9: 2225 | M9: 12287 | N9: 1034 | O9: 26089 | Q9: 459 | R9: 486 | S9: 479 | T9: 8849 | U9: 6445 | V9: 2355 | W9: 839 | X9: 6950 | Y9: 3296 | Z9: 2140 | AA9: 4308 | AB9: 1961 | AC9: 968 | AD9: 532 | AE9: 1532 | AF9: 2242 | AG9: 4587 | AH9: 2878 | AI9: 1277 | AJ9: 1978 | AK9: 2042 | AL9: 4065 | AM9: 4131 | AN9: 791 | AO9: 1259 | AP9: 3921 | AQ9: 4594 | AR9: 2940 | AS9: 802 | AT9: 2838 | AU9: 3464 | AV9: 4330 | AW9: 3928 | AX9: 192 | AY9: 1231 | AZ9: 1847 | BA9: 1628 | BB9: 22253 | BC9: 4748 | BD9: 350 | BE9: 2739 | BF9: 7583 | BG9: 623 | BH9: 2499 | BI9: 4418 | BJ9: 874 | BK9: 254551000000 | BL9: 51030.7346 | BM9: 0.03736144774 | BN9: 0.1454260964 | BO9: 9 | BQ9: http://data.bls.gov/map/MapToolServlet?survey=la
A10: 2010 | B10: 7 | C10: Connecticut | D10: 3541146 | E10: 2779 | F10: 3100742 | G10: 16358 | H10: 342904 | I10: 15404 | J10: 77333 | K10: 896 | L10: 0 | M10: 664 | N10: 334 | O10: 4479 | P10: 547 | R10: 149 | S10: 331 | T10: 9207 | U10: 748 | V10: 182 | W10: 147 | X10: 3391 | Y10: 1074 | Z10: 108 | AA10: 0 | AB10: 400 | AC10: 0 | AD10: 528 | AE10: 1531 | AF10: 8510 | AG10: 770 | AH10: 934 | AI10: 67 | AJ10: 42 | AK10: 0 | AL10: 0 | AM10: 507 | AN10: 1049 | AO10: 3475 | AP10: 112 | AQ10: 20727 | AR10: 1345 | AS10: 0 | AT10: 1296 | AU10: 145 | AV10: 640 | AW10: 1955 | AX10: 1728 | AY10: 1140 | AZ10: 0 | BA10: 430 | BB10: 1887 | BC10: 0 | BD10: 458 | BE10: 1735 | BF10: 2084 | BG10: 442 | BH10: 1092 | BI10: 47 | BJ10: 2027 | BK10: 221767000000 | BL10: 62625.77143 | BM10: 0.0218384105 | BN10: 0.09683418871 | BO10: 9.4 | BQ10: http://en.wikipedia.org/wiki/Economy_of_Puerto_Rico
A11: 2010 | B11: 8 | C11: Delaware | D11: 889812 | E11: 1573 | F11: 764640 | G11: 9145 | H11: 90001 | I11: 8498 | J11: 30759 | K11: 128 | L11: 68 | M11: 60 | N11: 0 | O11: 353 | P11: 178 | Q11: 714 | S11: 432 | T11: 2362 | U11: 585 | V11: 0 | W11: 0 | X11: 612 | Y11: 0 | Z11: 0 | AA11: 28 | AB11: 163 | AC11: 0 | AD11: 294 | AE11: 4969 | AF11: 689 | AG11: 61 | AH11: 55 | AI11: 0 | AJ11: 539 | AK11: 73 | AL11: 0 | AM11: 106 | AN11: 139 | AO11: 3678 | AP11: 59 | AQ11: 4251 | AR11: 424 | AS11: 0 | AT11: 325 | AU11: 0 | AV11: 0 | AW11: 7318 | AX11: 149 | AY11: 195 | AZ11: 0 | BA11: 146 | BB11: 178 | BC11: 0 | BD11: 0 | BE11: 1051 | BF11: 377 | BG11: 0 | BH11: 0 | BI11: 0 | BJ11: 954 | BK11: 62832000000 | BL11: 70612.66874 | BM11: 0.03456797616 | BN11: 0.1011460848 | BO11: 7.7 | BQ11: https://www.google.com/url?sa=t&rct=j&q=&esrc=s&source=web&cd=1&cad=rja&uact=8&ved=0CCwQ-iQwAA&url=%2Fpublicdata%2Fexplore%3Fds%3Dz1ebjpgk2654c1_%26met_y%3Dunemployment_rate%26hl%3Den%26dl%3Den%26idim%3Dcountry%3AUS%26fdim_y%3Dseasonality%3AS&ei=Lz9TU6HXHYiI2AXAiIHQAQ&usg=AFQjCNEZysSfqrmdhOMYRJRpLDdxpaU1yA&bvm=bv.65058239,d.b2I
A12: 2010 | B12: 9 | C12: District of Columbia | D12: 596747 | E12: 1124 | F12: 474676 | G12: 8281 | H12: 63766 | I12: 6163 | J12: 51244 | K12: 360 | L12: 591 | M12: 662 | N12: 155 | O12: 4205 | P12: 656 | Q12: 926 | R12: 0 | T12: 1100 | U12: 1597 | V12: 0 | W12: 0 | X12: 615 | Y12: 711 | Z12: 392 | AA12: 83 | AB12: 94 | AC12: 0 | AD12: 76 | AE12: 13503 | AF12: 1376 | AG12: 126 | AH12: 87 | AI12: 0 | AJ12: 272 | AK12: 0 | AL12: 62 | AM12: 0 | AN12: 137 | AO12: 1924 | AP12: 61 | AQ12: 3852 | AR12: 1897 | AS12: 98 | AT12: 598 | AU12: 0 | AV12: 601 | AW12: 2378 | AX12: 249 | AY12: 380 | AZ12: 0 | BA12: 591 | BB12: 1180 | BC12: 0 | BD12: 199 | BE12: 7915 | BF12: 284 | BG12: 860 | BH12: 391 | BI12: 0 | BJ12: 0 | BK12: 103745000000 | BL12: 173850.8949 | BM12: 0.08587223731 | BN12: 0.1068560043 | BO12: 10.1 | BQ12: All data from December of that year and are seasonally adjusted
A13: 2010 | B13: 10 | C13: Florida | D13: 18647600 | E13: 7733 | F13: 15554008 | G13: 45602 | H13: 2459530 | I13: 38387 | J13: 482889 | K13: 15830 | L13: 5887 | M13: 3907 | N13: 3611 | O13: 22130 | P13: 6428 | Q13: 11183 | R13: 3099 | S13: 1110 | U13: 35615 | V13: 2021 | W13: 884 | X13: 17432 | Y13: 9030 | Z13: 2921 | AA13: 4136 | AB13: 6321 | AC13: 7232 | AD13: 5497 | AE13: 13241 | AF13: 13900 | AG13: 21359 | AH13: 5439 | AI13: 7929 | AJ13: 7984 | AK13: 338 | AL13: 1544 | AM13: 7050 | AN13: 3645 | AO13: 22344 | AP13: 900 | AQ13: 55011 | AR13: 19108 | AS13: 794 | AT13: 21047 | AU13: 3466 | AV13: 1655 | AW13: 19935 | AX13: 1982 | AY13: 10759 | AZ13: 430 | BA13: 12882 | BB13: 24039 | BC13: 2833 | BD13: 1442 | BE13: 20080 | BF13: 3573 | BG13: 5634 | BH13: 8081 | BI13: 191 | BJ13: 12968 | BK13: 727972000000 | BL13: 39038.37491 | BM13: 0.02589550398 | BN13: 0.1318952573 | BO13: 11.1
A14: 2010 | B14: 11 | C14: Georgia | D14: 9587237 | E14: 5924 | F14: 8015409 | G14: 37393 | H14: 1278548 | I14: 36794 | J14: 249459 | K14: 13840 | L14: 3645 | M14: 2554 | N14: 599 | O14: 8909 | P14: 3224 | Q14: 2619 | R14: 837 | S14: 1708 | T14: 49901 | V14: 1040 | W14: 414 | X14: 9736 | Y14: 2649 | Z14: 1096 | AA14: 1355 | AB14: 6525 | AC14: 3645 | AD14: 0 | AE14: 5382 | AF14: 3910 | AG14: 6857 | AH14: 1169 | AI14: 2380 | AJ14: 3072 | AK14: 52 | AL14: 148 | AM14: 1155 | AN14: 162 | AO14: 4151 | AP14: 826 | AQ14: 12472 | AR14: 15361 | AS14: 0 | AT14: 9323 | AU14: 2070 | AV14: 843 | AW14: 6294 | AX14: 43 | AY14: 15562 | AZ14: 557 | BA14: 14445 | BB14: 11424 | BC14: 380 | BD14: 361 | BE14: 8393 | BF14: 4495 | BG14: 358 | BH14: 3416 | BI14: 102 | BJ14: 1010 | BK14: 402006000000 | BL14: 41931.37189 | BM14: 0.02601990542 | BN14: 0.1333593819 | BO14: 10.2
A15: 2010 | B15: 12 | C15: Hawaii | D15: 1346274 | E15: 1690 | F15: 1140572 | G15: 10422 | H15: 134315 | I15: 9295 | J15: 53581 | K15: 749 | L15: 743 | M15: 1398 | N15: 0 | O15: 12677 | P15: 1073 | Q15: 307 | R15: 0 | S15: 0 | T15: 4599 | U15: 2013 | W15: 42 | X15: 715 | Y15: 192 | Z15: 68 | AA15: 387 | AB15: 95 | AC15: 88 | AD15: 89 | AE15: 990 | AF15: 1283 | AG15: 627 | AH15: 476 | AI15: 234 | AJ15: 170 | AK15: 150 | AL15: 0 | AM15: 1925 | AN15: 496 | AO15: 443 | AP15: 11 | AQ15: 1339 | AR15: 1510 | AS15: 69 | AT15: 625 | AU15: 57 | AV15: 1834 | AW15: 553 | AX15: 644 | AY15: 322 | AZ15: 267 | BA15: 142 | BB15: 6694 | BC15: 467 | BD15: 0 | BE15: 2644 | BF15: 2705 | BG15: 483 | BH15: 1168 | BI15: 18 | BJ15: 0 | BK15: 67274000000 | BL15: 49970.5112 | BM15: 0.03979947618 | BN15: 0.09976795214 | BO15: 6.6
A16: 2010 | B16: 13 | C16: Idaho | D16: 1550967 | E16: 1954 | F16: 1279856 | G16: 12606 | H16: 209272 | I16: 10887 | J16: 55638 | K16: 376 | L16: 3264 | M16: 3086 | N16: 45 | O16: 8932 | P16: 1372 | Q16: 0 | R16: 0 | S16: 144 | T16: 612 | U16: 313 | V16: 123 | X16: 169 | Y16: 132 | Z16: 773 | AA16: 422 | AB16: 315 | AC16: 59 | AD16: 202 | AE16: 44 | AF16: 115 | AG16: 427 | AH16: 465 | AI16: 37 | AJ16: 425 | AK16: 1509 | AL16: 0 | AM16: 2110 | AN16: 109 | AO16: 97 | AP16: 694 | AQ16: 155 | AR16: 134 | AS16: 96 | AT16: 325 | AU16: 711 | AV16: 3202 | AW16: 172 | AX16: 0 | AY16: 0 | AZ16: 296 | BA16: 1153 | BB16: 1746 | BC16: 8014 | BD16: 0 | BE16: 611 | BF16: 10876 | BG16: 133 | BH16: 233 | BI16: 1410 | BJ16: 233 | BK16: 55639000000 | BL16: 35873.74844 | BM16: 0.03587310368 | BN16: 0.1349300146 | BO16: 8.7
A17: 2010 | B17: 14 | C17: Illinois | D17: 12680126 | E17: 5467 | F17: 11009852 | G17: 32636 | H17: 1404525 | I17: 28126 | J17: 203959 | K17: 1397 | L17: 1764 | M17: 5921 | N17: 1194 | O17: 16205 | P17: 3850 | Q17: 2264 | R17: 56 | S17: 1047 | T17: 8051 | U17: 6781 | V17: 1224 | W17: 313 | Y17: 21918 | Z17: 9141 | AA17: 1970 | AB17: 2921 | AC17: 1419 | AD17: 55 | AE17: 1985 | AF17: 2811 | AG17: 11865 | AH17: 4300 | AI17: 1093 | AJ17: 16703 | AK17: 928 | AL17: 546 | AM17: 2541 | AN17: 206 | AO17: 2331 | AP17: 996 | AQ17: 8479 | AR17: 5504 | AS17: 1112 | AT17: 5103 | AU17: 1459 | AV17: 1224 | AW17: 5190 | AX17: 838 | AY17: 1565 | AZ17: 292 | BA17: 3999 | BB17: 12245 | BC17: 658 | BD17: 260 | BE17: 3831 | BF17: 1642 | BG17: 812 | BH17: 15364 | BI17: 586 | BJ17: 2055 | BK17: 642769000000 | BL17: 50691.0578 | BM17: 0.0160849348 | BN17: 0.1107658552 | BO17: 9.5
A18: 2010 | B18: 15 | C18: Indiana | D18: 6414862 | E18: 4257 | F18: 5431015 | G18: 24897 | H18: 833086 | I18: 22796 | J18: 127353 | K18: 1502 | L18: 177 | M18: 2210 | N18: 1548 | O18: 8959 | P18: 1362 | Q18: 544 | R18: 0 | S18: 181 | T18: 5496 | U18: 1623 | V18: 267 | W18: 772 | X18: 27950 | Z18: 1885 | AA18: 1582 | AB18: 10643 | AC18: 749 | AD18: 30 | AE18: 1641 | AF18: 103 | AG18: 9361 | AH18: 916 | AI18: 270 | AJ18: 3893 | AK18: 164 | AL18: 705 | AM18: 227 | AN18: 114 | AO18: 1876 | AP18: 188 | AQ18: 2564 | AR18: 2828 | AS18: 0 | AT18: 13272 | AU18: 681 | AV18: 423 | AW18: 2668 | AX18: 174 | AY18: 584 | AZ18: 216 | BA18: 3093 | BB18: 6335 | BC18: 444 | BD18: 45 | BE18: 3673 | BF18: 571 | BG18: 669 | BH18: 1762 | BI18: 413 | BJ18: 572 | BK18: 270739000000 | BL18: 42204.96092 | BM18: 0.01985280432 | BN18: 0.1298681094 | BO18: 9.2
A19: 2010 | B19: 16 | C19: Iowa | D19: 3013053 | E19: 2381 | F19: 2553210 | G19: 15158 | H19: 375650 | I19: 12448 | J19: 72557 | K19: 330 | L19: 519 | M19: 1483 | N19: 247 | O19: 2847 | P19: 2554 | Q19: 114 | R19: 0 | S19: 53 | T19: 1364 | U19: 973 | V19: 866 | W19: 315 | X19: 17016 | Y19: 1710 | AA19: 1520 | AB19: 334 | AC19: 315 | AD19: 0 | AE19: 134 | AF19: 189 | AG19: 1439 | AH19: 7564 | AI19: 117 | AJ19: 6031 | AK19: 836 | AL19: 4783 | AM19: 623 | AN19: 381 | AO19: 472 | AP19: 492 | AQ19: 273 | AR19: 1123 | AS19: 601 | AT19: 632 | AU19: 679 | AV19: 1071 | AW19: 378 | AX19: 0 | AY19: 591 | AZ19: 1992 | BA19: 1617 | BB19: 4131 | BC19: 146 | BD19: 45 | BE19: 303 | BF19: 538 | BG19: 0 | BH19: 2705 | BI19: 111 | BJ19: 149 | BK19: 138378000000 | BL19: 45926.17521 | BM19: 0.02408089071 | BN19: 0.1246742092 | BO19: 6.2
A20: 2010 | B20: 17 | C20: Kansas | D20: 2820894 | E20: 2731 | F20: 2341401 | G20: 17752 | H20: 372161 | I20: 15608 | J20: 95059 | K20: 44 | L20: 1050 | M20: 2238 | N20: 1596 | O20: 6125 | P20: 6022 | Q20: 85 | R20: 238 | S20: 0 | T20: 2863 | U20: 1916 | V20: 128 | W20: 398 | X20: 2943 | Y20: 1544 | Z20: 1875 | AB20: 1048 | AC20: 890 | AD20: 0 | AE20: 1369 | AF20: 100 | AG20: 806 | AH20: 1562 | AI20: 167 | AJ20: 23384 | AK20: 289 | AL20: 2678 | AM20: 1318 | AN20: 76 | AO20: 1743 | AP20: 873 | AQ20: 2390 | AR20: 1083 | AS20: 225 | AT20: 1509 | AU20: 7568 | AV20: 514 | AW20: 563 | AX20: 39 | AY20: 137 | AZ20: 352 | BA20: 1152 | BB20: 9217 | BC20: 238 | BD20: 75 | BE20: 1648 | BF20: 1175 | BG20: 0 | BH20: 1233 | BI20: 573 | BJ20: 68 | BK20: 126640000000 | BL20: 44893.5692 | BM20: 0.03369818221 | BN20: 0.1319301611 | BO20: 6.9
A21: 2010 | B21: 18 | C21: Kentucky | D21: 4296639 | E21: 3389 | F21: 3638259 | G21: 20337 | H21: 519887 | I21: 18955 | J21: 118443 | K21: 2161 | L21: 3017 | M21: 2598 | N21: 558 | O21: 3779 | P21: 329 | Q21: 698 | R21: 38 | S21: 147 | T21: 10119 | U21: 6397 | V21: 520 | W21: 71 | X21: 4659 | Y21: 11906 | Z21: 656 | AA21: 1109 | AC21: 437 | AD21: 0 | AE21: 1395 | AF21: 1036 | AG21: 4672 | AH21: 930 | AI21: 1442 | AJ21: 3153 | AK21: 0 | AL21: 858 | AM21: 76 | AN21: 0 | AO21: 1147 | AP21: 122 | AQ21: 2057 | AR21: 3758 | AS21: 0 | AT21: 15598 | AU21: 1153 | AV21: 181 | AW21: 2618 | AX21: 289 | AY21: 1286 | AZ21: 163 | BA21: 11153 | BB21: 5758 | BC21: 905 | BD21: 525 | BE21: 3671 | BF21: 716 | BG21: 2297 | BH21: 1993 | BI21: 292 | BJ21: 179 | BK21: 161064000000 | BL21: 37486.04432 | BM21: 0.02756643041 | BN21: 0.1209985293 | BO21: 10
A22: 2010 | B22: 19 | C22: Louisiana | D22: 4483529 | E22: 3720 | F22: 3826390 | G22: 25103 | H22: 547291 | I22: 22645 | J22: 97889 | K22: 5740 | L22: 1504 | M22: 1960 | N22: 2382 | O22: 5751 | P22: 1215 | Q22: 89 | R22: 0 | S22: 264 | T22: 9394 | U22: 5766 | V22: 342 | W22: 202 | X22: 2131 | Y22: 948 | Z22: 625 | AA22: 706 | AB22: 1656 | AD22: 162 | AE22: 963 | AF22: 995 | AG22: 1301 | AH22: 569 | AI22: 7032 | AJ22: 2852 | AK22: 40 | AL22: 119 | AM22: 1552 | AN22: 462 | AO22: 171 | AP22: 294 | AQ22: 2161 | AR22: 1443 | AS22: 438 | AT22: 1100 | AU22: 1074 | AV22: 281 | AW22: 1350 | AX22: 0 | AY22: 1130 | AZ22: 0 | BA22: 1853 | BB22: 26134 | BC22: 473 | BD22: 0 | BE22: 1278 | BF22: 1509 | BG22: 210 | BH22: 237 | BI22: 31 | BJ22: 402 | BK22: 227373000000 | BL22: 50712.95401 | BM22: 0.02183302483 | BN22: 0.1220670146 | BO22: 7.7
A23: 2010 | B23: 20 | C23: Maine | D23: 1313902 | E23: 1878 | F23: 1136780 | G23: 8034 | H23: 146735 | I23: 7677 | J23: 27758 | K23: 402 | L23: 424 | M23: 254 | N23: 67 | O23: 1066 | P23: 478 | Q23: 1361 | R23: 174 | S23: 55 | T23: 3025 | U23: 844 | V23: 62 | W23: 0 | X23: 311 | Y23: 259 | Z23: 337 | AA23: 56 | AB23: 484 | AC23: 115 | AE23: 243 | AF23: 3521 | AG23: 122 | AH23: 91 | AI23: 0 | AJ23: 201 | AK23: 275 | AL23: 204 | AM23: 345 | AN23: 4058 | AO23: 902 | AP23: 234 | AQ23: 2339 | AR23: 1001 | AS23: 55 | AT23: 315 | AU23: 124 | AV23: 0 | AW23: 375 | AX23: 379 | AY23: 148 | AZ23: 0 | BA23: 249 | BB23: 458 | BC23: 390 | BD23: 420 | BE23: 654 | BF23: 381 | BG23: 0 | BH23: 0 | BI23: 500 | BJ23: 204 | BK23: 51343000000 | BL23: 39076.73479 | BM23: 0.02112638538 | BN23: 0.111678801 | BO23: 8
A24: 2010 | B24: 21 | C24: Maryland | D24: 5716785 | E24: 3648 | F24: 4917637 | G24: 22981 | H24: 588879 | I24: 20180 | J24: 164484 | K24: 1641 | L24: 2672 | M24: 1124 | N24: 273 | O24: 8206 | P24: 2501 | Q24: 1603 | R24: 8340 | S24: 23202 | T24: 6564 | U24: 3454 | V24: 422 | W24: 357 | X24: 3300 | Y24: 431 | Z24: 160 | AA24: 781 | AB24: 396 | AC24: 1376 | AD24: 53 | AF24: 1983 | AG24: 3572 | AH24: 820 | AI24: 403 | AJ24: 1147 | AK24: 86 | AL24: 54 | AM24: 979 | AN24: 1369 | AO24: 9058 | AP24: 238 | AQ24: 10736 | AR24: 5787 | AS24: 0 | AT24: 3277 | AU24: 607 | AV24: 723 | AW24: 13467 | AX24: 782 | AY24: 1710 | AZ24: 49 | BA24: 2669 | BB24: 5883 | BC24: 655 | BD24: 350 | BE24: 24765 | BF24: 1542 | BG24: 4363 | BH24: 324 | BI24: 230 | BJ24: 612 | BK24: 295981000000 | BL24: 51774.03033 | BM24: 0.0287721158 | BN24: 0.1030087715 | BO24: 7.5
A25: 2010 | B25: 22 | C25: Massachusetts | D25: 6489250 | E25: 3528 | F25: 5583650 | G25: 23686 | H25: 706624 | I25: 22760 | J25: 140162 | K25: 583 | L25: 1891 | M25: 1572 | N25: 206 | O25: 14971 | P25: 1051 | Q25: 13270 | R25: 131 | S25: 1539 | T25: 11118 | U25: 1409 | V25: 682 | W25: 79 | X25: 2842 | Y25: 1891 | Z25: 307 | AA25: 0 | AB25: 340 | AC25: 0 | AD25: 4666 | AE25: 3660 | AG25: 1624 | AH25: 2185 | AI25: 453 | AJ25: 1957 | AK25: 388 | AL25: 46 | AM25: 792 | AN25: 9911 | AO25: 4709 | AP25: 161 | AQ25: 20002 | AR25: 2798 | AS25: 0 | AT25: 2163 | AU25: 158 | AV25: 228 | AW25: 5316 | AX25: 6965 | AY25: 1659 | AZ25: 0 | BA25: 918 | BB25: 7073 | BC25: 207 | BD25: 1526 | BE25: 4542 | BF25: 1627 | BG25: 0 | BH25: 546 | BI25: 0 | BJ25: 3085 | BK25: 376908000000 | BL25: 58081.90469 | BM25: 0.02159910621 | BN25: 0.1088914744 | BO25: 7.9
A26: 2010 | B26: 23 | C26: Michigan | D26: 9762127 | E26: 4595 | F26: 8310098 | G26: 29394 | H26: 1291901 | I26: 28130 | J26: 116149 | K26: 2403 | L26: 1040 | M26: 3197 | N26: 636 | O26: 6726 | P26: 2031 | Q26: 277 | R26: 167 | S26: 471 | T26: 11646 | U26: 3913 | V26: 313 | W26: 66 | X26: 10651 | Y26: 7816 | Z26: 758 | AA26: 640 | AB26: 2353 | AC26: 1342 | AD26: 645 | AE26: 620 | AF26: 1206 | AH26: 1275 | AI26: 656 | AJ26: 2921 | AK26: 312 | AL26: 213 | AM26: 1874 | AN26: 437 | AO26: 1676 | AP26: 669 | AQ26: 3135 | AR26: 2444 | AS26: 53 | AT26: 9783 | AU26: 2276 | AV26: 537 | AW26: 3134 | AX26: 653 | AY26: 1446 | AZ26: 706 | BA26: 4453 | BB26: 7184 | BC26: 545 | BD26: 45 | BE26: 2073 | BF26: 1427 | BG26: 446 | BH26: 6291 | BI26: 568 | BJ26: 1432 | BK26: 367107000000 | BL26: 37605.22681 | BM26: 0.01189791938 | BN26: 0.1323380653 | BO26: 11.3
A27: 2010 | B27: 24 | C27: Minnesota | D27: 5244256 | E27: 3049 | F27: 4480630 | G27: 17843 | H27: 647946 | I27: 16565 | J27: 89872 | K27: 266 | L27: 1169 | M27: 4165 | N27: 279 | O27: 6233 | P27: 2521 | Q27: 211 | R27: 176 | S27: 306 | T27: 2575 | U27: 1776 | V27: 227 | W27: 231 | X27: 6641 | Y27: 1120 | Z27: 4948 | AA27: 1067 | AB27: 402 | AC27: 519 | AD27: 172 | AE27: 1259 | AF27: 1092 | AG27: 2631 | AI27: 196 | AJ27: 1549 | AK27: 1020 | AL27: 734 | AM27: 540 | AN27: 183 | AO27: 513 | AP27: 151 | AQ27: 1309 | AR27: 1673 | AS27: 7316 | AT27: 1035 | AU27: 284 | AV27: 738 | AW27: 730 | AX27: 123 | AY27: 1597 | AZ27: 3237 | BA27: 1155 | BB27: 2619 | BC27: 1013 | BD27: 0 | BE27: 2371 | BF27: 1328 | BG27: 200 | BH27: 17929 | BI27: 343 | BJ27: 39 | BK27: 268578000000 | BL27: 51213.747 | BM27: 0.01713722595 | BN27: 0.123553465 | BO27: 7
A28: 2010 | B28: 25 | C28: Mississippi | D28: 2931228 | E28: 3253 | F28: 2510729 | G28: 16977 | H28: 340266 | I28: 16300 | J28: 72321 | K28: 8306 | L28: 1192 | M28: 187 | N28: 4941 | O28: 3000 | P28: 1167 | Q28: 71 | R28: 0 | S28: 0 | T28: 4814 | U28: 4014 | V28: 276 | W28: 121 | X28: 3030 | Y28: 1403 | Z28: 114 | AA28: 330 | AB28: 407 | AC28: 7390 | AD28: 0 | AE28: 649 | AF28: 107 | AG28: 2495 | AH28: 863 | AJ28: 959 | AK28: 314 | AL28: 0 | AM28: 408 | AN28: 0 | AO28: 403 | AP28: 633 | AQ28: 1026 | AR28: 2227 | AS28: 0 | AT28: 1312 | AU28: 663 | AV28: 0 | AW28: 750 | AX28: 145 | AY28: 1860 | AZ28: 56 | BA28: 8158 | BB28: 5755 | BC28: 232 | BD28: 0 | BE28: 572 | BF28: 508 | BG28: 94 | BH28: 879 | BI28: 490 | BJ28: 814 | BK28: 95763000000 | BL28: 32669.92537 | BM28: 0.02467259456 | BN28: 0.1160830887 | BO28: 10.6
A29: 2010 | B29: 26 | C29: Missouri | D29: 5920858 | E29: 4730 | F29: 4968921 | G29: 23164 | H29: 786726 | I29: 21904 | J29: 145226 | K29: 819 | L29: 1051 | M29: 2988 | N29: 4381 | O29: 9840 | P29: 1903 | Q29: 243 | R29: 314 | S29: 478 | T29: 8317 | U29: 2492 | V29: 380 | W29: 830 | X29: 21277 | Y29: 3351 | Z29: 4708 | AA29: 23427 | AB29: 2552 | AC29: 2238 | AD29: 171 | AE29: 1359 | AF29: 1395 | AG29: 2610 | AH29: 1701 | AI29: 1183 | AK29: 220 | AL29: 2636 | AM29: 1060 | AN29: 108 | AO29: 1320 | AP29: 150 | AQ29: 2630 | AR29: 1825 | AS29: 848 | AT29: 2163 | AU29: 4647 | AV29: 314 | AW29: 1639 | AX29: 0 | AY29: 954 | AZ29: 512 | BA29: 3311 | BB29: 12884 | BC29: 1319 | BD29: 498 | BE29: 3206 | BF29: 1107 | BG29: 177 | BH29: 1331 | BI29: 359 | BJ29: 867 | BK29: 243876000000 | BL29: 41189.3006 | BM29: 0.02452786404 | BN29: 0.1328736477 | BO29: 9.2
A30: 2010 | B30: 27 | C30: Montana | D30: 978507 | E30: 1744 | F30: 821709 | G30: 7063 | H30: 117752 | I30: 6986 | J30: 35630 | K30: 212 | L30: 650 | M30: 1909 | N30: 672 | O30: 5756 | P30: 2185 | Q30: 128 | R30: 71 | S30: 0 | T30: 1373 | U30: 46 | V30: 0 | W30: 1458 | X30: 1094 | Y30: 251 | Z30: 169 | AA30: 60 | AB30: 321 | AC30: 85 | AD30: 76 | AE30: 51 | AF30: 59 | AG30: 648 | AH30: 1323 | AI30: 242 | AJ30: 564 | AL30: 340 | AM30: 548 | AN30: 0 | AO30: 0 | AP30: 660 | AQ30: 246 | AR30: 1072 | AS30: 1677 | AT30: 89 | AU30: 182 | AV30: 1620 | AW30: 419 | AX30: 0 | AY30: 110 | AZ30: 295 | BA30: 111 | BB30: 2101 | BC30: 964 | BD30: 0 | BE30: 497 | BF30: 3250 | BG30: 0 | BH30: 357 | BI30: 1689 | BJ30: 11 | BK30: 36521000000 | BL30: 37323.18726 | BM30: 0.03641261636 | BN30: 0.120338434 | BO30: 6.7
A31: 2010 | B31: 28 | C31: Nebraska | D31: 1802697 | E31: 2153 | F31: 1497138 | G31: 11336 | H31: 247005 | I31: 9960 | J31: 51290 | K31: 232 | L31: 35 | M31: 2322 | N31: 674 | O31: 4430 | P31: 4182 | Q31: 361 | R31: 177 | S31: 0 | T31: 1775 | U31: 1202 | V31: 257 | W31: 127 | X31: 1820 | Y31: 639 | Z31: 5536 | AA31: 2484 | AB31: 153 | AC31: 89 | AD31: 0 | AE31: 77 | AF31: 100 | AG31: 726 | AH31: 2254 | AI31: 823 | AJ31: 2723 | AK31: 112 | AM31: 232 | AN31: 0 | AO31: 143 | AP31: 831 | AQ31: 111 | AR31: 442 | AS31: 777 | AT31: 1232 | AU31: 702 | AV31: 506 | AW31: 345 | AX31: 0 | AY31: 65 | AZ31: 2936 | BA31: 77 | BB31: 4445 | BC31: 537 | BD31: 0 | BE31: 772 | BF31: 1230 | BG31: 73 | BH31: 1046 | BI31: 1478 | BJ31: 0 | BK31: 90910000000 | BL31: 50429.99461 | BM31: 0.02845181414 | BN31: 0.1370196988 | BO31: 4.6
A32: 2010 | B32: 29 | C32: Nevada | D32: 2667364 | E32: 3181 | F32: 2030410 | G32: 22983 | H32: 517261 | I32: 21311 | J32: 102677 | K32: 150 | L32: 511 | M32: 7818 | N32: 530 | O32: 35472 | P32: 2935 | Q32: 648 | R32: 0 | S32: 0 | T32: 3579 | U32: 1187 | V32: 4363 | W32: 1686 | X32: 1711 | Y32: 739 | Z32: 543 | AA32: 453 | AB32: 569 | AC32: 733 | AD32: 0 | AE32: 485 | AF32: 1275 | AG32: 2202 | AH32: 805 | AI32: 946 | AJ32: 1747 | AK32: 770 | AL32: 1129 | AN32: 59 | AO32: 1528 | AP32: 1220 | AQ32: 1204 | AR32: 957 | AS32: 37 | AT32: 1554 | AU32: 886 | AV32: 2629 | AW32: 1567 | AX32: 167 | AY32: 312 | AZ32: 1203 | BA32: 706 | BB32: 5224 | BC32: 4500 | BD32: 197 | BE32: 1832 | BF32: 3290 | BG32: 56 | BH32: 419 | BI32: 144 | BJ32: 502 | BK32: 124838000000 | BL32: 46802.01127 | BM32: 0.03849380887 | BN32: 0.1939221644 | BO32: 13.8
A33: 2010 | B33: 30 | C33: New Hampshire | D33: 1303865 | E33: 1720 | F33: 1118359 | G33: 9822 | H33: 141213 | I33: 9061 | J33: 39367 | K33: 152 | L33: 0 | M33: 544 | N33: 0 | O33: 1692 | P33: 240 | Q33: 3134 | R33: 0 | S33: 298 | T33: 1659 | U33: 0 | V33: 51 | W33: 66 | X33: 850 | Y33: 23 | Z33: 109 | AA33: 57 | AB33: 0 | AC33: 19 | AD33: 3242 | AE33: 49 | AF33: 13752 | AG33: 230 | AH33: 240 | AI33: 25 | AJ33: 295 | AK33: 486 | AL33: 0 | AM33: 95 | AO33: 540 | AP33: 276 | AQ33: 2462 | AR33: 471 | AS33: 0 | AT33: 28 | AU33: 0 | AV33: 508 | AW33: 674 | AX33: 988 | AY33: 51 | AZ33: 0 | BA33: 372 | BB33: 1570 | BC33: 279 | BD33: 2566 | BE33: 745 | BF33: 261 | BG33: 0 | BH33: 268 | BI33: 0 | BJ33: 56 | BK33: 61147000000 | BL33: 46896.72627 | BM33: 0.03019254294 | BN33: 0.1083033903 | BO33: 5.7
A34: 2010 | B34: 31 | C34: New Jersey | D34: 8709933 | E34: 4515 | F34: 7841470 | G34: 25935 | H34: 684482 | I34: 23318 | J34: 127369 | K34: 616 | L34: 383 | M34: 1625 | N34: 258 | O34: 8777 | P34: 807 | Q34: 2503 | R34: 1543 | S34: 431 | T34: 9841 | U34: 4588 | V34: 385 | W34: 91 | X34: 2656 | Y34: 402 | Z34: 332 | AA34: 442 | AB34: 91 | AC34: 249 | AD34: 95 | AE34: 4231 | AF34: 2626 | AG34: 1070 | AH34: 322 | AI34: 450 | AJ34: 727 | AK34: 122 | AL34: 261 | AM34: 874 | AN34: 705 | AP34: 421 | AQ34: 41374 | AR34: 3052 | AS34: 0 | AT34: 1584 | AU34: 32 | AV34: 613 | AW34: 22225 | AX34: 332 | AY34: 1134 | AZ34: 0 | BA34: 852 | BB34: 3434 | BC34: 178 | BD34: 57 | BE34: 2670 | BF34: 964 | BG34: 358 | BH34: 586 | BI34: 0 | BJ34: 2732 | BK34: 483007000000 | BL34: 55454.73197 | BM34: 0.01462341903 | BN34: 0.078586368 | BO34: 9.5
A35: 2010 | B35: 32 | C35: New Mexico | D35: 2039549 | E35: 2727 | F35: 1735950 | G35: 14043 | H35: 220663 | I35: 12854 | J35: 73605 | K35: 751 | L35: 969 | M35: 6117 | N35: 77 | O35: 6547 | P35: 2852 | Q35: 25 | R35: 391 | S35: 56 | T35: 3259 | U35: 1977 | V35: 122 | W35: 755 | X35: 526 | Y35: 465 | Z35: 0 | AA35: 751 | AB35: 739 | AC35: 65 | AD35: 94 | AE35: 1968 | AF35: 2076 | AG35: 1460 | AH35: 179 | AI35: 719 | AJ35: 138 | AK35: 1003 | AL35: 530 | AM35: 4192 | AN35: 79 | AO35: 160 | AQ35: 784 | AR35: 1793 | AS35: 79 | AT35: 1712 | AU35: 1182 | AV35: 1659 | AW35: 809 | AX35: 46 | AY35: 152 | AZ35: 204 | BA35: 1269 | BB35: 18511 | BC35: 1601 | BD35: 309 | BE35: 290 | BF35: 3004 | BG35: 0 | BH35: 407 | BI35: 752 | BJ35: 632 | BK35: 77686000000 | BL35: 38089.79338 | BM35: 0.03608886082 | BN35: 0.1081920562 | BO35: 7.9
A36: 2010 | B36: 33 | C36: New York | D36: 19171916 | E36: 7371 | F36: 16976205 | G36: 41292 | H36: 1779540 | I36: 36331 | J36: 269427 | K36: 1310 | L36: 5070 | M36: 2649 | N36: 362 | O36: 25177 | P36: 3135 | Q36: 15338 | R36: 2603 | S36: 1983 | T36: 30553 | U36: 7676 | V36: 259 | W36: 198 | X36: 6533 | Y36: 2497 | Z36: 477 | AA36: 1189 | AB36: 804 | AC36: 1321 | AD36: 2270 | AE36: 5912 | AF36: 16855 | AG36: 4779 | AH36: 1649 | AI36: 872 | AJ36: 1870 | AK36: 237 | AL36: 886 | AM36: 2077 | AN36: 2636 | AO36: 35333 | AP36: 829 | AR36: 13322 | AS36: 0 | AT36: 6510 | AU36: 2298 | AV36: 2284 | AW36: 20514 | AX36: 1913 | AY36: 7161 | AZ36: 521 | BA36: 1730 | BB36: 9692 | BC36: 910 | BD36: 2900 | BE36: 8881 | BF36: 2503 | BG36: 444 | BH36: 2354 | BI36: 151 | BJ36: 6740 | BK36: 1136417000000 | BL36: 59275.08758 | BM36: 0.014053212 | BN36: 0.0928201438 | BO36: 8.3
A37: 2010 | B37: 34 | C37: North Carolina | D37: 9443000 | E37: 5070 | F37: 7982017 | G37: 29580 | H37: 1141001 | I37: 25307 | J37: 263256 | K37: 3044 | L37: 1618 | M37: 2847 | N37: 550 | O37: 16699 | P37: 1842 | Q37: 3752 | R37: 479 | S37: 1691 | T37: 28983 | U37: 15943 | V37: 1567 | W37: 724 | X37: 5657 | Y37: 4132 | Z37: 1077 | AA37: 2192 | AB37: 4419 | AC37: 2180 | AD37: 2259 | AE37: 9881 | AF37: 4052 | AG37: 5789 | AH37: 1839 | AI37: 1187 | AJ37: 1932 | AK37: 230 | AL37: 516 | AM37: 698 | AN37: 2130 | AO37: 7195 | AP37: 1186 | AQ37: 19406 | AS37: 243 | AT37: 8661 | AU37: 1453 | AV37: 1796 | AW37: 11155 | AX37: 97 | AY37: 23196 | AZ37: 362 | BA37: 8685 | BB37: 14329 | BC37: 790 | BD37: 350 | BE37: 25662 | BF37: 2874 | BG37: 3025 | BH37: 2012 | BI37: 870 | BJ37: 1950 | BK37: 426875000000 | BL37: 45205.44319 | BM37: 0.02787842847 | BN37: 0.1208303505 | BO37: 10.5
A38: 2010 | B38: 35 | C38: North Dakota | D38: 665654 | E38: 1209 | F38: 556222 | G38: 6833 | H38: 75720 | I38: 5430 | J38: 30100 | K38: 109 | L38: 1066 | M38: 662 | N38: 168 | O38: 1411 | P38: 873 | Q38: 30 | R38: 0 | S38: 175 | T38: 492 | U38: 799 | V38: 53 | W38: 69 | X38: 39 | Y38: 45 | Z38: 289 | AA38: 114 | AB38: 97 | AC38: 374 | AD38: 0 | AE38: 121 | AF38: 52 | AG38: 298 | AH38: 12350 | AI38: 0 | AJ38: 197 | AK38: 1236 | AL38: 328 | AM38: 382 | AN38: 0 | AO38: 144 | AP38: 380 | AQ38: 188 | AR38: 637 | AT38: 134 | AU38: 108 | AV38: 313 | AW38: 392 | AX38: 0 | AY38: 0 | AZ38: 1038 | BA38: 273 | BB38: 2513 | BC38: 462 | BD38: 0 | BE38: 25 | BF38: 696 | BG38: 0 | BH38: 749 | BI38: 219 | BJ38: 0 | BK38: 35357000000 | BL38: 53116.18348 | BM38: 0.04521868719 | BN38: 0.1137527905 | BO38: 3.6
A39: 2010 | B39: 36 | C39: Ohio | D39: 11405101 | E39: 4931 | F39: 9745227 | G39: 23258 | H39: 1453401 | I39: 23324 | J39: 172633 | K39: 1289 | L39: 1556 | M39: 4715 | N39: 434 | O39: 8997 | P39: 2859 | Q39: 1307 | R39: 15 | S39: 972 | T39: 16495 | U39: 9502 | V39: 436 | W39: 564 | X39: 7092 | Y39: 9438 | Z39: 1270 | AA39: 1016 | AB39: 9159 | AC39: 743 | AD39: 291 | AE39: 3828 | AF39: 3686 | AG39: 15130 | AH39: 2298 | AI39: 89 | AJ39: 1171 | AK39: 460 | AL39: 1531 | AM39: 2240 | AN39: 175 | AO39: 2465 | AP39: 515 | AQ39: 5988 | AR39: 5985 | AS39: 26 | AU39: 1228 | AV39: 342 | AW39: 12012 | AX39: 444 | AY39: 2479 | AZ39: 207 | BA39: 4987 | BB39: 7465 | BC39: 485 | BD39: 182 | BE39: 6769 | BF39: 2567 | BG39: 7814 | BH39: 1771 | BI39: 144 | BJ39: 2140 | BK39: 465679000000 | BL39: 40830.76511 | BM39: 0.01513647271 | BN39: 0.1274342945 | BO39: 9.3
A40: 2010 | B40: 37 | C40: Oklahoma | D40: 3716264 | E40: 3181 | F40: 3065497 | G40: 21363 | H40: 528824 | I40: 18463 | J40: 106511 | K40: 1612 | L40: 1397 | M40: 2759 | N40: 5873 | O40: 9429 | P40: 3184 | Q40: 68 | R40: 109 | S40: 0 | T40: 5438 | U40: 3159 | V40: 773 | W40: 611 | X40: 2679 | Y40: 957 | Z40: 1108 | AA40: 5024 | AB40: 877 | AC40: 2208 | AD40: 298 | AE40: 382 | AF40: 465 | AG40: 1047 | AH40: 599 | AI40: 1733 | AJ40: 4102 | AK40: 448 | AL40: 829 | AM40: 1079 | AN40: 69 | AO40: 890 | AP40: 2723 | AQ40: 1118 | AR40: 1991 | AS40: 139 | AT40: 1385 | AV40: 398 | AW40: 1316 | AX40: 119 | AY40: 596 | AZ40: 83 | BA40: 1872 | BB40: 28238 | BC40: 428 | BD40: 93 | BE40: 2286 | BF40: 2035 | BG40: 221 | BH40: 551 | BI40: 1713 | BJ40: 209 | BK40: 147649000000 | BL40: 39730.49277 | BM40: 0.02866077329 | BN40: 0.1422999012 | BO40: 6.4
A41: 2010 | B41: 38 | C41: Oregon | D41: 3794008 | E41: 3282 | F41: 3110896 | G41: 20156 | H41: 545841 | I41: 17758 | J41: 116700 | K41: 400 | L41: 2027 | M41: 5264 | N41: 246 | O41: 34190 | P41: 2050 | Q41: 270 | R41: 0 | S41: 217 | T41: 2273 | U41: 688 | V41: 2323 | W41: 4129 | X41: 1565 | Y41: 317 | Z41: 161 | AA41: 678 | AB41: 0 | AC41: 0 | AD41: 0 | AE41: 595 | AF41: 1471 | AG41: 1159 | AH41: 668 | AI41: 735 | AJ41: 1786 | AK41: 3386 | AL41: 777 | AM41: 2805 | AN41: 317 | AO41: 544 | AP41: 981 | AQ41: 2538 | AR41: 1040 | AS41: 592 | AT41: 1541 | AU41: 821 | AW41: 1689 | AX41: 0 | AY41: 989 | AZ41: 741 | BA41: 787 | BB41: 3826 | BC41: 2879 | BD41: 456 | BE41: 1124 | BF41: 22793 | BG41: 358 | BH41: 1981 | BI41: 523 | BJ41: 821 | BK41: 181523000000 | BL41: 47844.65399 | BM41: 0.03075902845 | BN41: 0.1438692275 | BO41: 10.3
A42: 2010 | B42: 39 | C42: Pennsylvania | D42: 12577555 | E42: 4619 | F42: 11053022 | G42: 29699 | H42: 1239199 | I42: 26490 | J42: 235580 | K42: 369 | L42: 2185 | M42: 3668 | N42: 807 | O42: 12077 | P42: 3657 | Q42: 4007 | R42: 4608 | S42: 1621 | T42: 18212 | U42: 4644 | V42: 332 | W42: 380 | X42: 4490 | Y42: 2018 | Z42: 227 | AA42: 1426 | AB42: 1675 | AC42: 625 | AD42: 1621 | AE42: 18281 | AF42: 4455 | AG42: 4961 | AH42: 1491 | AI42: 563 | AJ42: 1725 | AK42: 339 | AL42: 551 | AM42: 1810 | AN42: 729 | AO42: 42456 | AP42: 1250 | AQ42: 30481 | AR42: 7611 | AS42: 521 | AT42: 14545 | AU42: 1254 | AV42: 918 | AX42: 377 | AY42: 1315 | AZ42: 966 | BA42: 1611 | BB42: 7778 | BC42: 1048 | BD42: 215 | BE42: 10558 | BF42: 2495 | BG42: 4258 | BH42: 1300 | BI42: 1069 | BJ42: 6275 | BK42: 558818000000 | BL42: 44429.77987 | BM42: 0.01873019041 | BN42: 0.09852463376 | BO42: 8.1
A43: 2010 | B43: 40 | C43: Rhode Island | D43: 1042240 | E43: 1435 | F43: 900283 | G43: 9035 | H43: 99603 | I43: 7344 | J43: 32059 | K43: 136 | L43: 0 | M43: 324 | N43: 0 | O43: 1697 | P43: 59 | Q43: 4090 | R43: 0 | S43: 146 | T43: 1336 | U43: 382 | V43: 274 | W43: 0 | X43: 1210 | Y43: 206 | Z43: 48 | AA43: 0 | AB43: 0 | AC43: 0 | AD43: 447 | AE43: 977 | AF43: 8639 | AG43: 77 | AH43: 47 | AI43: 0 | AJ43: 47 | AK43: 0 | AL43: 0 | AM43: 297 | AN43: 333 | AO43: 1868 | AP43: 0 | AQ43: 4583 | AR43: 1376 | AS43: 62 | AT43: 0 | AU43: 199 | AV43: 0 | AW43: 560 | AY43: 61 | AZ43: 48 | BA43: 71 | BB43: 678 | BC43: 0 | BD43: 72 | BE43: 1399 | BF43: 160 | BG43: 150 | BH43: 0 | BI43: 0 | BJ43: 276 | BK43: 48572000000 | BL43: 46603.46945 | BM43: 0.03075970986 | BN43: 0.09556628032 | BO43: 11.5
A44: 2010 | B44: 41 | C44: South Carolina | D44: 4577399 | E44: 3786 | F44: 3870879 | G44: 23788 | H44: 537961 | I44: 21768 | J44: 152441 | K44: 1741 | L44: 1670 | M44: 1457 | N44: 365 | O44: 4691 | P44: 1867 | Q44: 3998 | R44: 249 | S44: 38 | T44: 16060 | U44: 17486 | V44: 813 | W44: 233 | X44: 4253 | Y44: 2174 | Z44: 703 | AA44: 514 | AB44: 2211 | AC44: 2059 | AD44: 603 | AE44: 5184 | AF44: 3765 | AG44: 3709 | AH44: 818 | AI44: 1175 | AJ44: 1371 | AK44: 0 | AL44: 0 | AM44: 1173 | AN44: 486 | AO44: 4908 | AP44: 1390 | AQ44: 7912 | AR44: 20749 | AS44: 118 | AT44: 3883 | AU44: 1458 | AV44: 1020 | AW44: 4689 | AX44: 154 | AZ44: 95 | BA44: 3816 | BB44: 4965 | BC44: 455 | BD44: 478 | BE44: 9786 | BF44: 3070 | BG44: 1190 | BH44: 1057 | BI44: 382 | BJ44: 269 | BK44: 162292000000 | BL44: 35455.06957 | BM44: 0.03330297403 | BN44: 0.1175254768 | BO44: 10.6
A45: 2010 | B45: 42 | C45: South Dakota | D45: 805616 | E45: 1372 | F45: 680993 | G45: 6027 | H45: 96805 | I45: 5853 | J45: 25777 | K45: 325 | L45: 25 | M45: 745 | N45: 61 | O45: 1338 | P45: 807 | Q45: 0 | R45: 0 | S45: 0 | T45: 251 | U45: 24 | V45: 75 | W45: 457 | X45: 80 | Y45: 439 | Z45: 3520 | AA45: 571 | AB45: 82 | AC45: 129 | AD45: 0 | AE45: 0 | AF45: 407 | AG45: 144 | AH45: 4615 | AI45: 201 | AJ45: 252 | AK45: 560 | AL45: 2260 | AM45: 38 | AN45: 0 | AO45: 0 | AP45: 38 | AQ45: 758 | AR45: 262 | AS45: 2020 | AT45: 160 | AU45: 296 | AV45: 122 | AW45: 209 | AX45: 0 | AY45: 0 | BA45: 0 | BB45: 1334 | BC45: 0 | BD45: 0 | BE45: 224 | BF45: 1564 | BG45: 0 | BH45: 736 | BI45: 648 | BJ45: 0 | BK45: 38297000000 | BL45: 47537.53649 | BM45: 0.03199663363 | BN45: 0.1201627078 | BO45: 5
A46: 2010 | B46: 43 | C46: Tennessee | D46: 6282706 | E46: 4009 | F46: 5299496 | G46: 24505 | H46: 801355 | I46: 21988 | J46: 159778 | K46: 8897 | L46: 343 | M46: 2291 | N46: 4736 | O46: 8019 | P46: 1858 | Q46: 765 | R46: 248 | S46: 394 | T46: 14168 | U46: 11065 | V46: 243 | W46: 333 | X46: 3162 | Y46: 4764 | Z46: 1052 | AA46: 2506 | AB46: 11188 | AC46: 2602 | AD46: 84 | AE46: 1450 | AF46: 1733 | AG46: 5529 | AH46: 1504 | AI46: 9029 | AJ46: 4342 | AK46: 290 | AL46: 187 | AM46: 2433 | AN46: 197 | AO46: 2230 | AP46: 621 | AQ46: 4800 | AR46: 7102 | AS46: 0 | AT46: 4462 | AU46: 669 | AV46: 430 | AW46: 2562 | AX46: 805 | AY46: 4765 | AZ46: 63 | BB46: 8701 | BC46: 2062 | BD46: 0 | BE46: 8650 | BF46: 1412 | BG46: 2201 | BH46: 2831 | BI46: 0 | BJ46: 0 | BK46: 253602000000 | BL46: 40365.09109 | BM46: 0.02543139851 | BN46: 0.1275493394 | BO46: 9.7
A47: 2010 | B47: 44 | C47: Texas | D47: 24899075 | E47: 8102 | F47: 20500156 | G47: 52416 | H47: 3740344 | I47: 51566 | J47: 486558 | K47: 8636 | L47: 11613 | M47: 16521 | N47: 15251 | O47: 68959 | P47: 16361 | Q47: 924 | R47: 704 | S47: 460 | T47: 26668 | U47: 16671 | V47: 3718 | W47: 2033 | X47: 20169 | Y47: 6985 | Z47: 3946 | AA47: 11598 | AB47: 5153 | AC47: 31149 | AD47: 1318 | AE47: 4724 | AF47: 7139 | AG47: 13775 | AH47: 6088 | AI47: 7773 | AJ47: 12061 | AK47: 1027 | AL47: 4893 | AM47: 8324 | AN47: 1067 | AO47: 7058 | AP47: 11752 | AQ47: 16624 | AR47: 12183 | AS47: 2452 | AT47: 8317 | AU47: 22969 | AV47: 4373 | AW47: 7161 | AX47: 975 | AY47: 5249 | AZ47: 1936 | BA47: 13044 | BC47: 4123 | BD47: 52 | BE47: 13713 | BF47: 8847 | BG47: 2221 | BH47: 5927 | BI47: 1874 | BJ47: 4180 | BK47: 1226714000000 | BL47: 49267.45271 | BM47: 0.01954120786 | BN47: 0.1502201989 | BO47: 8.2
A48: 2010 | B48: 45 | C48: Utah | D48: 2724064 | E48: 2775 | F48: 2240636 | G48: 18397 | H48: 388410 | I48: 17535 | J48: 77780 | K48: 93 | L48: 1798 | M48: 8147 | N48: 316 | O48: 12187 | P48: 3987 | Q48: 119 | R48: 0 | S48: 138 | T48: 2097 | U48: 966 | V48: 932 | W48: 7692 | X48: 1831 | Y48: 517 | Z48: 483 | AA48: 299 | AB48: 235 | AC48: 46 | AD48: 148 | AE48: 426 | AF48: 246 | AG48: 261 | AH48: 914 | AI48: 127 | AJ48: 1255 | AK48: 1929 | AL48: 118 | AM48: 4549 | AN48: 0 | AO48: 247 | AP48: 518 | AQ48: 1462 | AR48: 1167 | AS48: 0 | AT48: 1527 | AU48: 886 | AV48: 2525 | AW48: 557 | AX48: 0 | AY48: 838 | AZ48: 875 | BA48: 459 | BB48: 5305 | BD48: 297 | BE48: 3005 | BF48: 3792 | BG48: 0 | BH48: 338 | BI48: 2126 | BJ48: 383 | BK48: 118225000000 | BL48: 43400.22848 | BM48: 0.0285529268 | BN48: 0.1425847557 | BO48: 7.7
A49: 2010 | B49: 46 | C49: Vermont | D49: 619363 | E49: 779 | F49: 534975 | G49: 5691 | H49: 59032 | I49: 4857 | J49: 22529 | K49: 0 | L49: 184 | M49: 65 | N49: 0 | O49: 1001 | P49: 326 | Q49: 1287 | R49: 87 | S49: 9 | T49: 2063 | U49: 496 | V49: 49 | W49: 0 | X49: 370 | Y49: 0 | Z49: 91 | AA49: 0 | AB49: 176 | AC49: 0 | AD49: 824 | AE49: 300 | AF49: 3599 | AG49: 201 | AH49: 85 | AI49: 0 | AJ49: 51 | AK49: 236 | AL49: 0 | AM49: 58 | AN49: 2760 | AO49: 751 | AP49: 0 | AQ49: 4056 | AR49: 539 | AS49: 30 | AT49: 50 | AU49: 0 | AV49: 100 | AW49: 524 | AX49: 227 | AY49: 134 | AZ49: 153 | BA49: 125 | BB49: 565 | BC49: 0 | BE49: 400 | BF49: 128 | BG49: 0 | BH49: 377 | BI49: 52 | BJ49: 0 | BK49: 25809000000 | BL49: 41670.23216 | BM49: 0.03637446861 | BN49: 0.09531082741 | BO49: 6.1
A50: 2010 | B50: 47 | C50: Virginia | D50: 7930773 | E50: 4735 | F50: 6752310 | G50: 28251 | H50: 870491 | I50: 21599 | J50: 259507 | K50: 2671 | L50: 3296 | M50: 3807 | N50: 1233 | O50: 17088 | P50: 3229 | Q50: 2468 | R50: 1265 | S50: 10593 | T50: 18165 | U50: 11927 | V50: 2347 | W50: 1159 | X50: 7576 | Y50: 2892 | Z50: 1135 | AA50: 2103 | AB50: 2051 | AC50: 2148 | AD50: 1494 | AE50: 24822 | AF50: 4104 | AG50: 5733 | AH50: 462 | AI50: 1858 | AJ50: 4262 | AK50: 866 | AL50: 523 | AM50: 748 | AN50: 372 | AO50: 6825 | AP50: 1098 | AQ50: 17525 | AR50: 23829 | AS50: 201 | AT50: 7708 | AU50: 781 | AV50: 2137 | AW50: 11796 | AX50: 1543 | AY50: 8339 | AZ50: 98 | BA50: 5842 | BB50: 12938 | BC50: 1551 | BD50: 676 | BF50: 4373 | BG50: 6779 | BH50: 2648 | BI50: 423 | BJ50: 1306 | BK50: 422763000000 | BL50: 53306.6575 | BM50: 0.03272152664 | BN50: 0.1097611796 | BO50: 6.7
A51: 2010 | B51: 48 | C51: Washington | D51: 6661321 | E51: 4568 | F51: 5464985 | G51: 26926 | H51: 946923 | I51: 24983 | J51: 191784 | K51: 1322 | L51: 5644 | M51: 5971 | N51: 658 | O51: 39468 | P51: 4883 | Q51: 642 | R51: 202 | S51: 243 | T51: 5378 | U51: 3107 | V51: 4246 | W51: 12661 | X51: 3931 | Y51: 1912 | Z51: 1685 | AA51: 1694 | AB51: 886 | AC51: 1011 | AD51: 717 | AE51: 629 | AF51: 1448 | AG51: 2871 | AH51: 1323 | AI51: 737 | AJ51: 3727 | AK51: 5094 | AL51: 323 | AM51: 5310 | AN51: 282 | AO51: 721 | AP51: 1012 | AQ51: 4140 | AR51: 2143 | AS51: 515 | AT51: 2727 | AU51: 1986 | AV51: 26235 | AW51: 2893 | AX51: 220 | AY51: 3047 | AZ51: 866 | BA51: 789 | BB51: 11338 | BC51: 4020 | BD51: 981 | BE51: 7266 | BG51: 62 | BH51: 2180 | BI51: 638 | BJ51: 0 | BK51: 342702000000 | BL51: 51446.55242 | BM51: 0.02879068581 | BN51: 0.1421524349 | BO51: 9.6
A52: 2010 | B52: 49 | C52: West Virginia | D52: 1833535 | E52: 1890 | F52: 1625125 | G52: 9824 | H52: 166168 | I52: 9198 | J52: 39609 | K52: 41 | L52: 1326 | M52: 0 | N52: 0 | O52: 760 | P52: 608 | Q52: 84 | R52: 556 | S52: 480 | T52: 1842 | U52: 485 | V52: 0 | W52: 88 | X52: 356 | Y52: 366 | Z52: 0 | AA52: 161 | AB52: 851 | AC52: 60 | AD52: 0 | AE52: 4249 | AF52: 191 | AG52: 657 | AH52: 0 | AI52: 44 | AJ52: 160 | AK52: 39 | AL52: 0 | AM52: 25 | AN52: 107 | AO52: 906 | AP52: 0 | AQ52: 611 | AR52: 2552 | AS52: 268 | AT52: 7925 | AU52: 229 | AV52: 0 | AW52: 4908 | AX52: 238 | AY52: 647 | AZ52: 0 | BA52: 1160 | BB52: 968 | BC52: 112 | BD52: 208 | BE52: 4999 | BF52: 192 | BH52: 150 | BI52: 0 | BJ52: 182 | BK52: 62732000000 | BL52: 34213.69104 | BM52: 0.02160253281 | BN52: 0.09062712193 | BO52: 8.4
A53: 2010 | B53: 50 | C53: Wisconsin | D53: 5623196 | E53: 3124 | F53: 4824045 | G53: 20412 | H53: 691592 | I53: 17462 | J53: 93065 | K53: 552 | L53: 798 | M53: 1854 | N53: 518 | O53: 4506 | P53: 1890 | Q53: 359 | R53: 351 | S53: 98 | T53: 4492 | U53: 1656 | V53: 550 | W53: 902 | X53: 20299 | Y53: 2563 | Z53: 2300 | AA53: 752 | AB53: 287 | AC53: 331 | AD53: 448 | AE53: 1088 | AF53: 992 | AG53: 6317 | AH53: 16741 | AI53: 810 | AJ53: 1716 | AK53: 154 | AL53: 853 | AM53: 1049 | AN53: 69 | AO53: 632 | AP53: 123 | AQ53: 1291 | AR53: 1817 | AS53: 497 | AT53: 1674 | AU53: 89 | AV53: 1444 | AW53: 2211 | AX53: 0 | AY53: 1142 | AZ53: 235 | BA53: 856 | BB53: 3039 | BC53: 476 | BD53: 75 | BE53: 771 | BF53: 1013 | BG53: 256 | BI53: 129 | BJ53: 521 | BK53: 245415000000 | BL53: 43643.33023 | BM53: 0.01655019672 | BN53: 0.1229891329 | BO53: 7.8
A54: 2010 | B54: 51 | C54: Wyoming | D54: 556954 | E54: 1133 | F54: 444614 | G54: 8794 | H54: 82255 | I54: 8679 | J54: 28046 | K54: 172 | L54: 0 | M54: 1511 | N54: 0 | O54: 2784 | P54: 4390 | Q54: 0 | R54: 0 | S54: 0 | T54: 396 | U54: 745 | V54: 25 | W54: 942 | X54: 415 | Y54: 132 | Z54: 462 | AA54: 532 | AB54: 519 | AC54: 107 | AD54: 0 | AE54: 51 | AF54: 252 | AG54: 570 | AH54: 218 | AI54: 0 | AJ54: 421 | AK54: 2528 | AL54: 1711 | AM54: 416 | AN54: 0 | AO54: 0 | AP54: 707 | AQ54: 146 | AR54: 34 | AS54: 233 | AT54: 56 | AU54: 62 | AV54: 14 | AW54: 95 | AX54: 0 | AY54: 220 | AZ54: 258 | BA54: 495 | BB54: 1990 | BC54: 3226 | BD54: 75 | BE54: 580 | BF54: 556 | BG54: 0 | BH54: 0 | BJ54: 0 | BK54: 36459000000 | BL54: 65461.42051 | BM54: 0.05035604377 | BN54: 0.1476872417 | BO54: 6.5
A55: 2010 | B55: 52 | C55: Puerto Rico | D55: 3676493 | E55: 2933 | F55: 3392179 | G55: 13112 | H55: 247593 | I55: 12844 | J55: 31732 | K55: 629 | L55: 156 | M55: 288 | N55: 0 | O55: 1177 | P55: 388 | Q55: 899 | R55: 0 | S55: 0 | T55: 11262 | U55: 207 | V55: 0 | W55: 0 | X55: 1642 | Y55: 109 | Z55: 0 | AA55: 112 | AB55: 254 | AC55: 109 | AD55: 0 | AE55: 59 | AF55: 2004 | AG55: 89 | AH55: 50 | AI55: 170 | AJ55: 221 | AK55: 0 | AL55: 0 | AM55: 0 | AN55: 0 | AO55: 1244 | AP55: 364 | AQ55: 4768 | AR55: 146 | AS55: 0 | AT55: 69 | AU55: 0 | AV55: 0 | AW55: 1516 | AX55: 684 | AY55: 109 | AZ55: 0 | BA55: 30 | BB55: 977 | BC55: 882 | BD55: 0 | BE55: 392 | BF55: 0 | BG55: 141 | BH55: 585 | BI55: 0 | BK55: 101496000000 | BL55: 27606.74371 | BM55: 0.008631051385 | BN55: 0.06734488547 | BO55: 16.3
A56: 2011 | B56: 53 | C56: Alabama | D56: 4745278 | E56: 4078 | F56: 4024442 | G56: 22751 | H56: 588293 | I56: 20366 | J56: 117726 | L56: 1771 | M56: 1677 | N56: 1642 | O56: 3389 | P56: 348 | Q56: 2921 | R56: 232 | S56: 399 | T56: 20063 | U56: 19346 | V56: 1259 | W56: 137 | X56: 6991 | Y56: 1434 | Z56: 30 | AA56: 842 | AB56: 2686 | AC56: 2413 | AD56: 626 | AE56: 1606 | AF56: 112 | AG56: 2797 | AH56: 327 | AI56: 3945 | AJ56: 1086 | AK56: 317 | AL56: 770 | AM56: 257 | AN56: 64 | AO56: 1996 | AP56: 119 | AQ56: 1108 | AR56: 2697 | AS56: 284 | AT56: 2596 | AU56: 973 | AV56: 169 | AW56: 1075 | AX56: 0 | AY56: 2036 | AZ56: 90 | BA56: 8710 | BB56: 7973 | BC56: 300 | BD56: 66 | BE56: 4935 | BF56: 2621 | BG56: 65 | BH56: 417 | BI56: 9 | BJ56: 569 | BK56: 178533000000 | BL56: 37623.29625 | BM56: 0.02480908389 | BN56: 0.1239744015 | BO56: 7.3
A57: 2011 | B57: 54 | C57: Alaska | D57: 711962 | E57: 1401 | F57: 571857 | G57: 8892 | H57: 100280 | I57: 8388 | J57: 35084 | K57: 93 | M57: 2467 | N57: 190 | O57: 3098 | P57: 1583 | Q57: 138 | R57: 11 | S57: 140 | T57: 1188 | U57: 556 | V57: 1366 | W57: 475 | X57: 985 | Y57: 181 | Z57: 319 | AA57: 750 | AB57: 237 | AC57: 1077 | AD57: 0 | AE57: 216 | AF57: 141 | AG57: 771 | AH57: 593 | AI57: 554 | AJ57: 921 | AK57: 248 | AL57: 5 | AM57: 532 | AN57: 520 | AO57: 128 | AP57: 226 | AQ57: 940 | AR57: 470 | AS57: 0 | AT57: 319 | AU57: 616 | AV57: 2161 | AW57: 378 | AX57: 0 | AY57: 186 | AZ57: 301 | BA57: 388 | BB57: 2492 | BC57: 662 | BD57: 68 | BE57: 1488 | BF57: 4548 | BG57: 89 | BH57: 23 | BI57: 246 | BJ57: 1044 | BK57: 51237000000 | BL57: 71965.91953 | BM57: 0.0492779109 | BN57: 0.1408502139 | BO57: 7.4
A58: 2011 | B58: 55 | C58: Arizona | D58: 6402301 | E58: 5660 | F58: 5107496 | G58: 39045 | H58: 1028366 | I58: 36556 | J58: 222877 | K58: 833 | L58: 5001 | N58: 1066 | O58: 49635 | P58: 10189 | Q58: 1875 | R58: 0 | S58: 389 | T58: 3732 | U58: 2206 | V58: 2199 | W58: 2190 | X58: 10035 | Y58: 5855 | Z58: 4526 | AA58: 1708 | AB58: 2134 | AC58: 844 | AD58: 0 | AE58: 1918 | AF58: 743 | AG58: 9396 | AH58: 3297 | AI58: 1226 | AJ58: 3872 | AK58: 2431 | AL58: 1393 | AM58: 8756 | AN58: 228 | AO58: 3379 | AP58: 4610 | AQ58: 3880 | AR58: 2548 | AS58: 1159 | AT58: 4682 | AU58: 3219 | AV58: 4613 | AW58: 3436 | AX58: 72 | AY58: 1774 | AZ58: 1657 | BA58: 1680 | BB58: 12688 | BC58: 10577 | BD58: 0 | BE58: 2233 | BF58: 13940 | BG58: 70 | BH58: 6473 | BI58: 2510 | BJ58: 871 | BK58: 255989000000 | BL58: 39983.90579 | BM58: 0.03481201524 | BN58: 0.160624438 | BO58: 8.7
A59: 2011 | B59: 56 | C59: Arkansas | D59: 2906632 | E59: 2928 | F59: 2421746 | G59: 18606 | H59: 405831 | I59: 18050 | J59: 69845 | K59: 691 | L59: 560 | M59: 439 | O59: 4077 | P59: 746 | Q59: 519 | R59: 79 | S59: 0 | T59: 3067 | U59: 1446 | V59: 13 | W59: 179 | X59: 3684 | Y59: 1362 | Z59: 851 | AA59: 2008 | AB59: 213 | AC59: 2120 | AD59: 30 | AE59: 133 | AF59: 781 | AG59: 1881 | AH59: 232 | AI59: 1731 | AJ59: 7314 | AK59: 713 | AL59: 332 | AM59: 641 | AN59: 52 | AO59: 341 | AP59: 775 | AQ59: 674 | AR59: 1664 | AS59: 214 | AT59: 174 | AU59: 3761 | AV59: 632 | AW59: 567 | AX59: 0 | AY59: 235 | AZ59: 0 | BA59: 6462 | BB59: 14767 | BC59: 0 | BD59: 0 | BE59: 1245 | BF59: 1477 | BG59: 24 | BH59: 687 | BI59: 252 | BJ59: 529 | BK59: 106557000000 | BL59: 36659.95558 | BM59: 0.02402952971 | BN59: 0.1396224221 | BO59: 7.6
A60: 2011 | B60: 57 | C60: California | D60: 37222678 | E60: 9999 | F60: 31213310 | G60: 71183 | H60: 5271168 | I60: 68394 | J60: 468428 | K60: 2087 | L60: 7358 | M60: 35650 | N60: 2648 | P60: 21245 | Q60: 3073 | R60: 1302 | S60: 3240 | T60: 22094 | U60: 13303 | V60: 9864 | W60: 4796 | X60: 20834 | Y60: 4673 | Z60: 3324 | AA60: 2810 | AB60: 1201 | AC60: 3600 | AD60: 1658 | AE60: 7793 | AF60: 10244 | AG60: 12069 | AH60: 5687 | AI60: 2092 | AJ60: 7677 | AK60: 2599 | AL60: 1955 | AM60: 36159 | AN60: 1222 | AO60: 8053 | AP60: 5904 | AQ60: 25629 | AR60: 8708 | AS60: 1392 | AT60: 10474 | AU60: 5113 | AV60: 18165 | AW60: 8550 | AX60: 1103 | AY60: 5758 | AZ60: 1004 | BA60: 8761 | BB60: 37087 | BC60: 8944 | BD60: 745 | BE60: 15753 | BF60: 36481 | BG60: 832 | BH60: 5668 | BI60: 2047 | BJ60: 1344 | BK60: 1908985000000 | BL60: 51285.5362 | BM60: 0.01258447874 | BN60: 0.1416117347 | BO60: 11.2
A61: 2011 | B61: 58 | C61: Colorado | D61: 5048443 | E61: 4037 | F61: 4048042 | G61: 22888 | H61: 763233 | I61: 18937 | J61: 202124 | K61: 2340 | L61: 3191 | M61: 12338 | N61: 1615 | O61: 23234 | Q61: 1567 | R61: 501 | S61: 298 | T61: 8075 | U61: 3250 | V61: 1852 | W61: 1578 | X61: 6027 | Y61: 2116 | Z61: 3510 | AA61: 3718 | AB61: 1361 | AC61: 908 | AD61: 1358 | AE61: 3303 | AF61: 2157 | AG61: 3225 | AH61: 3055 | AI61: 879 | AJ61: 4552 | AK61: 4079 | AL61: 4582 | AM61: 4061 | AN61: 489 | AO61: 2863 | AP61: 8797 | AQ61: 3998 | AR61: 4756 | AS61: 2249 | AT61: 5527 | AU61: 3824 | AV61: 5543 | AW61: 3348 | AX61: 435 | AY61: 718 | AZ61: 1340 | BA61: 3193 | BB61: 22390 | BC61: 3856 | BD61: 914 | BE61: 6281 | BF61: 5524 | BG61: 412 | BH61: 3995 | BI61: 2942 | BJ61: 476 | BK61: 264733000000 | BL61: 52438.54392 | BM61: 0.04003689851 | BN61: 0.1511818594 | BO61: 8.3
A62: 2011 | B62: 59 | C62: Connecticut | D62: 3548667 | E62: 2644 | F62: 3139496 | G62: 16755 | H62: 316883 | I62: 15392 | J62: 71502 | K62: 101 | L62: 180 | M62: 1387 | N62: 84 | O62: 3699 | P62: 1502 | R62: 62 | S62: 607 | T62: 4771 | U62: 2000 | V62: 587 | W62: 133 | X62: 1843 | Y62: 168 | Z62: 67 | AA62: 16 | AB62: 0 | AC62: 315 | AD62: 259 | AE62: 1267 | AF62: 8691 | AG62: 692 | AH62: 76 | AI62: 69 | AJ62: 365 | AK62: 206 | AL62: 62 | AM62: 160 | AN62: 1221 | AO62: 3809 | AP62: 265 | AQ62: 20015 | AR62: 1029 | AS62: 0 | AT62: 1383 | AU62: 217 | AV62: 117 | AW62: 3668 | AX62: 1488 | AY62: 997 | AZ62: 0 | BA62: 123 | BB62: 1214 | BC62: 398 | BD62: 608 | BE62: 2555 | BF62: 2255 | BG62: 46 | BH62: 660 | BI62: 65 | BJ62: 2105 | BK62: 225409000000 | BL62: 63519.34402 | BM62: 0.02014897425 | BN62: 0.08929634705 | BO62: 8.3
A63: 2011 | B63: 60 | C63: Delaware | D63: 897187 | E63: 1369 | F63: 775414 | G63: 8584 | H63: 83156 | I63: 6851 | J63: 33912 | K63: 81 | L63: 329 | M63: 541 | N63: 0 | O63: 699 | P63: 169 | Q63: 66 | S63: 154 | T63: 810 | U63: 639 | V63: 201 | W63: 441 | X63: 34 | Y63: 210 | Z63: 0 | AA63: 7 | AB63: 305 | AC63: 0 | AD63: 0 | AE63: 4238 | AF63: 806 | AG63: 43 | AH63: 201 | AI63: 0 | AJ63: 713 | AK63: 0 | AL63: 12 | AM63: 0 | AN63: 0 | AO63: 6297 | AP63: 0 | AQ63: 3141 | AR63: 388 | AS63: 0 | AT63: 664 | AU63: 27 | AV63: 0 | AW63: 8571 | AX63: 131 | AY63: 153 | AZ63: 0 | BA63: 221 | BB63: 883 | BC63: 475 | BD63: 0 | BE63: 1064 | BF63: 482 | BG63: 198 | BH63: 55 | BI63: 463 | BJ63: 1008 | BK63: 64377000000 | BL63: 71754.27196 | BM63: 0.03779814019 | BN63: 0.09268524845 | BO63: 7.2
A64: 2011 | B64: 61 | C64: District of Columbia | D64: 611608 | E64: 1403 | F64: 489659 | G64: 6701 | H64: 66519 | I64: 6073 | J64: 48066 | K64: 13 | L64: 135 | M64: 43 | N64: 81 | O64: 3797 | P64: 452 | Q64: 981 | R64: 128 | T64: 1254 | U64: 937 | V64: 372 | W64: 68 | X64: 1397 | Y64: 128 | Z64: 241 | AA64: 6 | AB64: 297 | AC64: 0 | AD64: 0 | AE64: 14129 | AF64: 2048 | AG64: 1108 | AH64: 409 | AI64: 83 | AJ64: 112 | AK64: 38 | AL64: 79 | AM64: 238 | AN64: 145 | AO64: 1035 | AP64: 0 | AQ64: 2313 | AR64: 1716 | AS64: 285 | AT64: 306 | AU64: 0 | AV64: 51 | AW64: 1589 | AX64: 50 | AY64: 357 | AZ64: 104 | BA64: 421 | BB64: 1083 | BC64: 75 | BD64: 445 | BE64: 7975 | BF64: 476 | BG64: 120 | BH64: 946 | BI64: 0 | BJ64: 0 | BK64: 107201000000 | BL64: 175277.3018 | BM64: 0.07858955409 | BN64: 0.1087608403 | BO64: 9.7
A65: 2011 | B65: 62 | C65: Florida | D65: 18863948 | E65: 8536 | F65: 15742168 | G65: 59355 | H65: 2454255 | I65: 53419 | J65: 498597 | K65: 12635 | L65: 7405 | M65: 8451 | N65: 3025 | O65: 22420 | P65: 9383 | Q65: 11704 | R65: 1264 | S65: 891 | U65: 38658 | V65: 3639 | W65: 312 | X65: 19152 | Y65: 11472 | Z65: 1846 | AA65: 2661 | AB65: 5441 | AC65: 6094 | AD65: 4689 | AE65: 15410 | AF65: 13701 | AG65: 19640 | AH65: 4663 | AI65: 5175 | AJ65: 7114 | AK65: 559 | AL65: 3857 | AM65: 3527 | AN65: 4324 | AO65: 25206 | AP65: 1376 | AQ65: 59288 | AR65: 23983 | AS65: 514 | AT65: 18191 | AU65: 2600 | AV65: 3315 | AW65: 20821 | AX65: 5002 | AY65: 11953 | AZ65: 716 | BA65: 10451 | BB65: 25532 | BC65: 2343 | BD65: 2019 | BE65: 16614 | BF65: 6339 | BG65: 4964 | BH65: 7412 | BI65: 846 | BJ65: 21611 | BK65: 746439000000 | BL65: 39569.60653 | BM65: 0.02643121154 | BN65: 0.130102935 | BO65: 9.5
A66: 2011 | B66: 63 | C66: Georgia | D66: 9699859 | E66: 5580 | F66: 8095407 | G66: 40769 | H66: 1289450 | I66: 37444 | J66: 271077 | K66: 18799 | L66: 1079 | M66: 4292 | N66: 2112 | O66: 14949 | P66: 2325 | Q66: 709 | R66: 619 | S66: 364 | T66: 42666 | V66: 1006 | W66: 126 | X66: 6080 | Y66: 2442 | Z66: 950 | AA66: 4513 | AB66: 3686 | AC66: 6541 | AD66: 408 | AE66: 3708 | AF66: 4436 | AG66: 6992 | AH66: 1808 | AI66: 5380 | AJ66: 2514 | AK66: 246 | AL66: 4144 | AM66: 774 | AN66: 132 | AO66: 8371 | AP66: 791 | AQ66: 14454 | AR66: 19138 | AS66: 201 | AT66: 6863 | AU66: 1632 | AV66: 727 | AW66: 5791 | AX66: 337 | AY66: 16914 | AZ66: 536 | BA66: 16898 | BB66: 15760 | BC66: 793 | BD66: 361 | BE66: 9438 | BF66: 3701 | BG66: 1340 | BH66: 2727 | BI66: 504 | BJ66: 1635 | BK66: 417438000000 | BL66: 43035.47093 | BM66: 0.02794648871 | BN66: 0.132934922 | BO66: 9.5
A67: 2011 | B67: 64 | C67: Hawaii | D67: 1357806 | E67: 1803 | F67: 1160948 | G67: 10743 | H67: 122727 | I67: 8676 | J67: 57542 | K67: 1268 | L67: 844 | M67: 2900 | N67: 242 | O67: 10173 | P67: 950 | Q67: 731 | R67: 784 | S67: 222 | T67: 3160 | U67: 2519 | W67: 112 | X67: 1884 | Y67: 402 | Z67: 478 | AA67: 125 | AB67: 18 | AC67: 179 | AD67: 106 | AE67: 341 | AF67: 92 | AG67: 1303 | AH67: 933 | AI67: 371 | AJ67: 308 | AK67: 85 | AL67: 91 | AM67: 1548 | AN67: 107 | AO67: 564 | AP67: 354 | AQ67: 4246 | AR67: 2307 | AS67: 32 | AT67: 970 | AU67: 685 | AV67: 2030 | AW67: 870 | AX67: 58 | AY67: 1681 | AZ67: 0 | BA67: 636 | BB67: 3007 | BC67: 1040 | BD67: 0 | BE67: 2523 | BF67: 3790 | BG67: 312 | BH67: 147 | BI67: 14 | BJ67: 238 | BK67: 70006000000 | BL67: 51558.17547 | BM67: 0.04237866087 | BN67: 0.09038625547 | BO67: 6.4
A68: 2011 | B68: 65 | C68: Idaho | D68: 1559637 | E68: 2674 | F68: 1284530 | G68: 13188 | H68: 208434 | I68: 13285 | J68: 60336 | K68: 263 | L68: 4510 | M68: 3543 | N68: 224 | O68: 9021 | P68: 1813 | Q68: 0 | R68: 0 | S68: 0 | T68: 1733 | U68: 275 | V68: 254 | X68: 390 | Y68: 296 | Z68: 318 | AA68: 479 | AB68: 120 | AC68: 51 | AD68: 0 | AE68: 0 | AF68: 396 | AG68: 615 | AH68: 566 | AI68: 62 | AJ68: 384 | AK68: 1602 | AL68: 439 | AM68: 3581 | AN68: 129 | AO68: 84 | AP68: 141 | AQ68: 419 | AR68: 263 | AS68: 1201 | AT68: 260 | AU68: 288 | AV68: 7170 | AW68: 343 | AX68: 0 | AY68: 55 | AZ68: 842 | BA68: 296 | BB68: 1303 | BC68: 6059 | BD68: 0 | BE68: 905 | BF68: 8991 | BG68: 0 | BH68: 165 | BI68: 487 | BJ68: 249 | BK68: 57096000000 | BL68: 36608.51852 | BM68: 0.03868592499 | BN68: 0.1336426361 | BO68: 7.8
A69: 2011 | B69: 66 | C69: Illinois | D69: 12718402 | E69: 5792 | F69: 11076528 | G69: 31383 | H69: 1353853 | I69: 28856 | J69: 216204 | K69: 2823 | L69: 4119 | M69: 7657 | N69: 3185 | O69: 13930 | P69: 3271 | Q69: 1819 | R69: 277 | S69: 1440 | T69: 17548 | U69: 6042 | V69: 1269 | W69: 393 | Y69: 23491 | Z69: 8420 | AA69: 2533 | AB69: 5569 | AC69: 1315 | AD69: 693 | AE69: 2565 | AF69: 3507 | AG69: 10274 | AH69: 4496 | AI69: 1521 | AJ69: 13889 | AK69: 304 | AL69: 827 | AM69: 2454 | AN69: 590 | AO69: 3009 | AP69: 1573 | AQ69: 6412 | AR69: 4057 | AS69: 105 | AT69: 8384 | AU69: 1002 | AV69: 792 | AW69: 3012 | AX69: 278 | AY69: 1582 | AZ69: 1318 | BA69: 3223 | BB69: 11011 | BC69: 951 | BD69: 49 | BE69: 5233 | BF69: 3075 | BG69: 352 | BH69: 14507 | BI69: 58 | BJ69: 2387 | BK69: 670247000000 | BL69: =BK69/D69 -> 52698.99473 | BM69: =J69/D69 -> 0.01699930542 | BN69: =H69/D69 -> 0.1064483573 | BO69: 9.4
A70: 2011 | B70: 67 | C70: Indiana | D70: 6437155 | E70: 3841 | F70: 5478683 | G70: 24180 | H70: 809158 | I70: 21392 | J70: 127874 | K70: 1562 | L70: 371 | M70: 3975 | N70: 2016 | O70: 7649 | P70: 1930 | Q70: 1227 | R70: 79 | S70: 0 | T70: 8595 | U70: 2543 | V70: 1057 | W70: 1368 | X70: 23071 | Z70: 916 | AA70: 1321 | AB70: 10177 | AC70: 2241 | AD70: 275 | AE70: 480 | AF70: 952 | AG70: 7896 | AH70: 1168 | AI70: 469 | AJ70: 1824 | AK70: 34 | AL70: 622 | AM70: 511 | AN70: 90 | AO70: 651 | AP70: 504 | AQ70: 2518 | AR70: 3038 | AS70: 70 | AT70: 11109 | AU70: 844 | AV70: 505 | AW70: 3998 | AX70: 49 | AY70: 3306 | AZ70: 235 | BA70: 3879 | BB70: 6326 | BC70: 123 | BD70: 530 | BE70: 1486 | BF70: 1028 | BG70: 216 | BH70: 2923 | BI70: 117 | BJ70: 132 | BK70: 284344000000 | BL70: 44172.30904 | BM70: 0.01986498694 | BN70: 0.1257011832 | BO70: 8.5
A71: 2011 | B71: 68 | C71: Iowa | D71: 3027718 | E71: 2514 | F71: 2573313 | G71: 16682 | H71: 370554 | I71: 15638 | J71: 70405 | K71: 207 | L71: 967 | M71: 1411 | N71: 433 | O71: 3297 | P71: 2891 | Q71: 424 | R71: 0 | S71: 0 | T71: 707 | U71: 1938 | V71: 299 | W71: 161 | X71: 13725 | Y71: 349 | AA71: 1776 | AB71: 387 | AC71: 228 | AD71: 26 | AE71: 487 | AF71: 466 | AG71: 1687 | AH71: 5634 | AI71: 408 | AJ71: 3649 | AK71: 370 | AL71: 6490 | AM71: 2009 | AN71: 0 | AO71: 185 | AP71: 421 | AQ71: 2361 | AR71: 1760 | AS71: 604 | AT71: 993 | AU71: 532 | AV71: 811 | AW71: 388 | AX71: 65 | AY71: 172 | AZ71: 2842 | BA71: 623 | BB71: 2334 | BC71: 1482 | BD71: 38 | BE71: 720 | BF71: 856 | BG71: 115 | BH71: 2537 | BI71: 140 | BJ71: 57 | BK71: 146057000000 | BL71: 48239.96158 | BM71: 0.02325348662 | BN71: 0.1223872236 | BO71: 5.5
A72: 2011 | B72: 69 | C72: Kansas | D72: 2833584 | E72: 2851 | F72: 2372033 | G72: 15236 | H72: 362782 | I72: 14847 | J72: 83640 | K72: 434 | L72: 108 | M72: 2028 | N72: 998 | O72: 4743 | P72: 5030 | Q72: 412 | R72: 74 | S72: 128 | T72: 1581 | U72: 1146 | V72: 287 | W72: 264 | X72: 2760 | Y72: 863 | Z72: 1715 | AB72: 1167 | AC72: 519 | AD72: 481 | AE72: 3180 | AF72: 28 | AG72: 1947 | AH72: 679 | AI72: 1517 | AJ72: 22033 | AK72: 270 | AL72: 1648 | AM72: 657 | AN72: 27 | AO72: 1189 | AP72: 769 | AQ72: 780 | AR72: 1223 | AS72: 379 | AT72: 1616 | AU72: 5022 | AV72: 285 | AW72: 1494 | AX72: 180 | AY72: 1102 | AZ72: 104 | BA72: 1066 | BB72: 6575 | BC72: 196 | BD72: 0 | BE72: 1986 | BF72: 772 | BG72: 0 | BH72: 893 | BI72: 1285 | BJ72: 775 | BK72: 134767000000 | BL72: 47560.61581 | BM72: 0.02951738858 | BN72: 0.128029379 | BO72: 6.1
A73: 2011 | B73: 70 | C73: Kentucky | D73: 4316297 | E73: 3382 | F73: 3686232 | G73: 19523 | H73: 505741 | I73: 18525 | J73: 110031 | K73: 925 | L73: 0 | M73: 1818 | N73: 1058 | O73: 2130 | P73: 221 | Q73: 176 | R73: 0 | S73: 201 | T73: 7400 | U73: 2725 | V73: 63 | W73: 36 | X73: 4273 | Y73: 11071 | Z73: 536 | AA73: 253 | AC73: 1399 | AD73: 71 | AE73: 2076 | AF73: 1019 | AG73: 3178 | AH73: 475 | AI73: 1248 | AJ73: 2793 | AK73: 216 | AL73: 471 | AM73: 1358 | AN73: 52 | AO73: 1289 | AP73: 553 | AQ73: 2174 | AR73: 3916 | AS73: 117 | AT73: 19617 | AU73: 1256 | AV73: 459 | AW73: 1490 | AX73: 640 | AY73: 1387 | AZ73: 0 | BA73: 16852 | BB73: 4661 | BC73: 140 | BD73: 151 | BE73: 5154 | BF73: 1121 | BG73: 1174 | BH73: 581 | BI73: 57 | BJ73: 192 | BK73: 168019000000 | BL73: 38926.65403 | BM73: 0.02549199001 | BN73: 0.1171701113 | BO73: 8.7
A74: 2011 | B74: 71 | C74: Louisiana | D74: 4518629 | E74: 3250 | F74: 3865118 | G74: 18789 | H74: 538691 | I74: 17818 | J74: 99138 | K74: 3065 | L74: 288 | M74: 2010 | N74: 2774 | O74: 3957 | P74: 1202 | Q74: 358 | R74: 0 | S74: 195 | T74: 5193 | U74: 4425 | V74: 688 | W74: 230 | X74: 1189 | Y74: 1549 | Z74: 468 | AA74: 312 | AB74: 1520 | AD74: 120 | AE74: 1221 | AF74: 439 | AG74: 1163 | AH74: 698 | AI74: 10255 | AJ74: 1375 | AK74: 278 | AL74: 176 | AM74: 994 | AN74: 15 | AO74: 453 | AP74: 1028 | AQ74: 1360 | AR74: 2134 | AS74: 277 | AT74: 2641 | AU74: 4235 | AV74: 1531 | AW74: 455 | AX74: 268 | AY74: 1573 | AZ74: 37 | BA74: 2495 | BB74: 30292 | BC74: 179 | BD74: 87 | BE74: 2055 | BF74: 1075 | BG74: 110 | BH74: 339 | BI74: 357 | BJ74: 393 | BK74: 237389000000 | BL74: 52535.6253 | BM74: 0.0219398406 | BN74: 0.1192155851 | BO74: 7
A75: 2011 | B75: 72 | C75: Maine | D75: 1315833 | E75: 1456 | F75: 1120364 | G75: 10400 | H75: 157102 | I75: 9401 | J75: 33818 | K75: 634 | L75: 37 | M75: 325 | N75: 38 | O75: 829 | P75: 290 | Q75: 2481 | R75: 238 | S75: 239 | T75: 4304 | U75: 507 | V75: 177 | W75: 0 | X75: 675 | Y75: 164 | Z75: 275 | AA75: 523 | AB75: 158 | AC75: 138 | AE75: 52 | AF75: 4439 | AG75: 702 | AH75: 296 | AI75: 0 | AJ75: 325 | AK75: 10 | AL75: 0 | AM75: 150 | AN75: 4302 | AO75: 694 | AP75: 144 | AQ75: 2589 | AR75: 1439 | AS75: 19 | AT75: 483 | AU75: 25 | AV75: 471 | AW75: 915 | AX75: 234 | AY75: 587 | AZ75: 42 | BA75: 394 | BB75: 1637 | BC75: 182 | BD75: 612 | BE75: 570 | BF75: 88 | BG75: 43 | BH75: 321 | BI75: 21 | BJ75: 65 | BK75: 52489000000 | BL75: 39890.32043 | BM75: 0.02570082982 | BN75: 0.1193935705 | BO75: 7.4
A76: 2011 | B76: 73 | C76: Maryland | D76: 5759087 | E76: 4326 | F76: 5008452 | G76: 20478 | H76: 553895 | I76: 18323 | J76: 153979 | K76: 228 | L76: 671 | M76: 945 | N76: 423 | O76: 8595 | P76: 1796 | Q76: 1608 | R76: 6652 | S76: 18492 | T76: 7825 | U76: 7113 | V76: 1170 | W76: 389 | X76: 2392 | Y76: 1318 | Z76: 110 | AA76: 689 | AB76: 848 | AC76: 860 | AD76: 1526 | AF76: 3470 | AG76: 2077 | AH76: 810 | AI76: 1109 | AJ76: 1469 | AK76: 73 | AL76: 0 | AM76: 1105 | AN76: 232 | AO76: 9627 | AP76: 797 | AQ76: 9222 | AR76: 6686 | AS76: 0 | AT76: 3396 | AU76: 845 | AV76: 276 | AW76: 14158 | AX76: 197 | AY76: 2882 | AZ76: 0 | BA76: 1942 | BB76: 3619 | BC76: 223 | BD76: 40 | BE76: 22089 | BF76: 1525 | BG76: 2027 | BH76: 353 | BI76: 80 | BJ76: 779 | BK76: 305175000000 | BL76: 52990.17014 | BM76: 0.02673670323 | BN76: 0.0961775712 | BO76: 7
A77: 2011 | B77: 74 | C77: Massachusetts | D77: 6515057 | E77: 3680 | F77: 5658768 | G77: 20357 | H77: 656441 | I77: 18778 | J77: 139830 | K77: 1201 | L77: 225 | M77: 1017 | N77: 167 | O77: 11556 | P77: 1388 | Q77: 9445 | R77: 399 | S77: 676 | T77: 11396 | U77: 3264 | V77: 733 | W77: 412 | X77: 2991 | Y77: 640 | Z77: 138 | AA77: 969 | AB77: 180 | AC77: 977 | AD77: 4006 | AE77: 2762 | AG77: 2629 | AH77: 862 | AI77: 356 | AJ77: 1261 | AK77: 596 | AL77: 637 | AM77: 163 | AN77: 12010 | AO77: 8332 | AP77: 199 | AQ77: 19431 | AR77: 3964 | AS77: 61 | AT77: 1757 | AU77: 90 | AV77: 178 | AW77: 6538 | AX77: 10182 | AY77: 1621 | AZ77: 44 | BA77: 371 | BB77: 5203 | BC77: 548 | BD77: 2246 | BE77: 2984 | BF77: 1673 | BG77: 911 | BH77: 441 | BI77: 0 | BJ77: 4413 | BK77: 388575000000 | BL77: 59642.60942 | BM77: 0.02146259043 | BN77: 0.1007575222 | BO77: 6.9
A78: 2011 | B78: 75 | C78: Michigan | D78: 9766574 | E78: 4376 | F78: 8340767 | G78: 29076 | H78: 1242917 | I78: 25401 | J78: 139158 | K78: 3527 | L78: 3456 | M78: 3840 | N78: 2054 | O78: 7793 | P78: 3425 | Q78: 1656 | R78: 0 | S78: 256 | T78: 17712 | U78: 4254 | V78: 630 | W78: 882 | X78: 9897 | Y78: 7668 | Z78: 1709 | AA78: 1148 | AB78: 2578 | AC78: 955 | AD78: 599 | AE78: 1035 | AF78: 2861 | AH78: 2671 | AI78: 715 | AJ78: 2509 | AK78: 84 | AL78: 439 | AM78: 1215 | AN78: 73 | AO78: 1849 | AP78: 508 | AQ78: 6087 | AR78: 3405 | AS78: 159 | AT78: 11224 | AU78: 917 | AV78: 647 | AW78: 2864 | AX78: 385 | AY78: 2185 | AZ78: 571 | BA78: 3106 | BB78: 9935 | BC78: 642 | BD78: 0 | BE78: 2327 | BF78: 1430 | BG78: 417 | BH78: 4018 | BI78: 841 | BJ78: 908 | BK78: 385123000000 | BL78: 39432.76322 | BM78: 0.01424839458 | BN78: 0.1272623338 | BO78: 9.4
A79: 2011 | B79: 76 | C79: Minnesota | D79: 5277329 | E79: 3380 | F79: 4505462 | G79: 20788 | H79: 646176 | I79: 19647 | J79: 101029 | K79: 123 | L79: 893 | M79: 2314 | N79: 951 | O79: 6638 | P79: 2662 | Q79: 74 | R79: 86 | S79: 367 | T79: 2820 | U79: 840 | V79: 901 | W79: 402 | X79: 8209 | Y79: 786 | Z79: 6175 | AA79: 606 | AB79: 755 | AC79: 573 | AD79: 321 | AE79: 424 | AF79: 970 | AG79: 5164 | AI79: 549 | AJ79: 1345 | AK79: 1457 | AL79: 1936 | AM79: 2682 | AN79: 21 | AO79: 631 | AP79: 540 | AQ79: 2416 | AR79: 845 | AS79: 7574 | AT79: 1961 | AU79: 546 | AV79: 1800 | AW79: 870 | AX79: 0 | AY79: 447 | AZ79: 5305 | BA79: 874 | BB79: 3062 | BC79: 919 | BD79: 177 | BE79: 1034 | BF79: 1413 | BG79: 92 | BH79: 19255 | BI79: 224 | BJ79: 54 | BK79: 279987000000 | BL79: 53054.67974 | BM79: 0.01914396468 | BN79: 0.122443759 | BO79: 5.8
A80: 2011 | B80: 77 | C80: Mississippi | D80: 2943021 | E80: 3088 | F80: 2534036 | G80: 16620 | H80: 332934 | I80: 15960 | J80: 68511 | K80: 8922 | L80: 117 | M80: 556 | N80: 2315 | O80: 4723 | P80: 484 | Q80: 54 | R80: 0 | S80: 415 | T80: 6152 | U80: 3136 | V80: 369 | W80: 55 | X80: 2068 | Y80: 611 | Z80: 650 | AA80: 66 | AB80: 1626 | AC80: 7139 | AD80: 0 | AE80: 265 | AF80: 1445 | AG80: 1610 | AH80: 614 | AJ80: 1581 | AK80: 0 | AL80: 118 | AM80: 84 | AN80: 65 | AO80: 269 | AP80: 1075 | AQ80: 364 | AR80: 483 | AS80: 0 | AT80: 991 | AU80: 566 | AV80: 74 | AW80: 2568 | AX80: 41 | AY80: 398 | AZ80: 6 | BA80: 7683 | BB80: 5243 | BC80: 332 | BD80: 0 | BE80: 1453 | BF80: 286 | BG80: 303 | BH80: 1136 | BI80: 0 | BJ80: 318 | BK80: 97533000000 | BL80: 33140.43631 | BM80: 0.02327914072 | BN80: 0.1131266138 | BO80: 9.8
A81: 2011 | B81: 78 | C81: Missouri | D81: 5937896 | E81: 4110 | F81: 4963040 | G81: 26160 | H81: 801046 | I81: 25054 | J81: 149439 | K81: 1395 | L81: 2043 | M81: 2356 | N81: 6168 | O81: 8386 | P81: 3144 | Q81: 1516 | R81: 0 | S81: 215 | T81: 4513 | U81: 2964 | V81: 871 | W81: 560 | X81: 20161 | Y81: 4404 | Z81: 4811 | AA81: 20884 | AB81: 1993 | AC81: 1728 | AD81: 291 | AE81: 716 | AF81: 463 | AG81: 2830 | AH81: 2026 | AI81: 1641 | AK81: 845 | AL81: 4860 | AM81: 1544 | AN81: 769 | AO81: 1114 | AP81: 1016 | AQ81: 2904 | AR81: 3669 | AS81: 977 | AT81: 3240 | AU81: 6073 | AV81: 777 | AW81: 1810 | AX81: 359 | AY81: 267 | AZ81: 361 | BA81: 2676 | BB81: 10293 | BC81: 1697 | BD81: 88 | BE81: 2684 | BF81: 2518 | BG81: 196 | BH81: 1503 | BI81: 1120 | BJ81: 709 | BK81: 249546000000 | BL81: 42025.99709 | BM81: 0.02516699518 | BN81: 0.1349040131 | BO81: 7.6
A82: 2011 | B82: 79 | C82: Montana | D82: 987076 | E82: 1359 | F82: 828254 | G82: 8593 | H82: 122210 | I82: 8386 | J82: 33553 | K82: 449 | L82: 1118 | M82: 1971 | N82: 49 | O82: 3033 | P82: 2856 | Q82: 58 | R82: 365 | S82: 0 | T82: 291 | U82: 231 | V82: 32 | W82: 1543 | X82: 765 | Y82: 646 | Z82: 417 | AA82: 845 | AB82: 0 | AC82: 0 | AD82: 71 | AE82: 57 | AF82: 10 | AG82: 353 | AH82: 969 | AI82: 0 | AJ82: 158 | AL82: 384 | AM82: 688 | AN82: 0 | AO82: 889 | AP82: 264 | AQ82: 422 | AR82: 1173 | AS82: 360 | AT82: 321 | AU82: 96 | AV82: 1959 | AW82: 840 | AX82: 0 | AY82: 77 | AZ82: 227 | BA82: 266 | BB82: 1329 | BC82: 1232 | BD82: 53 | BE82: 278 | BF82: 3835 | BG82: 14 | BH82: 146 | BI82: 2413 | BJ82: 353 | BK82: 38933000000 | BL82: 39442.75821 | BM82: 0.0339923167 | BN82: 0.123810122 | BO82: 6.2
A83: 2011 | B83: 80 | C83: Nebraska | D83: 1817126 | E83: 2304 | F83: 1505191 | G83: 11978 | H83: 253269 | I83: 10841 | J83: 52070 | K83: 169 | L83: 721 | M83: 1646 | N83: 161 | O83: 5124 | P83: 3245 | Q83: 381 | R83: 0 | S83: 29 | T83: 1105 | U83: 434 | V83: 275 | W83: 506 | X83: 1415 | Y83: 615 | Z83: 9575 | AA83: 3040 | AB83: 352 | AC83: 222 | AD83: 122 | AE83: 318 | AF83: 0 | AG83: 683 | AH83: 1455 | AI83: 424 | AJ83: 1848 | AK83: 64 | AM83: 240 | AN83: 0 | AO83: 119 | AP83: 242 | AQ83: 544 | AR83: 829 | AS83: 292 | AT83: 268 | AU83: 1255 | AV83: 1556 | AW83: 252 | AX83: 0 | AY83: 243 | AZ83: 2999 | BA83: 226 | BB83: 5343 | BC83: 734 | BD83: 0 | BE83: 615 | BF83: 835 | BG83: 24 | BH83: 560 | BI83: 965 | BJ83: 0 | BK83: 96230000000 | BL83: 52957.25228 | BM83: 0.02865514004 | BN83: 0.1393788873 | BO83: 4.2
A84: 2011 | B84: 81 | C84: Nevada | D84: 2688336 | E84: 3578 | F84: 2084668 | G84: 23272 | H84: 480317 | I84: 23514 | J84: 110345 | K84: 280 | L84: 597 | M84: 10142 | N84: 310 | O84: 40114 | P84: 2714 | Q84: 189 | R84: 184 | S84: 983 | T84: 2923 | U84: 1731 | V84: 4093 | W84: 3929 | X84: 1668 | Y84: 855 | Z84: 114 | AA84: 602 | AB84: 628 | AC84: 78 | AD84: 49 | AE84: 931 | AF84: 256 | AG84: 1663 | AH84: 1055 | AI84: 203 | AJ84: 335 | AK84: 1137 | AL84: 32 | AN84: 0 | AO84: 2118 | AP84: 2136 | AQ84: 1516 | AR84: 1333 | AS84: 0 | AT84: 1354 | AU84: 258 | AV84: 1691 | AW84: 570 | AX84: 86 | AY84: 165 | AZ84: 588 | BA84: 96 | BB84: 7249 | BC84: 3365 | BD84: 0 | BE84: 1740 | BF84: 4680 | BG84: 0 | BH84: 2672 | BI84: 933 | BJ84: 153 | BK84: 129421000000 | BL84: 48141.67574 | BM84: 0.04104583653 | BN84: 0.1786670267 | BO84: 12.4
A85: 2011 | B85: 82 | C85: New Hampshire | D85: 1305678 | E85: 2046 | F85: 1141236 | G85: 9064 | H85: 122129 | I85: 8186 | J85: 37000 | K85: 193 | L85: 0 | M85: 246 | N85: 22 | O85: 547 | P85: 403 | Q85: 1617 | R85: 20 | S85: 68 | T85: 1970 | U85: 535 | V85: 0 | W85: 0 | X85: 478 | Y85: 470 | Z85: 47 | AA85: 0 | AB85: 0 | AC85: 0 | AD85: 3080 | AE85: 222 | AF85: 15526 | AG85: 155 | AH85: 104 | AI85: 160 | AJ85: 153 | AK85: 230 | AL85: 33 | AM85: 186 | AO85: 294 | AP85: 186 | AQ85: 1471 | AR85: 1297 | AS85: 47 | AT85: 248 | AU85: 0 | AV85: 198 | AW85: 1015 | AX85: 608 | AY85: 588 | AZ85: 86 | BA85: 126 | BB85: 605 | BC85: 158 | BD85: 2138 | BE85: 880 | BF85: 428 | BG85: 0 | BH85: 0 | BI85: 162 | BJ85: 0 | BK85: 63333000000 | BL85: 48505.83375 | BM85: 0.02833776781 | BN85: 0.09353684446 | BO85: 5.4
A86: 2011 | B86: 83 | C86: New Jersey | D86: 8719952 | E86: 4595 | F86: 7825661 | G86: 21158 | H86: 693380 | I86: 21063 | J86: 140194 | K86: 189 | L86: 1198 | M86: 3784 | N86: 57 | O86: 5986 | P86: 2203 | Q86: 1924 | R86: 2100 | S86: 781 | T86: 12907 | U86: 4268 | V86: 264 | W86: 256 | X86: 3690 | Y86: 718 | Z86: 332 | AA86: 317 | AB86: 102 | AC86: 871 | AD86: 624 | AE86: 5335 | AF86: 4675 | AG86: 1889 | AH86: 1261 | AI86: 510 | AJ86: 583 | AK86: 49 | AL86: 312 | AM86: 899 | AN86: 499 | AP86: 355 | AQ86: 40815 | AR86: 2482 | AS86: 61 | AT86: 1121 | AU86: 773 | AV86: 360 | AW86: 19733 | AX86: 463 | AY86: 1586 | AZ86: 0 | BA86: 1412 | BB86: 3801 | BC86: 256 | BD86: 0 | BE86: 4458 | BF86: 2454 | BG86: 1252 | BH86: 214 | BI86: 15 | BJ86: 4312 | BK86: 493175000000 | BL86: 56557.07738 | BM86: 0.01607738208 | BN86: 0.07951649275 | BO86: 9.2
A87: 2011 | B87: 84 | C87: New Mexico | D87: 2055293 | E87: 2718 | F87: 1753413 | G87: 15690 | H87: 228218 | I87: 13801 | J87: 62130 | K87: 410 | L87: 416 | M87: 7444 | N87: 682 | O87: 7066 | P87: 5525 | Q87: 0 | R87: 0 | S87: 212 | T87: 2806 | U87: 676 | V87: 81 | W87: 355 | X87: 466 | Y87: 2030 | Z87: 0 | AA87: 1333 | AB87: 87 | AC87: 184 | AD87: 510 | AE87: 2277 | AF87: 252 | AG87: 908 | AH87: 438 | AI87: 556 | AJ87: 1183 | AK87: 544 | AL87: 353 | AM87: 2099 | AN87: 114 | AO87: 245 | AQ87: 1445 | AR87: 522 | AS87: 264 | AT87: 1742 | AU87: 234 | AV87: 916 | AW87: 492 | AX87: 0 | AY87: 145 | AZ87: 240 | BA87: 899 | BB87: 13633 | BC87: 303 | BD87: 71 | BE87: 425 | BF87: 924 | BG87: 0 | BH87: 340 | BI87: 283 | BJ87: 99 | BK87: 79555000000 | BL87: 38707.37652 | BM87: 0.03022926658 | BN87: 0.111039156 | BO87: 7.2
A88: 2011 | B88: 85 | C88: New York | D88: 19248685 | E88: 7023 | F88: 17055260 | G88: 37016 | H88: 1756105 | I88: 32216 | J88: 282209 | K88: 1812 | L88: 6124 | M88: 2821 | N88: 1041 | O88: 25761 | P88: 3724 | Q88: 15123 | R88: 1124 | S88: 3702 | T88: 29344 | U88: 10584 | V88: 1002 | W88: 434 | X88: 6914 | Y88: 2198 | Z88: 928 | AA88: 838 | AB88: 2414 | AC88: 1495 | AD88: 2915 | AE88: 5037 | AF88: 14646 | AG88: 3936 | AH88: 1824 | AI88: 401 | AJ88: 1417 | AK88: 391 | AL88: 579 | AM88: 1785 | AN88: 2972 | AO88: 41450 | AP88: 461 | AR88: 9336 | AS88: 374 | AT88: 5191 | AU88: 1425 | AV88: 2189 | AW88: 26596 | AX88: 1393 | AY88: 6947 | AZ88: 112 | BA88: 2660 | BB88: 9151 | BC88: 773 | BD88: 3882 | BE88: 10800 | BF88: 2986 | BG88: 631 | BH88: 1878 | BI88: 688 | BJ88: 10582 | BK88: 1169436000000 | BL88: 60754.07229 | BM88: 0.01466120932 | BN88: 0.09123246601 | BO88: 8.4
A89: 2011 | B89: 86 | C89: North Carolina | D89: 9539412 | E89: 5364 | F89: 8070238 | G89: 36924 | H89: 1160510 | I89: 33476 | J89: 265291 | K89: 5420 | L89: 3991 | M89: 4286 | N89: 327 | O89: 15373 | P89: 3919 | Q89: 1975 | R89: 954 | S89: 1135 | T89: 28044 | U89: 16192 | V89: 1806 | W89: 675 | X89: 5971 | Y89: 3228 | Z89: 654 | AA89: 4995 | AB89: 1637 | AC89: 2936 | AD89: 824 | AE89: 10485 | AF89: 9053 | AG89: 7530 | AH89: 1294 | AI89: 1273 | AJ89: 2638 | AK89: 563 | AL89: 1056 | AM89: 1048 | AN89: 2078 | AO89: 10374 | AP89: 1737 | AQ89: 18321 | AS89: 189 | AT89: 10187 | AU89: 1390 | AV89: 1175 | AW89: 9450 | AX89: 444 | AY89: 20427 | AZ89: 565 | BA89: 6057 | BB89: 6621 | BC89: 961 | BD89: 212 | BE89: 27302 | BF89: 3295 | BG89: 2780 | BH89: 2291 | BI89: 153 | BJ89: 844 | BK89: 436144000000 | BL89: 45720.2184 | BM89: 0.027809995 | BN89: 0.1216542487 | BO89: 9.7
A90: 2011 | B90: 87 | C90: North Dakota | D90: 675161 | E90: 1047 | F90: 559906 | G90: 6503 | H90: 79837 | I90: 6140 | J90: 32510 | K90: 97 | L90: 393 | M90: 1313 | N90: 249 | O90: 1356 | P90: 1229 | Q90: 0 | R90: 84 | S90: 0 | T90: 459 | U90: 364 | V90: 138 | W90: 1209 | X90: 571 | Y90: 130 | Z90: 208 | AA90: 75 | AB90: 0 | AC90: 422 | AD90: 50 | AE90: 10 | AF90: 369 | AG90: 328 | AH90: 12244 | AI90: 80 | AJ90: 330 | AK90: 1227 | AL90: 218 | AM90: 845 | AN90: 0 | AO90: 183 | AP90: 99 | AQ90: 264 | AR90: 900 | AT90: 286 | AU90: 59 | AV90: 264 | AW90: 652 | AX90: 0 | AY90: 1 | AZ90: 1293 | BA90: 113 | BB90: 1862 | BC90: 429 | BD90: 0 | BE90: 166 | BF90: 404 | BG90: 0 | BH90: 1398 | BI90: 139 | BJ90: 76 | BK90: 39992000000 | BL90: 59233.27917 | BM90: 0.04815147794 | BN90: 0.1182488325 | BO90: 3.1
A91: 2011 | B91: 88 | C91: Ohio | D91: 11418944 | E91: 4418 | F91: 9764366 | G91: 32087 | H91: 1425709 | I91: 29701 | J91: 191778 | K91: 1567 | L91: 1637 | M91: 6763 | N91: 1952 | O91: 9032 | P91: 2690 | Q91: 1189 | R91: 263 | S91: 587 | T91: 16492 | U91: 4290 | V91: 1044 | W91: 312 | X91: 7027 | Y91: 11588 | Z91: 1146 | AA91: 657 | AB91: 12744 | AC91: 1872 | AD91: 0 | AE91: 4982 | AF91: 2101 | AG91: 14330 | AH91: 1788 | AI91: 691 | AJ91: 2003 | AK91: 101 | AL91: 1176 | AM91: 1851 | AN91: 1992 | AO91: 3936 | AP91: 255 | AQ91: 8784 | AR91: 4572 | AS91: 204 | AU91: 2333 | AV91: 1326 | AW91: 14292 | AX91: 369 | AY91: 3826 | AZ91: 34 | BA91: 6468 | BB91: 11987 | BC91: 691 | BD91: 68 | BE91: 5425 | BF91: 1979 | BG91: 7548 | BH91: 2534 | BI91: 1280 | BJ91: 1607 | BK91: 490265000000 | BL91: 42934.3554 | BM91: 0.01679472287 | BN91: 0.1248547151 | BO91: 7.9
A92: 2011 | B92: 89 | C92: Oklahoma | D92: 3742698 | E92: 2585 | F92: 3089041 | G92: 15209 | H92: 528498 | I92: 15584 | J92: 108878 | K92: 591 | L92: 1137 | M92: 3770 | N92: 6894 | O92: 8233 | P92: 3273 | Q92: 97 | R92: 66 | S92: 191 | T92: 6056 | U92: 3514 | V92: 140 | W92: 21 | X92: 2179 | Y92: 2113 | Z92: 580 | AA92: 4626 | AB92: 1398 | AC92: 1934 | AD92: 271 | AE92: 432 | AF92: 160 | AG92: 1038 | AH92: 497 | AI92: 199 | AJ92: 5781 | AK92: 803 | AL92: 1979 | AM92: 705 | AN92: 0 | AO92: 391 | AP92: 403 | AQ92: 1858 | AR92: 1322 | AS92: 928 | AT92: 1608 | AV92: 917 | AW92: 1116 | AX92: 152 | AY92: 2015 | AZ92: 600 | BA92: 1700 | BB92: 31595 | BC92: 587 | BD92: 0 | BE92: 1013 | BF92: 1246 | BG92: 44 | BH92: 942 | BI92: 1763 | BJ92: 105 | BK92: 156058000000 | BL92: 41696.6584 | BM92: 0.0290907789 | BN92: 0.1412077597 | BO92: 5.7
A93: 2011 | B93: 90 | C93: Oregon | D93: 3828714 | E93: 3857 | F93: 3128121 | G93: 20096 | H93: 549332 | I93: 19087 | J93: 127906 | K93: 758 | L93: 1935 | M93: 7911 | N93: 988 | O93: 34214 | P93: 2110 | Q93: 949 | R93: 251 | S93: 349 | T93: 3384 | U93: 1946 | V93: 2491 | W93: 6236 | X93: 1350 | Y93: 1371 | Z93: 659 | AA93: 1263 | AB93: 71 | AC93: 0 | AD93: 269 | AE93: 453 | AF93: 1423 | AG93: 1652 | AH93: 1413 | AI93: 7 | AJ93: 1172 | AK93: 1079 | AL93: 324 | AM93: 7222 | AN93: 427 | AO93: 1322 | AP93: 537 | AQ93: 2056 | AR93: 1099 | AS93: 313 | AT93: 949 | AU93: 2034 | AW93: 1407 | AX93: 0 | AY93: 370 | AZ93: 417 | BA93: 673 | BB93: 4498 | BC93: 3443 | BD93: 176 | BE93: 1179 | BF93: 21862 | BG93: 66 | BH93: 914 | BI93: 914 | BJ93: 4 | BK93: 188981000000 | BL93: 49358.87089 | BM93: 0.03340703954 | BN93: 0.1434768959 | BO93: 9.2
A94: 2011 | B94: 91 | C94: Pennsylvania | D94: 12610486 | E94: 5092 | F94: 11099077 | G94: 27780 | H94: 1224564 | I94: 25195 | J94: 234291 | K94: 1332 | L94: 759 | M94: 2278 | N94: 582 | O94: 10672 | P94: 2491 | Q94: 4150 | R94: 5177 | S94: 1401 | T94: 19299 | U94: 4627 | V94: 495 | W94: 236 | X94: 3902 | Y94: 4086 | Z94: 1176 | AA94: 2323 | AB94: 4013 | AC94: 615 | AD94: 608 | AE94: 17751 | AF94: 6284 | AG94: 4406 | AH94: 853 | AI94: 1238 | AJ94: 1761 | AK94: 338 | AL94: 582 | AM94: 1057 | AN94: 1326 | AO94: 36133 | AP94: 325 | AQ94: 29436 | AR94: 11254 | AS94: 195 | AT94: 13075 | AU94: 283 | AV94: 1594 | AX94: 799 | AY94: 3438 | AZ94: 142 | BA94: 3742 | BB94: 7006 | BC94: 1246 | BD94: 446 | BE94: 8419 | BF94: 3688 | BG94: 4631 | BH94: 2426 | BI94: 195 | BJ94: 2723 | BK94: 581256000000 | BL94: 46093.0689 | BM94: 0.0185790619 | BN94: 0.09710680461 | BO94: 7.8
A95: 2011 | B95: 92 | C95: Rhode Island | D95: 1040022 | E95: 1440 | F95: 903786 | G95: 8645 | H95: 101689 | I95: 7813 | J95: 26769 | K95: 0 | L95: 0 | M95: 214 | N95: 0 | O95: 1949 | P95: 301 | Q95: 2613 | R95: 0 | S95: 0 | T95: 2230 | U95: 476 | V95: 0 | W95: 107 | X95: 373 | Y95: 41 | Z95: 82 | AA95: 374 | AB95: 211 | AC95: 121 | AD95: 228 | AE95: 472 | AF95: 7715 | AG95: 178 | AH95: 27 | AI95: 0 | AJ95: 109 | AK95: 0 | AL95: 0 | AM95: 0 | AN95: 941 | AO95: 1224 | AP95: 93 | AQ95: 2776 | AR95: 259 | AS95: 0 | AT95: 60 | AU95: 0 | AV95: 57 | AW95: 1125 | AY95: 223 | AZ95: 0 | BA95: 210 | BB95: 207 | BC95: 181 | BD95: 621 | BE95: 485 | BF95: 262 | BG95: 199 | BH95: 2 | BI95: 23 | BJ95: 293 | BK95: 49423000000 | BL95: 47521.11013 | BM95: 0.0257388786 | BN95: 0.09777581628 | BO95: 10.9
A96: 2011 | B96: 93 | C96: South Carolina | D96: 4624180 | E96: 3871 | F96: 3899705 | G96: 25459 | H96: 546666 | I96: 21151 | J96: 157644 | K96: 2999 | L96: 2421 | M96: 1971 | N96: 1333 | O96: 6592 | P96: 1000 | Q96: 1752 | R96: 841 | S96: 589 | T96: 15476 | U96: 16355 | V96: 712 | W96: 55 | X96: 2371 | Y96: 3249 | Z96: 1379 | AA96: 1885 | AB96: 2454 | AC96: 878 | AD96: 652 | AE96: 3807 | AF96: 730 | AG96: 4483 | AH96: 471 | AI96: 2163 | AJ96: 1522 | AK96: 915 | AL96: 204 | AM96: 1017 | AN96: 372 | AO96: 4241 | AP96: 598 | AQ96: 11317 | AR96: 23102 | AS96: 271 | AT96: 6327 | AU96: 1008 | AV96: 833 | AW96: 3523 | AX96: 453 | AZ96: 62 | BA96: 3324 | BB96: 8623 | BC96: 181 | BD96: 91 | BE96: 7879 | BF96: 2510 | BG96: 1680 | BH96: 341 | BI96: 632 | BJ96: 2166 | BK96: 168716000000 | BL96: 36485.60393 | BM96: 0.03409123347 | BN96: 0.118219014 | BO96: 9.7
A97: 2011 | B97: 94 | C97: South Dakota | D97: 814175 | E97: 1297 | F97: 688436 | G97: 7824 | H97: 94655 | I97: 6542 | J97: 27506 | K97: 0 | L97: 554 | M97: 1422 | N97: 659 | O97: 1286 | P97: 1021 | Q97: 0 | R97: 0 | S97: 0 | T97: 101 | U97: 69 | V97: 0 | W97: 186 | X97: 267 | Y97: 285 | Z97: 4772 | AA97: 144 | AB97: 211 | AC97: 0 | AD97: 0 | AE97: 254 | AF97: 113 | AG97: 239 | AH97: 5342 | AI97: 129 | AJ97: 354 | AK97: 232 | AL97: 1695 | AM97: 110 | AN97: 0 | AO97: 441 | AP97: 513 | AQ97: 6 | AR97: 166 | AS97: 2060 | AT97: 84 | AU97: 40 | AV97: 15 | AW97: 57 | AX97: 7 | AY97: 529 | BA97: 0 | BB97: 1156 | BC97: 560 | BD97: 0 | BE97: 79 | BF97: 557 | BG97: 0 | BH97: 481 | BI97: 1310 | BJ97: 0 | BK97: 41667000000 | BL97: 51176.95827 | BM97: 0.03378389167 | BN97: 0.1162587896 | BO97: 4.4
A98: 2011 | B98: 95 | C98: Tennessee | D98: 6333466 | E98: 4450 | F98: 5342978 | G98: 29750 | H98: 794556 | I98: 26578 | J98: 170969 | K98: 9326 | L98: 531 | M98: 1346 | N98: 7393 | O98: 7130 | P98: 1372 | Q98: 150 | R98: 155 | S98: 307 | T98: 15491 | U98: 17507 | V98: 179 | W98: 0 | X98: 8593 | Y98: 5645 | Z98: 387 | AA98: 1805 | AB98: 13884 | AC98: 1901 | AD98: 9 | AE98: 1135 | AF98: 1690 | AG98: 5983 | AH98: 445 | AI98: 9172 | AJ98: 3795 | AK98: 43 | AL98: 631 | AM98: 883 | AN98: 132 | AO98: 1396 | AP98: 381 | AQ98: 4921 | AR98: 9353 | AS98: 50 | AT98: 5944 | AU98: 3166 | AV98: 726 | AW98: 3360 | AX98: 14 | AY98: 5531 | AZ98: 181 | BB98: 7009 | BC98: 200 | BD98: 38 | BE98: 6098 | BF98: 2852 | BG98: 1385 | BH98: 1213 | BI98: 131 | BJ98: 1083 | BK98: 263626000000 | BL98: 41624.28598 | BM98: 0.0269945398 | BN98: 0.1254535826 | BO98: 8.5
A99: 2011 | B99: 96 | C99: Texas | D99: 25327104 | E99: 10987 | F99: 20984855 | G99: 65490 | H99: 3648260 | I99: 63784 | J99: 514726 | K99: 8747 | L99: 6670 | M99: 20073 | N99: 16461 | O99: 58992 | P99: 19126 | Q99: 2927 | R99: 884 | S99: 2276 | T99: 35777 | U99: 17401 | V99: 6106 | W99: 4379 | X99: 15064 | Y99: 10265 | Z99: 3236 | AA99: 12766 | AB99: 6616 | AC99: 25513 | AD99: 1357 | AE99: 9443 | AF99: 5035 | AG99: 15654 | AH99: 7691 | AI99: 6048 | AJ99: 13473 | AK99: 537 | AL99: 3837 | AM99: 7793 | AN99: 459 | AO99: 7578 | AP99: 15225 | AQ99: 26155 | AR99: 14956 | AS99: 809 | AT99: 12315 | AU99: 19302 | AV99: 3743 | AW99: 9107 | AX99: 1297 | AY99: 4075 | AZ99: 1486 | BA99: 10788 | BC99: 5234 | BD99: 349 | BE99: 13231 | BF99: 15325 | BG99: 663 | BH99: 5982 | BI99: 2500 | BJ99: 5225 | BK99: 1321005000000 | BL99: 52157.75953 | BM99: 0.02032312893 | BN99: 0.1440456832 | BO99: 7.4
A100: 2011 | B100: 97 | C100: Utah | D100: 2769627 | E100: 2949 | F100: 2295961 | G100: 19215 | H100: 373984 | I100: 17246 | J100: 85217 | K100: 486 | L100: 2151 | M100: 6585 | N100: 422 | O100: 18237 | P100: 3986 | Q100: 562 | R100: 0 | S100: 132 | T100: 1643 | U100: 1052 | V100: 1701 | W100: 7538 | X100: 1447 | Y100: 545 | Z100: 290 | AA100: 1146 | AB100: 611 | AC100: 494 | AD100: 0 | AE100: 342 | AF100: 959 | AG100: 1099 | AH100: 939 | AI100: 143 | AJ100: 511 | AK100: 1241 | AL100: 195 | AM100: 4315 | AN100: 34 | AO100: 506 | AP100: 1707 | AQ100: 1937 | AR100: 1653 | AS100: 2 | AT100: 2584 | AU100: 150 | AV100: 2037 | AW100: 1496 | AX100: 0 | AY100: 309 | AZ100: 128 | BA100: 549 | BB100: 4507 | BD100: 122 | BE100: 2413 | BF100: 4825 | BG100: 270 | BH100: 158 | BI100: 1058 | BJ100: 0 | BK100: 124454000000 | BL100: 44935.29273 | BM100: 0.03076840311 | BN100: 0.1350304572 | BO100: 5.9
A101: 2011 | B101: 98 | C101: Vermont | D101: 621354 | E101: 940 | F101: 537304 | G101: 5021 | H101: 60719 | I101: 4634 | J101: 20463 | K101: 0 | L101: 580 | M101: 310 | N101: 0 | O101: 819 | P101: 529 | Q101: 2105 | R101: 107 | S101: 27 | T101: 366 | U101: 101 | V101: 143 | W101: 0 | X101: 386 | Y101: 258 | Z101: 0 | AA101: 7 | AB101: 627 | AC101: 41 | AD101: 322 | AE101: 361 | AF101: 2378 | AG101: 335 | AH101: 206 | AI101: 0 | AJ101: 69 | AK101: 0 | AL101: 0 | AM101: 15 | AN101: 2244 | AO101: 962 | AP101: 56 | AQ101: 3723 | AR101: 250 | AS101: 0 | AT101: 383 | AU101: 0 | AV101: 124 | AW101: 389 | AX101: 401 | AY101: 21 | AZ101: 0 | BA101: 327 | BB101: 185 | BC101: 182 | BE101: 740 | BF101: 156 | BG101: 53 | BH101: 137 | BI101: 38 | BJ101: 19 | BK101: 26545000000 | BL101: 42721.2185 | BM101: 0.03293291747 | BN101: 0.09772046209 | BO101: 5.1
A102: 2011 | B102: 99 | C102: Virginia | D102: 7996552 | E102: 5256 | F102: 6789620 | G102: 30962 | H102: 889751 | I102: 30111 | J102: 257130 | K102: 4930 | L102: 3202 | M102: 4679 | N102: 645 | O102: 19371 | P102: 4908 | Q102: 5376 | R102: 961 | S102: 6854 | T102: 17773 | U102: 8715 | V102: 2917 | W102: 434 | X102: 4000 | Y102: 2703 | Z102: 1503 | AA102: 892 | AB102: 3630 | AC102: 2496 | AD102: 2855 | AE102: 22051 | AF102: 5386 | AG102: 7323 | AH102: 834 | AI102: 1682 | AJ102: 2277 | AK102: 617 | AL102: 256 | AM102: 1717 | AN102: 1344 | AO102: 7327 | AP102: 1014 | AQ102: 12455 | AR102: 22753 | AS102: 462 | AT102: 9570 | AU102: 853 | AV102: 3499 | AW102: 12009 | AX102: 1897 | AY102: 6612 | AZ102: 908 | BA102: 7482 | BB102: 11655 | BC102: 1426 | BD102: 173 | BF102: 4615 | BG102: 9041 | BH102: 858 | BI102: 190 | BJ102: 1222 | BK102: 433611000000 | BL102: 54224.74587 | BM102: 0.03215510885 | BN102: 0.111266831 | BO102: 6.2
A103: 2011 | B103: 100 | C103: Washington | D103: 6748474 | E103: 4248 | F103: 5565069 | G103: 27197 | H103: 919925 | I103: 27221 | J103: 208507 | K103: 1821 | L103: 5266 | M103: 12397 | N103: 756 | O103: 38421 | P103: 3938 | Q103: 1026 | R103: 0 | S103: 358 | T103: 6094 | U103: 8705 | V103: 5940 | W103: 10895 | X103: 2062 | Y103: 2303 | Z103: 1000 | AA103: 2820 | AB103: 1271 | AC103: 1016 | AD103: 1313 | AE103: 1899 | AF103: 1580 | AG103: 3720 | AH103: 1543 | AI103: 1110 | AJ103: 3307 | AK103: 2125 | AL103: 673 | AM103: 4925 | AN103: 824 | AO103: 2006 | AP103: 1569 | AQ103: 4512 | AR103: 3870 | AS103: 189 | AT103: 2686 | AU103: 765 | AV103: 29168 | AW103: 2296 | AX103: 463 | AY103: 1519 | AZ103: 227 | BA103: 2342 | BB103: 15491 | BC103: 4789 | BD103: 119 | BE103: 4233 | BG103: 157 | BH103: 1491 | BI103: 1507 | BJ103: 1083 | BK103: 357056000000 | BL103: 52909.14657 | BM103: 0.03089691092 | BN103: 0.1363160027 | BO103: 8.6
A104: 2011 | B104: 101 | C104: West Virginia | D104: 1836614 | E104: 1681 | F104: 1609110 | G104: 9854 | H104: 172262 | I104: 8430 | J104: 50068 | K104: 221 | L104: 598 | M104: 50 | N104: 225 | O104: 1442 | P104: 124 | Q104: 594 | R104: 89 | S104: 300 | T104: 2949 | U104: 1296 | V104: 147 | W104: 120 | X104: 1331 | Y104: 210 | Z104: 0 | AA104: 0 | AB104: 515 | AC104: 326 | AD104: 45 | AE104: 7515 | AF104: 236 | AG104: 459 | AH104: 0 | AI104: 0 | AJ104: 309 | AK104: 60 | AL104: 78 | AM104: 293 | AN104: 160 | AO104: 1431 | AP104: 0 | AQ104: 2017 | AR104: 3865 | AS104: 0 | AT104: 8545 | AU104: 97 | AV104: 132 | AW104: 4205 | AX104: 284 | AY104: 1857 | AZ104: 0 | BA104: 546 | BB104: 1574 | BC104: 114 | BD104: 23 | BE104: 5561 | BF104: 83 | BH104: 42 | BI104: 0 | BJ104: 680 | BK104: 66109000000 | BL104: 35995.04305 | BM104: 0.0272610358 | BN104: 0.09379325215 | BO104: 7.3
A105: 2011 | B105: 102 | C105: Wisconsin | D105: 5647213 | E105: 2653 | F105: 4846550 | G105: 18735 | H105: 675623 | I105: 19411 | J105: 109439 | K105: 708 | L105: 432 | M105: 4045 | N105: 335 | O105: 6637 | P105: 2592 | Q105: 993 | R105: 219 | S105: 123 | T105: 4338 | U105: 1745 | V105: 1108 | W105: 566 | X105: 25521 | Y105: 4017 | Z105: 3306 | AA105: 418 | AB105: 1040 | AC105: 850 | AD105: 12 | AE105: 147 | AF105: 733 | AG105: 5623 | AH105: 17927 | AI105: 983 | AJ105: 2090 | AK105: 143 | AL105: 483 | AM105: 663 | AN105: 480 | AO105: 378 | AP105: 714 | AQ105: 2213 | AR105: 2120 | AS105: 1383 | AT105: 1358 | AU105: 118 | AV105: 1057 | AW105: 1294 | AX105: 368 | AY105: 377 | AZ105: 590 | BA105: 744 | BB105: 1984 | BC105: 890 | BD105: 342 | BE105: 2573 | BF105: 1555 | BG105: 1090 | BI105: 14 | BJ105: 728 | BK105: 253349000000 | BL105: 44862.66057 | BM105: 0.01937929382 | BN105: 0.1196383065 | BO105: 7.1
A106: 2011 | B106: 103 | C106: Wyoming | D106: 561389 | E106: 1021 | F106: 462808 | G106: 7194 | H106: 66648 | I106: 5771 | J106: 30651 | K106: 51 | L106: 761 | M106: 369 | N106: 174 | O106: 2539 | P106: 6905 | Q106: 11 | R106: 0 | S106: 0 | T106: 1525 | U106: 46 | V106: 0 | W106: 2140 | X106: 450 | Y106: 6 | Z106: 342 | AA106: 286 | AB106: 83 | AC106: 114 | AD106: 0 | AE106: 0 | AF106: 152 | AG106: 849 | AH106: 357 | AI106: 70 | AJ106: 241 | AK106: 1105 | AL106: 1784 | AM106: 427 | AN106: 0 | AO106: 7 | AP106: 76 | AQ106: 113 | AR106: 395 | AS106: 237 | AT106: 22 | AU106: 462 | AV106: 960 | AW106: 284 | AX106: 13 | AY106: 219 | AZ106: 1043 | BA106: 69 | BB106: 1398 | BC106: 2140 | BD106: 4 | BE106: 451 | BF106: 1803 | BG106: 0 | BH106: 168 | BJ106: 0 | BK106: 38190000000 | BL106: 68027.69559 | BM106: 0.05459850478 | BN106: 0.1187198182 | BO106: 5.8
A107: 2011 | B107: 104 | C107: Puerto Rico | D107: 3669195 | E107: 3034 | F107: 3403602 | G107: 12450 | H107: 238263 | I107: 11889 | J107: 22649 | K107: 35 | L107: 378 | M107: 229 | N107: 0 | O107: 207 | P107: 0 | Q107: 1849 | R107: 13 | S107: 212 | T107: 6614 | U107: 247 | V107: 0 | W107: 13 | X107: 624 | Y107: 784 | Z107: 0 | AA107: 38 | AB107: 0 | AC107: 0 | AD107: 0 | AE107: 70 | AF107: 1412 | AG107: 88 | AH107: 0 | AI107: 27 | AJ107: 101 | AK107: 0 | AL107: 0 | AM107: 0 | AN107: 0 | AO107: 2150 | AP107: 51 | AQ107: 2615 | AR107: 200 | AS107: 0 | AT107: 0 | AU107: 79 | AV107: 0 | AW107: 1978 | AX107: 490 | AY107: 3 | AZ107: 113 | BA107: 224 | BB107: 444 | BC107: 0 | BD107: 0 | BE107: 1077 | BF107: 41 | BG107: 14 | BH107: 229 | BI107: 0 | BK107: 98757000000 | BL107: 26915.16804 | BM107: 0.006172743613 | BN107: 0.06493604183 | BO107: 16.2
A108: 2012 | B108: 105 | C108: Alabama | D108: 4764428 | E108: 3589 | F108: 4054260 | G108: 21464 | H108: 590326 | I108: 19701 | J108: 104600 | L108: 1004 | M108: 962 | N108: 660 | O108: 3077 | P108: 1386 | Q108: 284 | R108: 42 | S108: 162 | T108: 11244 | U108: 19920 | V108: 627 | W108: 493 | X108: 2722 | Y108: 1347 | Z108: 345 | AA108: 865 | AB108: 2495 | AC108: 3104 | AD108: 67 | AE108: 1513 | AF108: 334 | AG108: 2298 | AH108: 752 | AI108: 4952 | AJ108: 1555 | AK108: 101 | AL108: 151 | AM108: 1009 | AN108: 161 | AO108: 1702 | AP108: 459 | AQ108: 2709 | AR108: 5133 | AS108: 228 | AT108: 1411 | AU108: 194 | AV108: 200 | AW108: 1837 | AX108: 0 | AY108: 2811 | AZ108: 518 | BA108: 10539 | BB108: 7468 | BC108: 579 | BD108: 0 | BE108: 3170 | BF108: 1034 | BG108: 128 | BH108: 760 | BI108: 88 | BJ108: 619 | BK108: 183547000000 | BL108: 38524.45666 | BM108: 0.02195436682 | BN108: 0.1239028064 | BO108: 6.8
A109: 2012 | B109: 106 | C109: Alaska | D109: 721186 | E109: 1290 | F109: 592551 | G109: 8741 | H109: 90613 | I109: 7239 | J109: 33415 | K109: 1097 | M109: 1520 | N109: 196 | O109: 3494 | P109: 556 | Q109: 0 | R109: 0 | S109: 356 | T109: 1991 | U109: 928 | V109: 1376 | W109: 538 | X109: 58 | Y109: 260 | Z109: 13 | AA109: 221 | AB109: 161 | AC109: 120 | AD109: 66 | AE109: 508 | AF109: 297 | AG109: 563 | AH109: 192 | AI109: 56 | AJ109: 819 | AK109: 371 | AL109: 1195 | AM109: 803 | AN109: 118 | AO109: 116 | AP109: 263 | AQ109: 736 | AR109: 920 | AS109: 264 | AT109: 1316 | AU109: 335 | AV109: 3174 | AW109: 255 | AX109: 0 | AY109: 384 | AZ109: 99 | BA109: 451 | BB109: 1488 | BC109: 330 | BD109: 79 | BE109: 1265 | BF109: 3725 | BG109: 0 | BH109: 206 | BI109: 136 | BJ109: 25 | BK109: 51859000000 | BL109: 71907.94053 | BM109: 0.04633340081 | BN109: 0.1256444246 | BO109: 6.6
A110: 2012 | B110: 107 | C110: Arizona | D110: 6468907 | E110: 3874 | F110: 5242674 | G110: 32185 | H110: 953789 | I110: 28803 | J110: 232457 | K110: 1331 | L110: 3717 | N110: 1214 | O110: 44889 | P110: 13790 | Q110: 417 | R110: 246 | S110: 36 | T110: 5553 | U110: 2263 | V110: 2491 | W110: 2934 | X110: 10744 | Y110: 2930 | Z110: 2702 | AA110: 2498 | AB110: 1328 | AC110: 724 | AD110: 616 | AE110: 3007 | AF110: 1961 | AG110: 9598 | AH110: 8570 | AI110: 293 | AJ110: 2595 | AK110: 1118 | AL110: 2293 | AM110: 6712 | AN110: 510 | AO110: 2564 | AP110: 6946 | AQ110: 7402 | AR110: 2721 | AS110: 877 | AT110: 7906 | AU110: 1626 | AV110: 8587 | AW110: 4280 | AX110: 614 | AY110: 1070 | AZ110: 1472 | BA110: 5075 | BB110: 14788 | BC110: 5916 | BD110: 207 | BE110: 2763 | BF110: 13247 | BG110: 765 | BH110: 3765 | BI110: 2786 | BJ110: 1791 | BK110: 266891000000 | BL110: 41257.51074 | BM110: 0.03593450949 | BN110: 0.147442064 | BO110: 8.1
A111: 2012 | B111: 108 | C111: Arkansas | D111: 2912680 | E111: 2753 | F111: 2453347 | G111: 16841 | H111: 373046 | I111: 14543 | J111: 76948 | K111: 374 | L111: 855 | M111: 1677 | O111: 3525 | P111: 603 | Q111: 185 | R111: 0 | S111: 205 | T111: 2682 | U111: 1525 | V111: 0 | W111: 0 | X111: 3576 | Y111: 1172 | Z111: 409 | AA111: 1033 | AB111: 1310 | AC111: 3953 | AD111: 17 | AE111: 169 | AF111: 254 | AG111: 1283 | AH111: 295 | AI111: 3689 | AJ111: 9105 | AK111: 258 | AL111: 166 | AM111: 121 | AN111: 0 | AO111: 157 | AP111: 547 | AQ111: 2262 | AR111: 3057 | AS111: 0 | AT111: 1135 | AU111: 9938 | AV111: 193 | AW111: 516 | AX111: 59 | AY111: 52 | AZ111: 673 | BA111: 4195 | BB111: 11767 | BC111: 269 | BD111: 0 | BE111: 1159 | BF111: 251 | BG111: 84 | BH111: 695 | BI111: 1498 | BJ111: 0 | BK111: 109557000000 | BL111: 37613.81271 | BM111: 0.02641828145 | BN111: 0.1280765481 | BO111: 7.5
A112: 2012 | B112: 109 | C112: California | D112: 37572738 | E112: 10274 | F112: 31777868 | G112: 67939 | H112: 5046618 | I112: 65422 | J112: 493641 | K112: 2509 | L112: 6995 | M112: 38916 | N112: 3472 | P112: 15150 | Q112: 6764 | R112: 474 | S112: 3199 | T112: 21004 | U112: 10790 | V112: 11906 | W112: 5331 | X112: 21251 | Y112: 5891 | Z112: 2284 | AA112: 2790 | AB112: 3763 | AC112: 5180 | AD112: 1256 | AE112: 7902 | AF112: 14356 | AG112: 8921 | AH112: 8539 | AI112: 2556 | AJ112: 6729 | AK112: 3060 | AL112: 3302 | AM112: 27968 | AN112: 1327 | AO112: 12057 | AP112: 5921 | AQ112: 31261 | AR112: 11195 | AS112: 1827 | AT112: 10653 | AU112: 6671 | AV112: 22724 | AW112: 10466 | AX112: 1648 | AY112: 4110 | AZ112: 826 | BA112: 5802 | BB112: 43005 | BC112: 12172 | BD112: 544 | BE112: 15625 | BF112: 34569 | BG112: 1413 | BH112: 5681 | BI112: 1886 | BJ112: 2323 | BK112: 2003479000000 | BL112: 53322.67774 | BM112: 0.01313827595 | BN112: 0.13431595 | BO112: 9.7
A113: 2012 | B113: 110 | C113: Colorado | D113: 5123944 | E113: 2939 | F113: 4131357 | G113: 21752 | H113: 751921 | I113: 19587 | J113: 205060 | K113: 3108 | L113: 3457 | M113: 10589 | N113: 1043 | O113: 22152 | Q113: 1317 | R113: 70 | S113: 488 | T113: 8615 | U113: 5834 | V113: 2536 | W113: 2660 | X113: 6374 | Y113: 4336 | Z113: 2776 | AA113: 5283 | AB113: 2500 | AC113: 5048 | AD113: 20 | AE113: 2844 | AF113: 5939 | AG113: 3343 | AH113: 2992 | AI113: 835 | AJ113: 3771 | AK113: 2021 | AL113: 4472 | AM113: 3789 | AN113: 679 | AO113: 2464 | AP113: 6520 | AQ113: 7250 | AR113: 4378 | AS113: 1918 | AT113: 4533 | AU113: 4582 | AV113: 2419 | AW113: 3950 | AX113: 137 | AY113: 2383 | AZ113: 756 | BA113: 2535 | BB113: 17355 | BC113: 6398 | BD113: 503 | BE113: 3796 | BF113: 4853 | BG113: 837 | BH113: 3000 | BI113: 5602 | BJ113: 1144 | BK113: 274048000000 | BL113: 53483.80076 | BM113: 0.04001995338 | BN113: 0.1467465296 | BO113: 7.3
A114: 2012 | B114: 111 | C114: Connecticut | D114: 3555319 | E114: 2447 | F114: 3114940 | G114: 16188 | H114: 334918 | I114: 14546 | J114: 80311 | K114: 46 | L114: 439 | M114: 3167 | N114: 200 | O114: 3161 | P114: 367 | R114: 22 | S114: 288 | T114: 6578 | U114: 1702 | V114: 408 | W114: 97 | X114: 912 | Y114: 53 | Z114: 0 | AA114: 0 | AB114: 124 | AC114: 909 | AD114: 1224 | AE114: 1752 | AF114: 8743 | AG114: 753 | AH114: 605 | AI114: 276 | AJ114: 358 | AK114: 50 | AL114: 45 | AM114: 172 | AN114: 1009 | AO114: 5665 | AP114: 444 | AQ114: 23310 | AR114: 3379 | AS114: 0 | AT114: 287 | AU114: 415 | AV114: 35 | AW114: 2214 | AX114: 1558 | AY114: 940 | AZ114: 0 | BA114: 260 | BB114: 3279 | BC114: 45 | BD114: 709 | BE114: 1729 | BF114: 1593 | BG114: 174 | BH114: 711 | BI114: 104 | BJ114: 3228 | BK114: 229317000000 | BL114: 64499.6975 | BM114: 0.02258897162 | BN114: 0.09420195487 | BO114: 8.1
A115: 2012 | B115: 112 | C115: Delaware | D115: 906576 | E115: 1624 | F115: 782216 | G115: 9177 | H115: 86003 | I115: 7626 | J115: 34757 | K115: 119 | L115: 692 | M115: 188 | N115: 0 | O115: 2221 | P115: 0 | Q115: 1489 | S115: 11 | T115: 715 | U115: 179 | V115: 0 | W115: 32 | X115: 567 | Y115: 62 | Z115: 30 | AA115: 113 | AB115: 0 | AC115: 178 | AD115: 0 | AE115: 5649 | AF115: 157 | AG115: 227 | AH115: 351 | AI115: 58 | AJ115: 80 | AK115: 0 | AL115: 91 | AM115: 572 | AN115: 99 | AO115: 5846 | AP115: 85 | AQ115: 3566 | AR115: 1349 | AS115: 0 | AT115: 191 | AU115: 0 | AV115: 0 | AW115: 6828 | AX115: 135 | AY115: 298 | AZ115: 0 | BA115: 344 | BB115: 133 | BC115: 166 | BD115: 0 | BE115: 1746 | BF115: 29 | BG115: 161 | BH115: 0 | BI115: 0 | BJ115: 56 | BK115: 65984000000 | BL115: 72783.74896 | BM115: 0.03833876035 | BN115: 0.09486573657 | BO115: 7
A116: 2012 | B116: 113 | C116: District of Columbia | D116: 624847 | E116: 948 | F116: 500267 | G116: 6225 | H116: 61992 | I116: 5668 | J116: 53830 | K116: 79 | L116: 1247 | M116: 902 | N116: 35 | O116: 4999 | P116: 677 | Q116: 618 | R116: 78 | T116: 1705 | U116: 1079 | V116: 38 | W116: 46 | X116: 795 | Y116: 469 | Z116: 133 | AA116: 164 | AB116: 112 | AC116: 283 | AD116: 194 | AE116: 14120 | AF116: 1524 | AG116: 944 | AH116: 393 | AI116: 44 | AJ116: 337 | AK116: 0 | AL116: 172 | AM116: 42 | AN116: 197 | AO116: 1451 | AP116: 116 | AQ116: 3085 | AR116: 985 | AS116: 0 | AT116: 651 | AU116: 0 | AV116: 157 | AW116: 1494 | AX116: 635 | AY116: 150 | AZ116: 0 | BA116: 577 | BB116: 1473 | BC116: 116 | BD116: 267 | BE116: 9537 | BF116: 481 | BG116: 293 | BH116: 721 | BI116: 215 | BJ116: 0 | BK116: 109793000000 | BL116: 175711.8143 | BM116: 0.0861490893 | BN116: 0.09921148697 | BO116: 8.7
A117: 2012 | B117: 114 | C117: Florida | D117: 19114620 | E117: 6877 | F117: 16032617 | G117: 49245 | H117: 2380288 | I117: 44658 | J117: 537148 | K117: 18599 | L117: 10704 | M117: 6473 | N117: 3321 | O117: 20386 | P117: 8766 | Q117: 8975 | R117: 1099 | S117: 780 | U117: 42754 | V117: 3177 | W117: 1268 | X117: 22565 | Y117: 13803 | Z117: 3864 | AA117: 5661 | AB117: 6912 | AC117: 5550 | AD117: 7348 | AE117: 10442 | AF117: 15159 | AG117: 23400 | AH117: 5460 | AI117: 5490 | AJ117: 10666 | AK117: 1758 | AL117: 945 | AM117: 1241 | AN117: 2362 | AO117: 27606 | AP117: 2853 | AQ117: 53009 | AR117: 23133 | AS117: 239 | AT117: 22927 | AU117: 3142 | AV117: 2919 | AW117: 25659 | AX117: 3050 | AY117: 11366 | AZ117: 1070 | BA117: 16275 | BB117: 28564 | BC117: 2499 | BD117: 2747 | BE117: 25697 | BF117: 4943 | BG117: 3533 | BH117: 6216 | BI117: 773 | BJ117: 21638 | BK117: 777164000000 | BL117: 40658.09312 | BM117: 0.02810142184 | BN117: 0.1245270897 | BO117: 8.1
A118: 2012 | B118: 115 | C118: Georgia | D118: 9796547 | E118: 5863 | F118: 8231384 | G118: 34188 | H118: 1236302 | I118: 31155 | J118: 277466 | K118: 13864 | L118: 2654 | M118: 6657 | N118: 1041 | O118: 14174 | P118: 4710 | Q118: 1829 | R118: 226 | S118: 1352 | T118: 42870 | V118: 1409 | W118: 936 | X118: 7143 | Y118: 5972 | Z118: 1687 | AA118: 1497 | AB118: 6172 | AC118: 4100 | AD118: 222 | AE118: 3619 | AF118: 4153 | AG118: 9949 | AH118: 2237 | AI118: 3280 | AJ118: 3377 | AK118: 251 | AL118: 1283 | AM118: 3783 | AN118: 15 | AO118: 4920 | AP118: 915 | AQ118: 13957 | AR118: 16009 | AS118: 207 | AT118: 7501 | AU118: 3299 | AV118: 453 | AW118: 9076 | AX118: 440 | AY118: 18611 | AZ118: 257 | BA118: 17606 | BB118: 16198 | BC118: 20 | BD118: 84 | BE118: 10702 | BF118: 1965 | BG118: 1237 | BH118: 3441 | BI118: 106 | BJ118: 1730 | BK118: 433569000000 | BL118: 44257.32863 | BM118: 0.02832283661 | BN118: 0.1261977307 | BO118: 8.7
A119: 2012 | B119: 116 | C119: Hawaii | D119: 1374852 | E119: 1662 | F119: 1164145 | G119: 10466 | H119: 134827 | I119: 9196 | J119: 55145 | K119: 608 | L119: 1417 | M119: 1865 | N119: 24 | O119: 9756 | P119: 1216 | Q119: 191 | R119: 278 | S119: 230 | T119: 2780 | U119: 1448 | W119: 404 | X119: 318 | Y119: 292 | Z119: 84 | AA119: 1135 | AB119: 485 | AC119: 207 | AD119: 91 | AE119: 2491 | AF119: 1266 | AG119: 321 | AH119: 192 | AI119: 44 | AJ119: 944 | AK119: 131 | AL119: 75 | AM119: 760 | AN119: 85 | AO119: 410 | AP119: 284 | AQ119: 2382 | AR119: 2241 | AS119: 0 | AT119: 884 | AU119: 1095 | AV119: 1763 | AW119: 1087 | AX119: 106 | AY119: 644 | AZ119: 459 | BA119: 1314 | BB119: 3300 | BC119: 2183 | BD119: 0 | BE119: 1393 | BF119: 5920 | BG119: 197 | BH119: 295 | BI119: 50 | BJ119: 336 | BK119: 72424000000 | BL119: 52677.67003 | BM119: 0.04010977182 | BN119: 0.09806655553 | BO119: 5
A120: 2012 | B120: 117 | C120: Idaho | D120: 1573036 | E120: 2184 | F120: 1296975 | G120: 12998 | H120: 210151 | I120: 11483 | J120: 59283 | K120: 575 | L120: 1198 | M120: 2424 | N120: 291 | O120: 10280 | P120: 1186 | Q120: 44 | R120: 120 | S120: 116 | T120: 2014 | U120: 583 | V120: 206 | X120: 532 | Y120: 283 | Z120: 90 | AA120: 63 | AB120: 83 | AC120: 54 | AD120: 0 | AE120: 107 | AF120: 338 | AG120: 683 | AH120: 637 | AI120: 87 | AJ120: 214 | AK120: 3800 | AL120: 35 | AM120: 2535 | AN120: 0 | AO120: 214 | AP120: 675 | AQ120: 938 | AR120: 817 | AS120: 0 | AT120: 1018 | AU120: 93 | AV120: 4963 | AW120: 169 | AX120: 0 | AY120: 205 | AZ120: 118 | BA120: 1957 | BB120: 1352 | BC120: 6617 | BD120: 0 | BE120: 269 | BF120: 10398 | BG120: 0 | BH120: 225 | BI120: 677 | BJ120: 136 | BK120: 58243000000 | BL120: 37025.85319 | BM120: 0.03768699508 | BN120: 0.1335957982 | BO120: 6.8
A121: 2012 | B121: 118 | C121: Illinois | D121: 12725119 | E121: 5939 | F121: 11009321 | G121: 31714 | H121: 1441191 | I121: 27618 | J121: 208755 | K121: 883 | L121: 2250 | M121: 7139 | N121: 1587 | O121: 14940 | P121: 3036 | Q121: 955 | R121: 234 | S121: 1066 | T121: 12687 | U121: 8745 | V121: 869 | W121: 1384 | Y121: 16907 | Z121: 8529 | AA121: 2009 | AB121: 2923 | AC121: 1229 | AD121: 526 | AE121: 1865 | AF121: 3296 | AG121: 12583 | AH121: 6537 | AI121: 2744 | AJ121: 13264 | AK121: 228 | AL121: 1302 | AM121: 1478 | AN121: 283 | AO121: 2366 | AP121: 1359 | AQ121: 7561 | AR121: 3761 | AS121: 196 | AT121: 6872 | AU121: 1491 | AV121: 954 | AW121: 4588 | AX121: 462 | AY121: 1583 | AZ121: 394 | BA121: 4648 | BB121: 16780 | BC121: 1154 | BD121: 156 | BE121: 4311 | BF121: 2704 | BG121: 1221 | BH121: 14414 | BI121: 302 | BJ121: 2049 | BK121: 695238000000 | BL121: 54635.08828 | BM121: 0.01640495464 | BN121: 0.113255601 | BO121: 9.1
A122: 2012 | B122: 119 | C122: Indiana | D122: 6457067 | E122: 4184 | F122: 5493090 | G122: 26865 | H122: 805228 | I122: 22224 | J122: 134137 | K122: 1625 | L122: 479 | M122: 2763 | N122: 564 | O122: 6033 | P122: 1225 | Q122: 823 | R122: 639 | S122: 1045 | T122: 11472 | U122: 2258 | V122: 856 | W122: 186 | X122: 28436 | Z122: 1678 | AA122: 1624 | AB122: 11177 | AC122: 736 | AD122: 0 | AE122: 1050 | AF122: 837 | AG122: 11017 | AH122: 1543 | AI122: 1948 | AJ122: 4526 | AK122: 134 | AL122: 591 | AM122: 1011 | AN122: 0 | AO122: 1537 | AP122: 219 | AQ122: 2316 | AR122: 2665 | AS122: 113 | AT122: 11235 | AU122: 1198 | AV122: 387 | AW122: 2419 | AX122: 0 | AY122: 1414 | AZ122: 111 | BA122: 3547 | BB122: 4490 | BC122: 105 | BD122: 0 | BE122: 1932 | BF122: 258 | BG122: 507 | BH122: 1727 | BI122: 1681 | BJ122: 136 | BK122: 298625000000 | BL122: 46247.77782 | BM122: 0.02077367325 | BN122: 0.1247049163 | BO122: 8
A123: 2012 | B123: 120 | C123: Iowa | D123: 3035469 | E123: 2721 | F123: 2585979 | G123: 14093 | H123: 362938 | I123: 11238 | J123: 75760 | K123: 503 | L123: 951 | M123: 1590 | N123: 451 | O123: 3268 | P123: 3252 | Q123: 112 | R123: 0 | S123: 151 | T123: 4335 | U123: 596 | V123: 521 | W123: 290 | X123: 11969 | Y123: 1716 | AA123: 918 | AB123: 819 | AC123: 763 | AD123: 78 | AE123: 419 | AF123: 585 | AG123: 946 | AH123: 7505 | AI123: 751 | AJ123: 4168 | AK123: 452 | AL123: 7698 | AM123: 681 | AN123: 56 | AO123: 1018 | AP123: 114 | AQ123: 1230 | AR123: 734 | AS123: 833 | AT123: 1127 | AU123: 1465 | AV123: 348 | AW123: 451 | AX123: 0 | AY123: 943 | AZ123: 1158 | BA123: 1148 | BB123: 3553 | BC123: 886 | BD123: 0 | BE123: 268 | BF123: 919 | BG123: 22 | BH123: 3607 | BI123: 392 | BJ123: 786 | BK123: 152436000000 | BL123: 50218.2694 | BM123: 0.02495825192 | BN123: 0.119565708 | BO123: 5
A124: 2012 | B124: 121 | C124: Kansas | D124: 2848708 | E124: 2507 | F124: 2361899 | G124: 16878 | H124: 381695 | I124: 15902 | J124: 88284 | K124: 853 | L124: 333 | M124: 3094 | N124: 2158 | O124: 5411 | P124: 3746 | Q124: 210 | R124: 0 | S124: 456 | T124: 3118 | U124: 1896 | V124: 149 | W124: 456 | X124: 1702 | Y124: 1679 | Z124: 1527 | AB124: 617 | AC124: 438 | AD124: 211 | AE124: 282 | AF124: 187 | AG124: 1125 | AH124: 682 | AI124: 452 | AJ124: 21022 | AK124: 300 | AL124: 4126 | AM124: 851 | AN124: 0 | AO124: 267 | AP124: 1029 | AQ124: 571 | AR124: 813 | AS124: 261 | AT124: 1310 | AU124: 8408 | AV124: 848 | AW124: 918 | AX124: 18 | AY124: 556 | AZ124: 154 | BA124: 1542 | BB124: 8468 | BC124: 97 | BD124: 70 | BE124: 1705 | BF124: 3265 | BG124: 139 | BH124: 486 | BI124: 278 | BJ124: 82 | BK124: 138953000000 | BL124: 48777.55109 | BM124: 0.03099089131 | BN124: 0.1339888118 | BO124: 5.6
A125: 2012 | B125: 122 | C125: Kentucky | D125: 4328626 | E125: 2851 | F125: 3676472 | G125: 15304 | H125: 521511 | I125: 14825 | J125: 112787 | K125: 4137 | L125: 304 | M125: 1103 | N125: 518 | O125: 3415 | P125: 712 | Q125: 246 | R125: 706 | S125: 254 | T125: 9232 | U125: 4173 | V125: 647 | W125: 50 | X125: 4445 | Y125: 12203 | Z125: 238 | AA125: 602 | AC125: 666 | AD125: 46 | AE125: 1120 | AF125: 419 | AG125: 7302 | AH125: 605 | AI125: 646 | AJ125: 2381 | AK125: 0 | AL125: 723 | AM125: 301 | AN125: 84 | AO125: 496 | AP125: 554 | AQ125: 5239 | AR125: 3643 | AS125: 122 | AT125: 17041 | AU125: 577 | AV125: 298 | AW125: 2226 | AX125: 0 | AY125: 1347 | AZ125: 0 | BA125: 10064 | BB125: 3345 | BC125: 464 | BD125: 45 | BE125: 3319 | BF125: 1988 | BG125: 3346 | BH125: 1395 | BI125: 0 | BJ125: 170 | BK125: 173466000000 | BL125: 40074.14824 | BM125: 0.02605607414 | BN125: 0.1204795702 | BO125: 8.2
A126: 2012 | B126: 123 | C126: Louisiana | D126: 4545914 | E126: 4612 | F126: 3912023 | G126: 21791 | H126: 528406 | I126: 20131 | J126: 91215 | K126: 2329 | L126: 403 | M126: 2021 | N126: 3645 | O126: 5139 | P126: 1433 | Q126: 164 | R126: 0 | S126: 596 | T126: 6534 | U126: 4478 | V126: 378 | W126: 265 | X126: 1229 | Y126: 1359 | Z126: 544 | AA126: 420 | AB126: 1649 | AD126: 251 | AE126: 642 | AF126: 549 | AG126: 1080 | AH126: 330 | AI126: 6791 | AJ126: 1591 | AK126: 428 | AL126: 745 | AM126: 931 | AN126: 11 | AO126: 975 | AP126: 150 | AQ126: 2786 | AR126: 2284 | AS126: 64 | AT126: 1115 | AU126: 2159 | AV126: 195 | AW126: 1239 | AX126: 737 | AY126: 1914 | AZ126: 0 | BA126: 2348 | BB126: 24488 | BC126: 277 | BD126: 45 | BE126: 1857 | BF126: 1581 | BG126: 238 | BH126: 682 | BI126: 146 | BJ126: 655 | BK126: 243264000000 | BL126: 53512.67094 | BM126: 0.0200652718 | BN126: 0.1162375707 | BO126: 6.2
A127: 2012 | B127: 124 | C127: Maine | D127: 1315586 | E127: 1384 | F127: 1132344 | G127: 9895 | H127: 151438 | I127: 9223 | J127: 27523 | K127: 129 | L127: 38 | M127: 230 | N127: 0 | O127: 1610 | P127: 314 | Q127: 1468 | R127: 234 | S127: 32 | T127: 2926 | U127: 511 | V127: 0 | W127: 143 | X127: 195 | Y127: 0 | Z127: 7 | AA127: 277 | AB127: 482 | AC127: 15 | AE127: 325 | AF127: 3887 | AG127: 116 | AH127: 430 | AI127: 79 | AJ127: 69 | AK127: 0 | AL127: 82 | AM127: 35 | AN127: 3655 | AO127: 405 | AP127: 272 | AQ127: 2519 | AR127: 1112 | AS127: 0 | AT127: 628 | AU127: 79 | AV127: 215 | AW127: 976 | AX127: 1024 | AY127: 173 | AZ127: 0 | BA127: 985 | BB127: 496 | BC127: 200 | BD127: 349 | BE127: 573 | BF127: 118 | BG127: 51 | BH127: 0 | BI127: 59 | BJ127: 38 | BK127: 53656000000 | BL127: 40784.86697 | BM127: 0.02092071518 | BN127: 0.1151106807 | BO127: 7
A128: 2012 | B128: 125 | C128: Maryland | D128: 5816472 | E128: 3717 | F128: 5068457 | G128: 21604 | H128: 549973 | I128: 20595 | J128: 154983 | K128: 1261 | L128: 1947 | M128: 760 | N128: 136 | O128: 8614 | P128: 1071 | Q128: 881 | R128: 4100 | S128: 21213 | T128: 9610 | U128: 4610 | V128: 610 | W128: 429 | X128: 3621 | Y128: 1210 | Z128: 569 | AA128: 1726 | AB128: 715 | AC128: 606 | AD128: 332 | AF128: 3977 | AG128: 2167 | AH128: 1422 | AI128: 581 | AJ128: 256 | AK128: 0 | AL128: 132 | AM128: 330 | AN128: 1124 | AO128: 6260 | AP128: 638 | AQ128: 11736 | AR128: 7507 | AS128: 116 | AT128: 2522 | AU128: 463 | AV128: 378 | AW128: 15485 | AX128: 82 | AY128: 2297 | AZ128: 0 | BA128: 1800 | BB128: 5612 | BC128: 1061 | BD128: 589 | BE128: 20579 | BF128: 1431 | BG128: 1957 | BH128: 460 | BI128: 0 | BJ128: 294 | BK128: 317678000000 | BL128: 54616.95681 | BM128: 0.02664553358 | BN128: 0.09455439655 | BO128: 6.9
A129: 2012 | B129: 126 | C129: Massachusetts | D129: 6580641 | E129: 3587 | F129: 5752166 | G129: 19793 | H129: 626380 | I129: 17354 | J129: 142577 | K129: 636 | L129: 890 | M129: 1972 | N129: 394 | O129: 12770 | P129: 980 | Q129: 10525 | R129: 506 | S129: 379 | T129: 12890 | U129: 2789 | V129: 1108 | W129: 188 | X129: 2886 | Y129: 677 | Z129: 151 | AA129: 565 | AB129: 52 | AC129: 1556 | AD129: 3907 | AE129: 2381 | AG129: 1337 | AH129: 966 | AI129: 155 | AJ129: 453 | AK129: 49 | AL129: 182 | AM129: 787 | AN129: 13331 | AO129: 8046 | AP129: 521 | AQ129: 19467 | AR129: 2514 | AS129: 81 | AT129: 1829 | AU129: 297 | AV129: 1528 | AW129: 8236 | AX129: 6863 | AY129: 2477 | AZ129: 194 | BA129: 823 | BB129: 3694 | BC129: 1027 | BD129: 2534 | BE129: 4098 | BF129: 1653 | BG129: 385 | BH129: 584 | BI129: 264 | BJ129: 4056 | BK129: 403823000000 | BL129: 61365.29861 | BM129: 0.02166612645 | BN129: 0.09518525627 | BO129: 6.9
A130: 2012 | B130: 127 | C130: Michigan | D130: 9778980 | E130: 4263 | F130: 8330990 | G130: 24803 | H130: 1268105 | I130: 23226 | J130: 133981 | K130: 2341 | L130: 1152 | M130: 7168 | N130: 906 | O130: 8085 | P130: 2363 | Q130: 798 | R130: 114 | S130: 274 | T130: 13146 | U130: 4270 | V130: 291 | W130: 242 | X130: 10047 | Y130: 10976 | Z130: 993 | AA130: 805 | AB130: 3409 | AC130: 1284 | AD130: 261 | AE130: 2201 | AF130: 1720 | AH130: 1127 | AI130: 922 | AJ130: 2206 | AK130: 218 | AL130: 113 | AM130: 1354 | AN130: 446 | AO130: 1617 | AP130: 1318 | AQ130: 5731 | AR130: 3912 | AS130: 265 | AT130: 11318 | AU130: 705 | AV130: 811 | AW130: 2739 | AX130: 68 | AY130: 1822 | AZ130: 66 | BA130: 3259 | BB130: 8638 | BC130: 819 | BD130: 60 | BE130: 3057 | BF130: 2146 | BG130: 353 | BH130: 4768 | BI130: 1277 | BJ130: 782 | BK130: 400504000000 | BL130: 40955.60069 | BM130: 0.01370091768 | BN130: 0.1296766125 | BO130: 8.9
A131: 2012 | B131: 128 | C131: Minnesota | D131: 5315228 | E131: 2787 | F131: 4536303 | G131: 18312 | H131: 653012 | I131: 17074 | J131: 101042 | K131: 1299 | L131: 523 | M131: 3065 | N131: 375 | O131: 8086 | P131: 3565 | Q131: 696 | R131: 0 | S131: 310 | T131: 2372 | U131: 2235 | V131: 1277 | W131: 575 | X131: 5896 | Y131: 2026 | Z131: 7220 | AA131: 924 | AB131: 57 | AC131: 791 | AD131: 187 | AE131: 1841 | AF131: 814 | AG131: 2212 | AI131: 202 | AJ131: 1709 | AK131: 1257 | AL131: 992 | AM131: 932 | AN131: 0 | AO131: 1038 | AP131: 322 | AQ131: 1849 | AR131: 1745 | AS131: 6672 | AT131: 2635 | AU131: 1212 | AV131: 781 | AW131: 1106 | AX131: 299 | AY131: 1705 | AZ131: 3442 | BA131: 1738 | BB131: 4001 | BC131: 429 | BD131: 77 | BE131: 1037 | BF131: 1685 | BG131: 0 | BH131: 17618 | BI131: 213 | BJ131: 134 | BK131: 294729000000 | BL131: 55449.92614 | BM131: 0.01900990889 | BN131: 0.1228568182 | BO131: 5.4
A132: 2012 | B132: 129 | C132: Mississippi | D132: 2947696 | E132: 2744 | F132: 2529377 | G132: 17940 | H132: 339807 | I132: 16126 | J132: 73500 | K132: 5141 | L132: 0 | M132: 710 | N132: 2680 | O132: 4371 | P132: 799 | Q132: 106 | R132: 0 | S132: 97 | T132: 4676 | U132: 2669 | V132: 184 | W132: 586 | X132: 2703 | Y132: 1200 | Z132: 160 | AA132: 400 | AB132: 446 | AC132: 8588 | AD132: 163 | AE132: 379 | AF132: 67 | AG132: 1768 | AH132: 568 | AJ132: 2634 | AK132: 166 | AL132: 138 | AM132: 526 | AN132: 60 | AO132: 2127 | AP132: 86 | AQ132: 1492 | AR132: 1709 | AS132: 98 | AT132: 896 | AU132: 562 | AV132: 465 | AW132: 613 | AX132: 185 | AY132: 596 | AZ132: 79 | BA132: 11643 | BB132: 7230 | BC132: 454 | BD132: 0 | BE132: 1929 | BF132: 433 | BG132: 0 | BH132: 611 | BI132: 307 | BJ132: 81 | BK132: 101490000000 | BL132: 34430.28046 | BM132: 0.02493472868 | BN132: 0.1152788483 | BO132: 9.1
A133: 2012 | B133: 130 | C133: Missouri | D133: 5951913 | E133: 3866 | F133: 4965459 | G133: 21306 | H133: 801093 | I133: 19635 | J133: 162930 | K133: 1333 | L133: 2186 | M133: 2297 | N133: 9434 | O133: 10717 | P133: 3798 | Q133: 410 | R133: 234 | S133: 144 | T133: 8374 | U133: 3451 | V133: 2114 | W133: 596 | X133: 22001 | Y133: 4184 | Z133: 5956 | AA133: 20218 | AB133: 2291 | AC133: 1178 | AD133: 996 | AE133: 1246 | AF133: 810 | AG133: 2964 | AH133: 2798 | AI133: 1110 | AK133: 511 | AL133: 1999 | AM133: 836 | AN133: 35 | AO133: 960 | AP133: 451 | AQ133: 2834 | AR133: 3988 | AS133: 636 | AT133: 3557 | AU133: 5298 | AV133: 1186 | AW133: 1535 | AX133: 361 | AY133: 2856 | AZ133: 527 | BA133: 3122 | BB133: 9278 | BC133: 3287 | BD133: 318 | BE133: 2609 | BF133: 2312 | BG133: 148 | BH133: 2636 | BI133: 810 | BJ133: 826 | BK133: 258832000000 | BL133: =BK133/D133 -> 43487.19479 | BM133: =J133/D133 -> 0.02737439207 | BN133: =H133/D133 -> 0.1345942053 | BO133: 6.8
A134: 2012 | B134: 131 | C134: Montana | D134: 995544 | E134: 947 | F134: 829489 | G134: 8669 | H134: 126463 | I134: 7466 | J134: 37690 | K134: 31 | L134: 726 | M134: 1548 | N134: 63 | O134: 5428 | P134: 2135 | Q134: 0 | R134: 0 | S134: 0 | T134: 1875 | U134: 292 | V134: 556 | W134: 3385 | X134: 542 | Y134: 163 | Z134: 415 | AA134: 224 | AB134: 367 | AC134: 0 | AD134: 225 | AE134: 33 | AF134: 97 | AG134: 822 | AH134: 481 | AI134: 32 | AJ134: 447 | AL134: 108 | AM134: 968 | AN134: 115 | AO134: 156 | AP134: 259 | AQ134: 482 | AR134: 1082 | AS134: 977 | AT134: 402 | AU134: 1018 | AV134: 2950 | AW134: 457 | AX134: 0 | AY134: 230 | AZ134: 191 | BA134: 45 | BB134: 1393 | BC134: 260 | BD134: 87 | BE134: 156 | BF134: 4783 | BG134: 0 | BH134: 750 | BI134: 934 | BJ134: 0 | BK134: 40422000000 | BL134: 40602.92664 | BM134: 0.03785869836 | BN134: 0.1270290414 | BO134: 5.8
A135: 2012 | B135: 132 | C135: Nebraska | D135: 1829420 | E135: 2101 | F135: 1540361 | G135: 9074 | H135: 237937 | I135: 9736 | J135: 43266 | K135: 245 | L135: 626 | M135: 2406 | N135: 363 | O135: 3438 | P135: 2023 | Q135: 0 | R135: 0 | S135: 0 | T135: 1368 | U135: 786 | V135: 165 | W135: 315 | X135: 1193 | Y135: 290 | Z135: 6815 | AA135: 3103 | AB135: 131 | AC135: 411 | AD135: 68 | AE135: 129 | AF135: 195 | AG135: 258 | AH135: 1489 | AI135: 176 | AJ135: 2223 | AK135: 108 | AM135: 233 | AN135: 0 | AO135: 524 | AP135: 158 | AQ135: 318 | AR135: 874 | AS135: 497 | AT135: 563 | AU135: 587 | AV135: 106 | AW135: 702 | AX135: 0 | AY135: 456 | AZ135: 2507 | BA135: 232 | BB135: 3130 | BC135: 229 | BD135: 79 | BE135: 1076 | BF135: 1327 | BG135: 111 | BH135: 316 | BI135: 917 | BJ135: 0 | BK135: 99557000000 | BL135: 54419.9801 | BM135: 0.02365011862 | BN135: 0.1300614402 | BO135: 4
A136: 2012 | B136: 133 | C136: Nevada | D136: 2725280 | E136: 3005 | F136: 2105070 | G136: 21984 | H136: 481496 | I136: 19389 | J136: 124285 | K136: 761 | L136: 2161 | M136: 8748 | N136: 353 | O136: 49978 | P136: 6402 | Q136: 143 | R136: 373 | S136: 468 | T136: 3381 | U136: 745 | V136: 2053 | W136: 1503 | X136: 2822 | Y136: 362 | Z136: 714 | AA136: 1202 | AB136: 952 | AC136: 421 | AD136: 209 | AE136: 934 | AF136: 318 | AG136: 1235 | AH136: 1157 | AI136: 783 | AJ136: 694 | AK136: 1086 | AL136: 714 | AN136: 175 | AO136: 912 | AP136: 1138 | AQ136: 3521 | AR136: 767 | AS136: 702 | AT136: 1407 | AU136: 1520 | AV136: 3101 | AW136: 1601 | AX136: 336 | AY136: 480 | AZ136: 0 | BA136: 1699 | BB136: 5484 | BC136: 4605 | BD136: 121 | BE136: 1135 | BF136: 2997 | BG136: 100 | BH136: 1046 | BI136: 766 | BJ136: 237 | BK136: 133584000000 | BL136: 49016.61481 | BM136: 0.04560448835 | BN136: 0.1766776258 | BO136: 10.6
A137: 2012 | B137: 134 | C137: New Hampshire | D137: 1309203 | E137: 1504 | F137: 1127376 | G137: 9730 | H137: 125118 | I137: 9101 | J137: 50484 | K137: 0 | L137: 437 | M137: 440 | N137: 0 | O137: 1514 | P137: 572 | Q137: 1345 | R137: 0 | S137: 101 | T137: 2746 | U137: 470 | V137: 43 | W137: 20 | X137: 673 | Y137: 297 | Z137: 53 | AA137: 102 | AB137: 284 | AC137: 7 | AD137: 6118 | AE137: 33 | AF137: 18990 | AG137: 426 | AH137: 0 | AI137: 0 | AJ137: 289 | AK137: 0 | AL137: 110 | AM137: 0 | AO137: 591 | AP137: 223 | AQ137: 2905 | AR137: 1609 | AS137: 0 | AT137: 324 | AU137: 186 | AV137: 208 | AW137: 890 | AX137: 1248 | AY137: 323 | AZ137: 0 | BA137: 77 | BB137: 2150 | BC137: 557 | BD137: 2960 | BE137: 660 | BF137: 113 | BG137: 80 | BH137: 239 | BI137: 71 | BJ137: 75 | BK137: 64697000000 | BL137: 49417.08811 | BM137: 0.03856086489 | BN137: 0.09556806698 | BO137: 5.5
A138: 2012 | B138: 135 | C138: New Jersey | D138: 8772744 | E138: 4541 | F138: 7929570 | G138: 23298 | H138: 655465 | I138: 21808 | J138: 130223 | K138: 779 | L138: 359 | M138: 1328 | N138: 57 | O138: 4330 | P138: 380 | Q138: 3466 | R138: 1921 | S138: 840 | T138: 10649 | U138: 3002 | V138: 22 | W138: 113 | X138: 2052 | Y138: 1039 | Z138: 357 | AA138: 426 | AB138: 631 | AC138: 339 | AD138: 430 | AE138: 3474 | AF138: 4907 | AG138: 324 | AH138: 570 | AI138: 106 | AJ138: 384 | AK138: 67 | AL138: 35 | AM138: 908 | AN138: 126 | AP138: 45 | AQ138: 40495 | AR138: 3236 | AS138: 55 | AT138: 1452 | AU138: 1540 | AV138: 760 | AW138: 23597 | AX138: 429 | AY138: 2372 | AZ138: 581 | BA138: 1400 | BB138: 2509 | BC138: 425 | BD138: 35 | BE138: 5024 | BF138: 1847 | BG138: 297 | BH138: 680 | BI138: 23 | BJ138: 2574 | BK138: 508003000000 | BL138: 57906.96731 | BM138: 0.01484404424 | BN138: 0.07471607515 | BO138: 9.1
A139: 2012 | B139: 136 | C139: New Mexico | D139: 2060595 | E139: 2119 | F139: 1769341 | G139: 11461 | H139: 226243 | I139: 12069 | J139: 54693 | K139: 787 | L139: 320 | M139: 6391 | N139: 410 | O139: 4536 | P139: 4780 | Q139: 280 | R139: 100 | S139: 25 | T139: 4707 | U139: 192 | V139: 168 | W139: 355 | X139: 790 | Y139: 660 | Z139: 384 | AA139: 672 | AB139: 159 | AC139: 790 | AD139: 57 | AE139: 505 | AF139: 303 | AG139: 602 | AH139: 284 | AI139: 451 | AJ139: 1216 | AK139: 139 | AL139: 194 | AM139: 604 | AN139: 268 | AO139: 252 | AQ139: 1111 | AR139: 335 | AS139: 41 | AT139: 1178 | AU139: 1076 | AV139: 932 | AW139: 822 | AX139: 0 | AY139: 325 | AZ139: 509 | BA139: 338 | BB139: 11955 | BC139: 1382 | BD139: 81 | BE139: 1560 | BF139: 1251 | BG139: 0 | BH139: 321 | BI139: 95 | BJ139: 429 | BK139: 80600000000 | BL139: 39114.91584 | BM139: 0.02654233365 | BN139: 0.1097949864 | BO139: 6.9
A140: 2012 | B140: 137 | C140: New York | D140: 19352153 | E140: 6112 | F140: 17202134 | G140: 34343 | H140: 1723117 | I140: 30910 | J140: 270053 | K140: 1364 | L140: 4002 | M140: 4146 | N140: 247 | O140: 24623 | P140: 3596 | Q140: 14595 | R140: 477 | S140: 3936 | T140: 27392 | U140: 7592 | V140: 1598 | W140: 607 | X140: 8017 | Y140: 3040 | Z140: 955 | AA140: 1437 | AB140: 1753 | AC140: 1083 | AD140: 1345 | AE140: 7321 | AF140: 15073 | AG140: 5191 | AH140: 1059 | AI140: 773 | AJ140: 3310 | AK140: 421 | AL140: 78 | AM140: 600 | AN140: 2760 | AO140: 42574 | AP140: 646 | AR140: 10544 | AS140: 77 | AT140: 4625 | AU140: 1327 | AV140: 1055 | AW140: 22895 | AX140: 3222 | AY140: 5952 | AZ140: 0 | BA140: 1279 | BB140: 11231 | BC140: 622 | BD140: 2764 | BE140: 7939 | BF140: 2614 | BG140: 921 | BH140: 979 | BI140: 396 | BJ140: 7321 | BK140: 1205930000000 | BL140: 62315.03027 | BM140: 0.01395467471 | BN140: 0.08904006701 | BO140: 8.2
A141: 2012 | B141: 138 | C141: North Carolina | D141: 9640490 | E141: 5097 | F141: 8167830 | G141: 27074 | H141: 1149080 | I141: 24801 | J141: 273149 | K141: 4329 | L141: 1458 | M141: 3493 | N141: 861 | O141: 13883 | P141: 4790 | Q141: 4914 | R141: 2180 | S141: 1801 | T141: 26365 | U141: 16823 | V141: 1566 | W141: 334 | X141: 6378 | Y141: 4532 | Z141: 775 | AA141: 1595 | AB141: 1531 | AC141: 919 | AD141: 1259 | AE141: 9005 | AF141: 3710 | AG141: 6161 | AH141: 1523 | AI141: 2377 | AJ141: 2623 | AK141: 244 | AL141: 628 | AM141: 1627 | AN141: 754 | AO141: 11468 | AP141: 1138 | AQ141: 19891 | AS141: 206 | AT141: 9337 | AU141: 1263 | AV141: 1333 | AW141: 12179 | AX141: 290 | AY141: 25532 | AZ141: 351 | BA141: 9230 | BB141: 12638 | BC141: 1189 | BD141: 445 | BE141: 26759 | BF141: 5915 | BG141: 2677 | BH141: 2266 | BI141: 604 | BJ141: 2025 | BK141: 455973000000 | BL141: 47297.6996 | BM141: 0.02833351832 | BN141: 0.1191931116 | BO141: 8.9
A142: 2012 | B142: 139 | C142: North Dakota | D142: 689838 | E142: 1379 | F142: 563978 | G142: 6361 | H142: 84294 | I142: 5380 | J142: 38213 | K142: 83 | L142: 70 | M142: 1571 | N142: 0 | O142: 999 | P142: 546 | Q142: 65 | R142: 0 | S142: 70 | T142: 950 | U142: 98 | V142: 160 | W142: 540 | X142: 799 | Y142: 55 | Z142: 458 | AA142: 161 | AB142: 22 | AC142: 18 | AD142: 98 | AE142: 232 | AF142: 187 | AG142: 757 | AH142: 15257 | AI142: 72 | AJ142: 1490 | AK142: 1776 | AL142: 950 | AM142: 854 | AN142: 0 | AO142: 140 | AP142: 161 | AQ142: 331 | AR142: 231 | AT142: 6 | AU142: 280 | AV142: 724 | AW142: 114 | AX142: 244 | AY142: 14 | AZ142: 1754 | BA142: 746 | BB142: 1414 | BC142: 43 | BD142: 758 | BE142: 403 | BF142: 1604 | BG142: 0 | BH142: 543 | BI142: 365 | BJ142: 0 | BK142: 46016000000 | BL142: 66705.51637 | BM142: 0.05539416501 | BN142: 0.1221939064 | BO142: 3
A143: 2012 | B143: 140 | C143: Ohio | D143: 11414635 | E143: 5725 | F143: 9735390 | G143: 29715 | H143: 1440815 | I143: 28423 | J143: 196391 | K143: 3705 | L143: 2207 | M143: 4929 | N143: 884 | O143: 8995 | P143: 3180 | Q143: 1355 | R143: 1079 | S143: 985 | T143: 16366 | U143: 8052 | V143: 1198 | W143: 412 | X143: 9510 | Y143: 13534 | Z143: 1039 | AA143: 1166 | AB143: 13227 | AC143: 2214 | AD143: 1189 | AE143: 5026 | AF143: 2189 | AG143: 16336 | AH143: 1122 | AI143: 1017 | AJ143: 3026 | AK143: 276 | AL143: 1052 | AM143: 907 | AN143: 189 | AO143: 4703 | AP143: 1361 | AQ143: 8732 | AR143: 5498 | AS143: 453 | AU143: 858 | AV143: 432 | AW143: 14147 | AX143: 435 | AY143: 2445 | AZ143: 47 | BA143: 3542 | BB143: 11760 | BC143: 197 | BD143: 364 | BE143: 3193 | BF143: 2862 | BG143: 7820 | BH143: 974 | BI143: 202 | BJ143: 1403 | BK143: 509393000000 | BL143: 44626.30649 | BM143: 0.01720519316 | BN143: 0.1262252363 | BO143: 7.3
A144: 2012 | B144: 141 | C144: Oklahoma | D144: 3762311 | E144: 2764 | F144: 3107367 | G144: 14635 | H144: 531347 | I144: 12812 | J144: 108972 | K144: 1030 | L144: 1279 | M144: 2974 | N144: 5777 | O144: 8950 | P144: 4717 | Q144: 0 | R144: 380 | S144: 151 | T144: 5011 | U144: 2581 | V144: 189 | W144: 905 | X144: 1100 | Y144: 1490 | Z144: 1088 | AA144: 7065 | AB144: 1354 | AC144: 2562 | AD144: 167 | AE144: 750 | AF144: 1233 | AG144: 1347 | AH144: 906 | AI144: 1850 | AJ144: 5210 | AK144: 798 | AL144: 300 | AM144: 1101 | AN144: 549 | AO144: 1523 | AP144: 1244 | AQ144: 1981 | AR144: 1961 | AS144: 308 | AT144: 1148 | AV144: 1261 | AW144: 494 | AX144: 0 | AY144: 569 | AZ144: 108 | BA144: 2471 | BB144: 25508 | BC144: 2588 | BD144: 197 | BE144: 1749 | BF144: 1574 | BG144: 368 | BH144: 1061 | BI144: 45 | BJ144: 0 | BK144: 160953000000 | BL144: 42780.35495 | BM144: 0.02896411275 | BN144: 0.1412288883 | BO144: 5.4
A145: 2012 | B145: 142 | C145: Oregon | D145: 3857465 | E145: 2984 | F145: 3158450 | G145: 19251 | H145: 560673 | I145: 17729 | J145: 118925 | K145: 373 | L145: 2513 | M145: 7954 | N145: 165 | O145: 31862 | P145: 4472 | Q145: 381 | R145: 0 | S145: 696 | T145: 1660 | U145: 1032 | V145: 2501 | W145: 5093 | X145: 1676 | Y145: 1380 | Z145: 834 | AA145: 556 | AB145: 202 | AC145: 227 | AD145: 446 | AE145: 457 | AF145: 760 | AG145: 570 | AH145: 1792 | AI145: 186 | AJ145: 403 | AK145: 2192 | AL145: 570 | AM145: 5935 | AN145: 39 | AO145: 385 | AP145: 920 | AQ145: 2379 | AR145: 1482 | AS145: 42 | AT145: 1411 | AU145: 725 | AW145: 904 | AX145: 177 | AY145: 461 | AZ145: 119 | BA145: 802 | BB145: 3347 | BC145: 4793 | BD145: 367 | BE145: 676 | BF145: 21224 | BG145: 593 | BH145: 426 | BI145: 765 | BJ145: 152 | BK145: 198702000000 | BL145: 51511.03121 | BM145: 0.03082983255 | BN145: 0.1453475275 | BO145: 8.4
A146: 2012 | B146: 143 | C146: Pennsylvania | D146: 12630082 | E146: 4558 | F146: 11107110 | G146: 28998 | H146: 1252378 | I146: 26347 | J146: 215500 | K146: 1926 | L146: 1658 | M146: 3529 | N146: 573 | O146: 7772 | P146: 2574 | Q146: 3311 | R146: 4814 | S146: 2921 | T146: 14631 | U146: 4337 | V146: 245 | W146: 359 | X146: 3749 | Y146: 1599 | Z146: 125 | AA146: 967 | AB146: 1233 | AC146: 694 | AD146: 988 | AE146: 17529 | AF146: 5900 | AG146: 2642 | AH146: 1169 | AI146: 55 | AJ146: 1171 | AK146: 135 | AL146: 214 | AM146: 1600 | AN146: 1138 | AO146: 33791 | AP146: 1001 | AQ146: 32898 | AR146: 6380 | AS146: 166 | AT146: 14319 | AU146: 378 | AV146: 234 | AX146: 771 | AY146: 3023 | AZ146: 159 | BA146: 1273 | BB146: 6768 | BC146: 1276 | BD146: 1012 | BE146: 11960 | BF146: 1787 | BG146: 6762 | BH146: 1550 | BI146: 434 | BJ146: 7847 | BK146: 600897000000 | BL146: 47576.65073 | BM146: 0.01706243871 | BN146: 0.09915834276 | BO146: 7.9
A147: 2012 | B147: 144 | C147: Rhode Island | D147: 1040527 | E147: 1533 | F147: 899551 | G147: 9890 | H147: 101165 | I147: 8498 | J147: 33446 | K147: 20 | L147: 0 | M147: 93 | N147: 0 | O147: 2146 | P147: 332 | Q147: 4170 | R147: 0 | S147: 313 | T147: 2752 | U147: 168 | V147: 120 | W147: 0 | X147: 385 | Y147: 0 | Z147: 0 | AA147: 27 | AB147: 286 | AC147: 24 | AD147: 279 | AE147: 482 | AF147: 11253 | AG147: 230 | AH147: 131 | AI147: 0 | AJ147: 210 | AK147: 0 | AL147: 188 | AM147: 25 | AN147: 611 | AO147: 1219 | AP147: 36 | AQ147: 3603 | AR147: 478 | AS147: 0 | AT147: 63 | AU147: 0 | AV147: 139 | AW147: 735 | AY147: 481 | AZ147: 0 | BA147: 120 | BB147: 823 | BC147: 0 | BD147: 53 | BE147: 1008 | BF147: 287 | BG147: 0 | BH147: 135 | BI147: 21 | BJ147: 116 | BK147: 50956000000 | BL147: 48971.33856 | BM147: 0.03214332737 | BN147: 0.09722477168 | BO147: 9.7
A148: 2012 | B148: 145 | C148: South Carolina | D148: 4668886 | E148: 3434 | F148: 3929626 | G148: 20572 | H148: 564350 | I148: 20053 | J148: 156705 | K148: 1665 | L148: 1244 | M148: 2222 | N148: 839 | O148: 5979 | P148: 1915 | Q148: 1590 | R148: 697 | S148: 435 | T148: 11552 | U148: 18570 | V148: 638 | W148: 198 | X148: 2125 | Y148: 3802 | Z148: 643 | AA148: 1064 | AB148: 1924 | AC148: 2709 | AD148: 2077 | AE148: 3565 | AF148: 2313 | AG148: 2966 | AH148: 757 | AI148: 1407 | AJ148: 1884 | AK148: 93 | AL148: 158 | AM148: 1025 | AN148: 917 | AO148: 6517 | AP148: 1052 | AQ148: 10746 | AR148: 24764 | AS148: 656 | AT148: 4388 | AU148: 555 | AV148: 255 | AW148: 6497 | AX148: 538 | AZ148: 816 | BA148: 3550 | BB148: 5351 | BC148: 566 | BD148: 298 | BE148: 9377 | BF148: 1629 | BG148: 1345 | BH148: 832 | BI148: 0 | BJ148: 1070 | BK148: 176217000000 | BL148: 37742.8363 | BM148: 0.03356368093 | BN148: 0.1208746583 | BO148: 8.3
A149: 2012 | B149: 146 | C149: South Dakota | D149: 821669 | E149: 1036 | F149: 676014 | G149: 7752 | H149: 115606 | I149: 7423 | J149: 26051 | K149: 0 | L149: 855 | M149: 435 | N149: 227 | O149: 1494 | P149: 1744 | Q149: 2 | R149: 0 | S149: 0 | T149: 970 | U149: 122 | V149: 8 | W149: 78 | X149: 74 | Y149: 210 | Z149: 2441 | AA149: 403 | AB149: 0 | AC149: 0 | AD149: 0 | AE149: 60 | AF149: 61 | AG149: 892 | AH149: 3568 | AI149: 34 | AJ149: 474 | AK149: 248 | AL149: 2175 | AM149: 135 | AN149: 0 | AO149: 0 | AP149: 175 | AQ149: 371 | AR149: 240 | AS149: 1725 | AT149: 64 | AU149: 21 | AV149: 667 | AW149: 515 | AX149: 0 | AY149: 158 | BA149: 507 | BB149: 1715 | BC149: 388 | BD149: 5 | BE149: 340 | BF149: 1026 | BG149: 131 | BH149: 314 | BI149: 979 | BJ149: 134 | BK149: 42464000000 | BL149: 51680.17778 | BM149: 0.03170498096 | BN149: 0.1406965579 | BO149: 4
A150: 2012 | B150: 147 | C150: Tennessee | D150: 6378278 | E150: 4412 | F150: 5396833 | G150: 24470 | H150: 783077 | I150: 21860 | J150: 177098 | K150: 12116 | L150: 1281 | M150: 2250 | N150: 3306 | O150: 8396 | P150: 2473 | Q150: 936 | R150: 176 | S150: 180 | T150: 15641 | U150: 16012 | V150: 1058 | W150: 787 | X150: 7094 | Y150: 5591 | Z150: 617 | AA150: 2630 | AB150: 13202 | AC150: 2452 | AD150: 1040 | AE150: 1743 | AF150: 1525 | AG150: 4507 | AH150: 1178 | AI150: 10568 | AJ150: 2694 | AK150: 308 | AL150: 432 | AM150: 735 | AN150: 271 | AO150: 783 | AP150: 751 | AQ150: 6279 | AR150: 5904 | AS150: 7 | AT150: 6200 | AU150: 2495 | AV150: 1080 | AW150: 3329 | AX150: 26 | AY150: 4300 | AZ150: 0 | BB150: 8716 | BC150: 784 | BD150: 133 | BE150: 8008 | BF150: 1876 | BG150: 3248 | BH150: 1622 | BI150: 358 | BJ150: 717 | BK150: 277036000000 | BL150: 43434.29371 | BM150: 0.02776580137 | BN150: 0.1227724787 | BO150: 8.1
A151: 2012 | B151: 148 | C151: Texas | D151: 25711791 | E151: 10124 | F151: 21354247 | G151: 60947 | H151: 3656070 | I151: 53747 | J151: 507752 | K151: 9993 | L151: 6759 | M151: 18908 | N151: 13781 | O151: 62702 | P151: 16616 | Q151: 2769 | R151: 181 | S151: 1189 | T151: 31259 | U151: 20362 | V151: 5040 | W151: 2387 | X151: 19672 | Y151: 8264 | Z151: 4934 | AA151: 12699 | AB151: 6040 | AC151: 29348 | AD151: 1293 | AE151: 4969 | AF151: 4813 | AG151: 9501 | AH151: 2803 | AI151: 6402 | AJ151: 12319 | AK151: 1813 | AL151: 4794 | AM151: 8266 | AN151: 761 | AO151: 6797 | AP151: 16762 | AQ151: 20274 | AR151: 22660 | AS151: 989 | AT151: 8728 | AU151: 26284 | AV151: 3827 | AW151: 10449 | AX151: 1763 | AY151: 4470 | AZ151: 1264 | BA151: 10368 | BC151: 4610 | BD151: 113 | BE151: 17734 | BF151: 11630 | BG151: 1729 | BH151: 4192 | BI151: 2472 | BJ151: 4435 | BK151: 1397369000000 | BL151: 54347.40038 | BM151: 0.01974782698 | BN151: 0.1421942952 | BO151: 6.5
A152: 2012 | B152: 149 | C152: Utah | D152: 2805440 | E152: 2571 | F152: 2324019 | G152: 16852 | H152: 373980 | I152: 16586 | J152: 87870 | K152: 126 | L152: 2819 | M152: 7966 | N152: 361 | O152: 15286 | P152: 5350 | Q152: 142 | R152: 0 | S152: 0 | T152: 2428 | U152: 1142 | V152: 1436 | W152: 5129 | X152: 1588 | Y152: 475 | Z152: 2791 | AA152: 398 | AB152: 217 | AC152: 345 | AD152: 380 | AE152: 613 | AF152: 1503 | AG152: 1670 | AH152: 385 | AI152: 284 | AJ152: 1553 | AK152: 1057 | AL152: 489 | AM152: 5391 | AN152: 507 | AO152: 437 | AP152: 686 | AQ152: 2129 | AR152: 842 | AS152: 175 | AT152: 1875 | AU152: 1338 | AV152: 4089 | AW152: 944 | AX152: 351 | AY152: 60 | AZ152: 47 | BA152: 863 | BB152: 3605 | BD152: 39 | BE152: 1369 | BF152: 3529 | BG152: 0 | BH152: 1445 | BI152: 2216 | BJ152: 239 | BK152: 130486000000 | BL152: 46511.77712 | BM152: 0.03132129007 | BN152: 0.1333052926 | BO152: 4.9
A153: 2012 | B153: 150 | C153: Vermont | D153: 620224 | E153: 821 | F153: 532237 | G153: 5326 | H153: 61242 | I153: 5294 | J153: 24431 | K153: 16 | L153: 93 | M153: 127 | N153: 0 | O153: 1112 | P153: 382 | Q153: 1626 | R153: 0 | S153: 116 | T153: 966 | U153: 56 | V153: 6 | W153: 0 | X153: 230 | Y153: 68 | Z153: 30 | AA153: 0 | AB153: 1243 | AC153: 73 | AD153: 883 | AE153: 862 | AF153: 3318 | AG153: 284 | AH153: 315 | AI153: 0 | AJ153: 23 | AK153: 147 | AL153: 0 | AM153: 17 | AN153: 2893 | AO153: 833 | AP153: 74 | AQ153: 4780 | AR153: 328 | AS153: 0 | AT153: 214 | AU153: 11 | AV153: 26 | AW153: 935 | AX153: 341 | AY153: 124 | AZ153: 39 | BA153: 193 | BB153: 493 | BC153: 81 | BE153: 728 | BF153: 98 | BG153: 0 | BH153: 151 | BI153: 96 | BJ153: 0 | BK153: 27296000000 | BL153: 44009.9061 | BM153: 0.03939060726 | BN153: 0.09874174492 | BO153: 4.6
A154: 2012 | B154: 151 | C154: Virginia | D154: 8085389 | E154: 4754 | F154: 6857430 | G154: 25550 | H154: 915242 | I154: 24032 | J154: 250653 | K154: 2515 | L154: 1906 | M154: 2420 | N154: 445 | O154: 14780 | P154: 5352 | Q154: 2725 | R154: 2279 | S154: 10964 | T154: 19574 | U154: 9535 | V154: 3823 | W154: 652 | X154: 7089 | Y154: 2663 | Z154: 221 | AA154: 1144 | AB154: 3908 | AC154: 1638 | AD154: 1144 | AE154: 23925 | AF154: 3767 | AG154: 2982 | AH154: 2294 | AI154: 1344 | AJ154: 1914 | AK154: 658 | AL154: 357 | AM154: 973 | AN154: 535 | AO154: 9073 | AP154: 947 | AQ154: 15893 | AR154: 25575 | AS154: 852 | AT154: 5622 | AU154: 2810 | AV154: 1541 | AW154: 14190 | AX154: 1605 | AY154: 7936 | AZ154: 35 | BA154: 6189 | BB154: 12944 | BC154: 2092 | BD154: 423 | BF154: 4160 | BG154: 3839 | BH154: 1258 | BI154: 143 | BJ154: 516 | BK154: 445876000000 | BL154: 55145.89341 | BM154: 0.03100073478 | BN154: 0.1131970274 | BO154: 5.7
A155: 2012 | B155: 152 | C155: Washington | D155: 6815763 | E155: 3864 | F155: 5648199 | G155: 25225 | H155: 904695 | I155: 24285 | J155: 215494 | K155: 1507 | L155: 4328 | M155: 8362 | N155: 1413 | O155: 45597 | P155: 5195 | Q155: 2901 | R155: 100 | S155: 773 | T155: 9370 | U155: 6363 | V155: 5239 | W155: 10604 | X155: 4298 | Y155: 1089 | Z155: 1159 | AA155: 2544 | AB155: 1368 | AC155: 1646 | AD155: 532 | AE155: 1191 | AF155: 2911 | AG155: 3470 | AH155: 2703 | AI155: 615 | AJ155: 2802 | AK155: 2919 | AL155: 682 | AM155: 5671 | AN155: 309 | AO155: 2300 | AP155: 872 | AQ155: 5562 | AR155: 4088 | AS155: 217 | AT155: 3192 | AU155: 1223 | AV155: 25525 | AW155: 3397 | AX155: 97 | AY155: 2727 | AZ155: 94 | BA155: 3206 | BB155: 14196 | BC155: 5298 | BD155: 223 | BE155: 3839 | BG155: 215 | BH155: 1168 | BI155: 394 | BJ155: 1025 | BK155: 375730000000 | BL155: 55126.62339 | BM155: 0.03161700311 | BN155: 0.1327356893 | BO155: 7.4
A156: 2012 | B156: 153 | C156: West Virginia | D156: 1837518 | E156: 2090 | F156: 1613322 | G156: 11785 | H156: 174112 | I156: 11396 | J156: 47125 | K156: 477 | L156: 306 | M156: 79 | N156: 0 | O156: 1231 | P156: 104 | Q156: 143 | R156: 674 | S156: 294 | T156: 1919 | U156: 1108 | V156: 166 | W156: 181 | X156: 220 | Y156: 328 | Z156: 68 | AA156: 39 | AB156: 2249 | AC156: 90 | AD156: 35 | AE156: 5352 | AF156: 164 | AG156: 778 | AH156: 20 | AI156: 0 | AJ156: 59 | AK156: 0 | AL156: 0 | AM156: 229 | AN156: 129 | AO156: 1213 | AP156: 81 | AQ156: 1721 | AR156: 4683 | AS156: 175 | AT156: 6757 | AU156: 520 | AV156: 118 | AW156: 5208 | AX156: 0 | AY156: 1098 | AZ156: 36 | BA156: 1061 | BB156: 622 | BC156: 0 | BD156: 54 | BE156: 6317 | BF156: 297 | BH156: 470 | BI156: 252 | BJ156: 79 | BK156: 69380000000 | BL156: 37757.45326 | BM156: 0.02564600728 | BN156: 0.09475390173 | BO156: 7.1
A157: 2012 | B157: 154 | C157: Wisconsin | D157: 5660677 | E157: 3351 | F157: 4849945 | G157: 15530 | H157: 693737 | I157: 15440 | J157: 99192 | K157: 323 | L157: 236 | M157: 3257 | N157: 253 | O157: 5347 | P157: 1600 | Q157: 657 | R157: 296 | S157: 15 | T157: 4937 | U157: 970 | V157: 333 | W157: 360 | X157: 22285 | Y157: 2480 | Z157: 4161 | AA157: 1160 | AB157: 635 | AC157: 598 | AD157: 233 | AE157: 1306 | AF157: 489 | AG157: 3917 | AH157: 18965 | AI157: 238 | AJ157: 1263 | AK157: 784 | AL157: 324 | AM157: 1163 | AN157: 3 | AO157: 606 | AP157: 526 | AQ157: 2033 | AR157: 2939 | AS157: 284 | AT157: 2610 | AU157: 289 | AV157: 945 | AW157: 1563 | AX157: 144 | AY157: 1053 | AZ157: 329 | BA157: 1051 | BB157: 2765 | BC157: 900 | BD157: 62 | BE157: 1267 | BF157: 1208 | BG157: 0 | BI157: 30 | BJ157: 975 | BK157: 261548000000 | BL157: 46204.36743 | BM157: 0.01752299239 | BN157: 0.1225537157 | BO157: 6.9
A158: 2012 | B158: 155 | C158: Wyoming | D158: 569734 | E158: 1083 | F158: 459226 | G158: 7512 | H158: 77324 | I158: 6960 | J158: 31149 | K158: 260 | L158: 590 | M158: 2014 | N158: 244 | O158: 2035 | P158: 5599 | Q158: 0 | R158: 0 | S158: 0 | T158: 733 | U158: 166 | V158: 0 | W158: 745 | X158: 905 | Y158: 179 | Z158: 259 | AA158: 539 | AB158: 4 | AC158: 88 | AD158: 0 | AE158: 294 | AF158: 548 | AG158: 965 | AH158: 290 | AI158: 136 | AJ158: 244 | AK158: 1901 | AL158: 1216 | AM158: 355 | AN158: 0 | AO158: 121 | AP158: 604 | AQ158: 231 | AR158: 459 | AS158: 338 | AT158: 819 | AU158: 964 | AV158: 893 | AW158: 230 | AX158: 0 | AY158: 122 | AZ158: 1175 | BA158: 4 | BB158: 1427 | BC158: 1710 | BD158: 0 | BE158: 138 | BF158: 1323 | BG158: 0 | BH158: 282 | BJ158: 16 | BK158: 38422000000 | BL158: 67438.48884 | BM158: 0.05467288243 | BN158: 0.1357194761 | BO158: 5
A159: 2012 | B159: 156 | C159: Puerto Rico | D159: 3628402 | E159: 2934 | F159: 3366593 | G159: 12125 | H159: 238042 | I159: 11523 | J159: 20044 | K159: 8 | L159: 57 | M159: 54 | N159: 93 | O159: 519 | P159: 0 | Q159: 370 | R159: 0 | S159: 0 | T159: 4192 | U159: 232 | V159: 110 | W159: 0 | X159: 1021 | Y159: 121 | Z159: 0 | AA159: 143 | AB159: 37 | AC159: 59 | AD159: 0 | AE159: 108 | AF159: 2258 | AG159: 435 | AH159: 0 | AI159: 0 | AJ159: 0 | AK159: 0 | AL159: 0 | AM159: 0 | AN159: 0 | AO159: 1922 | AP159: 28 | AQ159: 2314 | AR159: 638 | AS159: 0 | AT159: 328 | AU159: 0 | AV159: 0 | AW159: 2313 | AX159: 624 | AY159: 4 | AZ159: 0 | BA159: 15 | BB159: 360 | BC159: 0 | BD159: 0 | BE159: 684 | BF159: 0 | BG159: 8 | BH159: 989 | BI159: 0 | BK159: 97147000000 | BL159: 26774.04543 | BM159: 0.005524194949 | BN159: 0.06560518928 | BO159: 15.2
A160: 2010 | B160: 157 | C160: United States | D160: 305628607 | E160: 29823 | F160: 258552348 | G160: 236128 | H160: 38582885 | I160: 213239 | J160: 6743229 | K160: 99221 | L160: 94692 | M160: 176768 | N160: 64264 | O160: 573988 | P160: 140620 | Q160: 89360 | R160: 30055 | S160: 56052 | T160: 427853 | U160: 244992 | V160: 49218 | W160: 53122 | X160: 277579 | Y160: 130170 | Z160: 66922 | AA160: 90681 | AB160: 92999 | AC160: 88131 | AD160: 32209 | AE160: 159866 | AF160: 144152 | AG160: 178207 | AH160: 104765 | AI160: 68363 | AJ160: 148055 | AK160: 35870 | AL160: 43531 | AM160: 109409 | AN160: 38399 | AO160: 193972 | AP160: 50438 | AQ160: 363139 | AR160: 207025 | AS160: 24450 | AT160: 188013 | AU160: 90616 | AV160: 100185 | AW160: 209810 | AX160: 24948 | AY160: 117569 | AZ160: 27915 | BA160: 143135 | BB160: 411641 | BC160: 75541 | BD160: 18380 | BE160: 232002 | BF160: 166162 | BG160: 49349 | BH160: 111240 | BI160: 28186 | BJ160: 59885 | BK160: 14388813000000 | BL160: 47079.4051 | BM160: 0.02206347458 | BN160: 0.1262410786 | BO160: 9.4
A161: 2011 | B161: 158 | C161: United States | D161: 307900319 | E161: 29996 | F161: 261087925 | G161: 263315 | H161: 37998701 | I161: 233440 | J161: 6987416 | K161: 106806 | L161: 88850 | M161: 211816 | N161: 77226 | O161: 562343 | P161: 160623 | Q161: 91295 | R161: 26631 | S161: 49732 | T161: 437202 | U161: 248892 | V161: 61940 | W161: 57831 | X161: 269008 | Y161: 143228 | Z161: 74516 | AA161: 94180 | AB161: 99256 | AC161: 86593 | AD161: 33729 | AE161: 165041 | AF161: 145869 | AG161: 186505 | AH161: 103253 | AI161: 68597 | AJ161: 138404 | AK161: 31204 | AL161: 52809 | AM161: 115943 | AN161: 43277 | AO161: 216369 | AP161: 61431 | AQ161: 377800 | AR161: 225147 | AS161: 26563 | AT161: 206049 | AU161: 81009 | AV161: 109795 | AW161: 215127 | AX161: 31065 | AY161: 121426 | AZ161: 29383 | BA161: 154243 | BB161: 404839 | BC161: 73211 | BD161: 18172 | BE161: 229227 | BF161: 190644 | BG161: 45956 | BH161: 105370 | BI161: 31991 | BJ161: 76218 | BK161: 14959778000000 | BL161: 48586.43229 | BM161: 0.02269376018 | BN161: 0.123412347 | BO161: 8.5
A162: 2012 | B162: 159 | C162: United States | D162: 310212755 | E162: 25814 | F162: 263612596 | G162: 229733 | H162: 37696597 | I162: 211307 | J162: 7070345 | K162: 109210 | L162: 84068 | M162: 206842 | N162: 64967 | O162: 566986 | P162: 161530 | Q162: 87023 | R162: 25149 | S162: 59513 | T162: 428325 | U162: 252262 | V162: 61509 | W162: 55191 | X162: 277953 | Y162: 144597 | Z162: 73325 | AA162: 93134 | AB162: 103004 | AC162: 95956 | AD162: 38574 | AE162: 157664 | AF162: 158156 | AG162: 175733 | AH162: 115946 | AI162: 66947 | AJ162: 142754 | AK162: 33832 | AL162: 48816 | AM162: 98882 | AN162: 38696 | AO162: 219202 | AP162: 63921 | AQ162: 405864 | AR162: 238663 | AS162: 23959 | AT162: 199202 | AU162: 102572 | AV162: 108182 | AW162: 237156 | AX162: 30498 | AY162: 127418 | AZ162: 22534 | BA162: 163843 | BB162: 402187 | BC162: 82165 | BD162: 20056 | BE162: 238540 | BF162: 180462 | BG162: 47425 | BH162: 97724 | BI162: 32228 | BJ162: 74500 | BK162: 15566077000000 | BL162: 50178.71364 | BM162: 0.02279192227 | BN162: 0.1215185269 | BO162: 7.9

Sheet Raw_Data-2
A1: Average Mean Temperature Index by month - Climatology by state based on climate division data: 1971-2000
A2: http://www.esrl.noaa.gov/psd/data/usclimate/tmp.state.19712000.climo
A3: State | B3: Jan | C3: Feb | D3: Mar | E3: Apr | F3: May | G3: Jun | H3: Jul | I3: Aug | J3: Sep | K3: Oct | L3: Nov | M3: Dec Ave | N3: Average | O3: Deg C | P3: Notes
A4: Alabama | B4: 44.29 | C4: 48.04 | D4: 55.47 | E4: 61.99 | F4: 69.89 | G4: 76.75 | H4: 79.87 | I4: 79.04 | J4: 73.88 | K4: 63.08 | L4: 54.1 | M4: 46.85 | N4: 62.77083333 | O4: 17.09490741
A5: Alaska | B5: 15.2 | C5: 19.1 | D5: 25.1 | E5: 36.1 | F5: 47 | G5: 54.8 | H5: 58.45 | I5: 56.45 | J5: 48.3 | K5: 34.65 | L5: 22.05 | M5: 16.6 | N5: 36.15 | O5: 2.305555556 | P5: http://gonw.about.com/library/climate/blanchorageclimate.htm
A6: Arizona | B6: 42.27 | C6: 46.24 | D6: 51.03 | E6: 57.63 | F6: 66.01 | G6: 75.51 | H6: 80.19 | I6: 78.5 | J6: 72.52 | K6: 61.61 | L6: 49.64 | M6: 42.51 | N6: 60.305 | O6: 15.725
A7: Arkansas | B7: 38.48 | C7: 43.76 | D7: 51.96 | E7: 60.36 | F7: 68.62 | G7: 76.4 | H7: 80.57 | I7: 79.26 | J7: 72.26 | K7: 61.47 | L7: 50.32 | M7: 41.59 | N7: 60.42083333 | O7: 15.78935185
A8: California | B8: 45.14 | C8: 48.51 | D8: 51.76 | E8: 56.5 | F8: 63.11 | G8: 70.18 | H8: 75.32 | I8: 74.62 | J8: 69.97 | K8: 61.56 | L8: 51.17 | M8: 44.98 | N8: 59.40166667 | O8: 15.22314815
A9: Colorado | B9: 23.71 | C9: 28.34 | D9: 35.57 | E9: 43.06 | F9: 52.5 | G9: 62.15 | H9: 67.6 | I9: 65.75 | J9: 57.72 | K9: 46.64 | L9: 33.51 | M9: 25.2 | N9: 45.14583333 | O9: 7.303240741
A10: Connecticut | B10: 25.96 | C10: 28.43 | D10: 36.94 | E10: 47.07 | F10: 57.77 | G10: 66.29 | H10: 71.52 | I10: 69.77 | J10: 61.68 | K10: 50.6 | L10: 41.43 | M10: 31.13 | N10: 49.04916667 | O10: 9.471759259
A11: Delaware | B11: 33.95 | C11: 35.93 | D11: 44.04 | E11: 53.02 | F11: 62.8 | G11: 71.59 | H11: 76.45 | I11: 74.7 | J11: 68.08 | K11: 56.95 | L11: 47.33 | M11: 38.44 | N11: 55.27333333 | O11: 12.92962963
A12: District of Columbia | B12: 32.24 | C12: 34.87 | D12: 43.26 | E12: 52.69 | F12: 62.35 | G12: 70.8 | H12: 75.44 | I12: 73.77 | J12: 67.01 | K12: 55.7 | L12: 45.72 | M12: 36.76 | N12: 54.2175 | O12: 12.34305556 | P12: Used MD data
A13: Florida | B13: 58.09 | C13: 59.99 | D13: 64.9 | E13: 69.29 | F13: 75.36 | G13: 79.98 | H13: 81.6 | I13: 81.44 | J13: 79.42 | K13: 72.66 | L13: 66.01 | M13: 59.99 | N13: 70.7275 | O13: 21.51527778
A14: Georgia | B14: 45.77 | C14: 49.22 | D14: 56.29 | E14: 62.73 | F14: 70.38 | G14: 76.96 | H14: 80.08 | I14: 78.99 | J14: 74.09 | K14: 64 | L14: 55.57 | M14: 48.06 | N14: 63.51166667 | O14: 17.50648148
A15: Hawaii | B15: 72.9 | C15: 73 | D15: 74.4 | E15: 75.8 | F15: 77.5 | G15: 79.4 | H15: 80.5 | I15: 81.4 | J15: 81 | K15: 79.6 | L15: 77.2 | M15: 74.1 | N15: 77.23333333 | O15: 25.12962963 | P15: http://www.climate-zone.com/climate/united-states/hawaii/honolulu/
A16: Idaho | B16: 23.6 | C16: 28.36 | D16: 35.87 | E16: 43.49 | F16: 51.56 | G16: 59.35 | H16: 66.24 | I16: 65.37 | J16: 56.16 | K16: 45.51 | L16: 32.81 | M16: 24.32 | N16: 44.38666667 | O16: 6.881481481
A17: Illinois | B17: 24.58 | C17: 30.06 | D17: 40.72 | E17: 51.68 | F17: 62.36 | G17: 71.55 | H17: 75.43 | I17: 73.22 | J17: 65.79 | K17: 54.2 | L17: 41.51 | M17: 29.75 | N17: 51.7375 | O17: 10.96527778
A18: Indiana | B18: 26.03 | C18: 30.55 | D18: 40.76 | E18: 51.11 | F18: 61.5 | G18: 70.57 | H18: 74.37 | I18: 72.31 | J18: 65.23 | K18: 53.68 | L18: 42.36 | M18: 31.17 | N18: 51.63666667 | O18: 10.90925926
A19: Iowa | B19: 17.84 | C19: 24.15 | D19: 35.98 | E19: 48.53 | F19: 60.23 | G19: 69.74 | H19: 73.76 | I19: 71.33 | J19: 62.92 | K19: 50.95 | L19: 35.61 | M19: 22.62 | N19: 47.805 | O19: 8.780555556
A20: Kansas | B20: 28.77 | C20: 34.54 | D20: 43.82 | E20: 53.59 | F20: 63.28 | G20: 73.4 | H20: 78.79 | I20: 76.91 | J20: 67.99 | K20: 56.22 | L20: 41.81 | M20: 31.93 | N20: 54.25416667 | O20: 12.36342593
A21: Kentucky | B21: 32.93 | C21: 37.23 | D21: 46.21 | E21: 55.15 | F21: 63.96 | G21: 72.28 | H21: 76.31 | I21: 74.78 | J21: 68.06 | K21: 56.64 | L21: 46.37 | M21: 37.18 | N21: 55.59166667 | O21: 13.10648148
A22: Louisiana | B22: 48.71 | C22: 52.63 | D22: 59.49 | E22: 65.99 | F22: 73.56 | G22: 79.62 | H22: 82.08 | I22: 81.61 | J22: 76.91 | K22: 67.03 | L22: 58.16 | M22: 50.95 | N22: 66.395 | O22: 19.10833333
A23: Maine | B23: 13.58 | C23: 16.68 | D23: 27.02 | E23: 39.1 | F23: 51.26 | G23: 60.79 | H23: 66.08 | I23: 64.19 | J23: 55.13 | K23: 43.99 | L23: 33.48 | M23: 20.36 | N23: 40.97166667 | O23: 4.984259259
A24: Maryland | B24: 32.24 | C24: 34.87 | D24: 43.26 | E24: 52.69 | F24: 62.35 | G24: 70.8 | H24: 75.44 | I24: 73.77 | J24: 67.01 | K24: 55.7 | L24: 45.72 | M24: 36.76 | N24: 54.2175 | O24: 12.34305556
A25: Massachusetts | B25: 24.87 | C25: 27.21 | D25: 35.51 | E25: 45.43 | F25: 56.16 | G25: 64.95 | H25: 70.37 | I25: 68.63 | J25: 60.54 | K25: 49.69 | L25: 40.71 | M25: 30.24 | N25: 47.85916667 | O25: 8.810648148
A26: Michigan | B26: 18.87 | C26: 21.37 | D26: 30.73 | E26: 42.57 | F26: 54.48 | G26: 63.56 | H26: 68.32 | I26: 66.52 | J26: 58.61 | K26: 47.58 | L26: 35.72 | M26: 24.57 | N26: 44.40833333 | O26: 6.893518519
A27: Minnesota | B27: 7.94 | C27: 15.27 | D27: 27.55 | E27: 42.45 | F27: 55.75 | G27: 64.67 | H27: 69.08 | I27: 66.82 | J27: 57.15 | K27: 45.19 | L27: 28.27 | M27: 13.77 | N27: 41.15916667 | O27: 5.088425926
A28: Mississippi | B28: 44.21 | C28: 48.46 | D28: 55.94 | E28: 62.9 | F28: 70.86 | G28: 77.73 | H28: 80.73 | I28: 79.86 | J28: 74.47 | K28: 63.7 | L28: 54.4 | M28: 46.9 | N28: 63.34666667 | O28: 17.41481481
A29: Missouri | B29: 28.83 | C29: 34.58 | D29: 44.5 | E29: 54.7 | F29: 63.93 | G29: 72.74 | H29: 77.54 | I29: 75.72 | J29: 67.55 | K29: 56.33 | L29: 43.98 | M29: 33.01 | N29: 54.45083333 | O29: 12.47268519
A30: Montana | B30: 18.37 | C30: 24.44 | D30: 32.86 | E30: 42.53 | F30: 52.18 | G30: 60.58 | H30: 66.43 | I30: 65.64 | J30: 55.09 | K30: 44.26 | L30: 29.67 | M30: 20.86 | N30: 42.7425 | O30: 5.968055556
A31: Nebraska | B31: 22.73 | C31: 28.54 | D31: 37.59 | E31: 48.14 | F31: 58.73 | G31: 68.87 | H31: 74.26 | I31: 72.2 | J31: 62.64 | K31: 50.49 | L31: 35.38 | M31: 25.64 | N31: 48.7675 | O31: 9.315277778
A32: Nevada | B32: 30.43 | C32: 35.46 | D32: 41.18 | E32: 47.26 | F32: 55.66 | G32: 64.88 | H32: 71.94 | I32: 70.21 | J32: 61.61 | K32: 50.55 | L32: 38.41 | M32: 30.9 | N32: 49.87416667 | O32: 9.930092593
A33: New Hampshire | B33: 18.17 | C33: 21.06 | D33: 30.79 | E33: 42.15 | F33: 54.1 | G33: 62.98 | H33: 67.83 | I33: 65.67 | J33: 57.05 | K33: 45.9 | L33: 35.85 | M33: 24.12 | N33: 43.80583333 | O33: 6.558796296
A34: New Jersey | B34: 30.62 | C34: 32.9 | D34: 40.99 | E34: 50.44 | F34: 60.49 | G34: 69.3 | H34: 74.47 | I34: 72.68 | J34: 65.48 | K34: 54.13 | L34: 44.91 | M34: 35.38 | N34: 52.64916667 | O34: 11.47175926
A35: New Mexico | B35: 34.39 | C35: 38.92 | D35: 44.87 | E35: 51.79 | F35: 60.66 | G35: 69.68 | H35: 73.21 | I35: 71.3 | J35: 64.76 | K35: 54.31 | L35: 42.44 | M35: 34.94 | N35: 53.43916667 | O35: 11.91064815
A36: New York | B36: 20.65 | C36: 22.72 | D36: 31.93 | E36: 43.51 | F36: 55.33 | G36: 63.95 | H36: 68.66 | I36: 66.75 | J36: 58.85 | K36: 47.76 | L36: 37.59 | M36: 26.48 | N36: 45.34833333 | O36: 7.415740741
A37: North Carolina | B37: 39.97 | C37: 42.95 | D37: 50.3 | E37: 58.26 | F37: 66.14 | G37: 73.5 | H37: 77.49 | I37: 75.96 | J37: 70.24 | K37: 59.47 | L37: 50.88 | M37: 42.91 | N37: 59.00583333 | O37: 15.00324074
A38: North Dakota | B38: 7.9 | C38: 15.4 | D38: 26.87 | E38: 41.71 | F38: 54.8 | G38: 63.73 | H38: 68.7 | I38: 67.23 | J38: 56.14 | K38: 43.62 | L38: 26.08 | M38: 13.02 | N38: 40.43333333 | O38: 4.685185185
A39: Ohio | B39: 26.5 | C39: 29.92 | D39: 39.55 | E39: 49.67 | F39: 59.99 | G39: 68.79 | H39: 72.78 | I39: 70.92 | J39: 63.99 | K39: 52.54 | L39: 41.9 | M39: 31.61 | N39: 50.68 | O39: 10.37777778
A40: Oklahoma | B40: 36.11 | C40: 41.71 | D40: 50.21 | E40: 59.07 | F40: 67.85 | G40: 76.53 | H40: 81.62 | I40: 80.45 | J40: 72.37 | K40: 61.3 | L40: 48.28 | M40: 38.96 | N40: 59.53833333 | O40: 15.29907407
A41: Oregon | B41: 32.63 | C41: 36.68 | D41: 41.47 | E41: 46.35 | F41: 52.95 | G41: 59.66 | H41: 66.03 | I41: 65.55 | J41: 58.56 | K41: 49.24 | L41: 38.96 | M41: 32.78 | N41: 48.405 | O41: 9.113888889
A42: Pennsylvania | B42: 25.78 | C42: 28.29 | D42: 37.02 | E42: 47.48 | F42: 57.74 | G42: 66.17 | H42: 70.58 | I42: 68.92 | J42: 61.62 | K42: 50.34 | L42: 40.65 | M42: 30.7 | N42: 48.77416667 | O42: 9.318981481
A43: Rhode Island | B43: 29.1 | C43: 30.8 | D43: 37.91 | E43: 46.71 | F43: 56.5 | G43: 65.27 | H43: 71.09 | I43: 70.04 | J43: 62.81 | K43: 52.56 | L43: 43.83 | M43: 34.21 | N43: 50.06916667 | O43: 10.03842593
A44: South Carolina | B44: 44.12 | C44: 47.35 | D44: 54.54 | E44: 61.8 | F44: 69.59 | G44: 76.45 | H44: 80.08 | I44: 78.58 | J44: 73.19 | K44: 62.7 | L44: 54.2 | M44: 46.45 | N44: 62.42083333 | O44: 16.90046296
A45: South Dakota | B45: 16.11 | C45: 22.53 | D45: 32.6 | E45: 45.02 | F45: 56.79 | G45: 66.47 | H45: 72.47 | I45: 70.75 | J45: 60.35 | K45: 47.57 | L45: 31.15 | M45: 19.84 | N45: 45.1375 | O45: 7.298611111
A46: Tennessee | B46: 36.32 | C46: 40.58 | D46: 49.02 | E46: 57.23 | F46: 65.53 | G46: 73.44 | H46: 77.29 | I46: 75.87 | J46: 69.45 | K46: 58.1 | L46: 48.29 | M46: 39.76 | N46: 57.57333333 | O46: 14.20740741
A47: Texas | B47: 45.63 | C47: 50.28 | D47: 57.71 | E47: 64.84 | F47: 72.61 | G47: 79.34 | H47: 82.3 | I47: 81.41 | J47: 75.47 | K47: 66.01 | L47: 55.11 | M47: 47.28 | N47: 64.8325 | O47: 18.24027778
A48: Utah | B48: 25.93 | C48: 31.48 | D48: 39.67 | E48: 46.89 | F48: 55.93 | G48: 65.68 | H48: 72.51 | I48: 70.67 | J48: 61.53 | K48: 49.61 | L48: 36.38 | M48: 27.34 | N48: 48.635 | O48: 9.241666667
A49: Vermont | B49: 16.41 | C49: 18.87 | D49: 29.1 | E49: 41.4 | F49: 54.04 | G49: 62.69 | H49: 67.38 | I49: 65.12 | J49: 56.56 | K49: 45.31 | L49: 34.97 | M49: 22.71 | N49: 42.88 | O49: 6.044444444
A50: Virginia | B50: 34.48 | C50: 37.55 | D50: 45.4 | E50: 54.3 | F50: 62.74 | G50: 70.81 | H50: 75.1 | I50: 73.5 | J50: 67.04 | K50: 55.76 | L50: 46.61 | M50: 38.09 | N50: 55.115 | O50: 12.84166667
A51: Washington | B51: 31.47 | C51: 35.75 | D51: 41.51 | E51: 47.4 | F51: 54.15 | G51: 60.09 | H51: 65.73 | I51: 65.81 | J51: 58.76 | K51: 48.5 | L51: 38.27 | M51: 31.74 | N51: 48.265 | O51: 9.036111111
A52: West Virginia | B52: 30.21 | C52: 33.36 | D52: 41.82 | E52: 50.92 | F52: 59.85 | G52: 67.83 | H52: 71.95 | I52: 70.55 | J52: 63.92 | K52: 52.7 | L52: 43.13 | M52: 34.36 | N52: 51.71666667 | O52: 10.9537037
A53: Wisconsin | B53: 13.18 | C53: 18.97 | D53: 30.09 | E53: 43.17 | F53: 55.46 | G53: 64.47 | H53: 69.11 | I53: 66.86 | J53: 58.11 | K53: 46.63 | L53: 32.35 | M53: 18.98 | N53: 43.115 | O53: 6.175
A54: Wyoming | B54: 19.18 | C54: 23.72 | D54: 32.06 | E54: 40.42 | F54: 50.01 | G54: 59.62 | H54: 66.25 | I54: 64.71 | J54: 54.64 | K54: 43.39 | L54: 29.18 | M54: 20.64 | N54: 41.985 | O54: 5.547222222
A55: Puerto Rico | B55: 76.5 | C55: 77 | D55: 78 | E55: 79.5 | F55: 80.5 | G55: 82.5 | H55: 82 | I55: 82.5 | J55: 82.5 | K55: 81.5 | L55: 80 | M55: 78 | N55: 80.04166667 | O55: 26.68981481 | P55: http://www.topuertorico.org/reference/tempera.shtml

Sheet Help
A3: 0 | B3: General Notes
B4: Map - Contains the map
B5: Model - Contains the controls to customize the map and dashboard
B6: Map_Data - Enter map data here
B7: Sample_Palette - Contains the color schemes available to use with the map
B8: Raw_Data-1/2 - contains raw data
B9: See the 'Data' worksheet for help on entering data for visualization.
B11: Below are detailed directions for using the 'Model' worksheet
A14: 1 | B14: Data selection
B15: This control is a copy of the control on the 'Map' worksheet. Any changes made with this control
C16: will be reflected on the 'Map' worksheet dropdown control as well. Use this to select
C17: the dataset to analyze using the histogram and min-max-median plot.
B18: Use the 'Autoscale' option to automatically use min/max from data to set the classes. If 'Autoscale'
C19: is used, the correct number of levels and color scheme must be selected first (see
C20: section 3 and 6 below.
A26: 2 | B26: Map Data Summary
B27: No user intervention is needed. These cells show values that characterize the dataset.
B28: This data also serves as the source for the min-max-median plot.
A36: 3 | B36: Scale Options' Section
B37: Use this section to set the scale for the map, i.e. define the levels.
B38: Select the number of levels and how the Min/Max will be obtained.
B39: Either allow min/max to be picked from the data or select the option to enter the min and max manually.
B40: Once minimum and maximum has been set click 'Set Scale'.
B41: This will automatically create the Levels/Classes and calculate the Necessary start and end values.
B42: The 'Class Name and Freq' table simply identifies how many values in the dataset will fall into
C43: each class. The table resizes based on the number of levels selected.
A56: 4 | B56: Palette Section
B57: Color scheme for the map can be selected in this section
C58: Select the color scheme and click 'Set Colors'.
B59: In the current version of this workbook 3 sequential color schemes
C60: with a maximum of 9 levels each are available.
B61: Click the 'View' button on the 'Map' sheet to refresh the chart with the selected colors.
A72: 5 | B72: Color Table Section
B73: Use this section to set colors for the map. The 'Class Start' and 'Class End' colums are available
C74: for editing even when the worksheet is locked so classes can be entered manually.
C75: Similarly the 'Color' column can be filled even when the worksheet is locked.
B76: Once the classes have been set (see Section 3 above), there are 3 ways to set the colors:
C77: (i) Built in palette (Section 4) (ii) Manually filling the colors in the color column
C78: (iii) Manually entering/copying-pasting RGB values in the RGB columns.
B79: If the 'Color' column has been manually filled, use the 'Get RGB' button to get the RGB
C80: values for the filled cells.
B81: Otherwise copy/paste or manually enter desired RGB values if you have very specific
C82: requirements. After this the 'Set RGB' button can be used to fill the 'Color' column
C83: according to these values. Entries into the Red/Green/Blue columns have been
C84: limited to whole numbers between 0 and 256.
B85: In this version a maximum of 9 levels can be set for the data/colors.
A102: 5 | B102: Data Charts Section
B103: No user input is required in this section. The histogram provides a chart version of
C104: the frequency table indicating how many values from the dataset fall into each class.
C105: This chart is present to enable selection of a scale that will distribute the data appropriately.
B106: The 'Min - Median - Max ' plot shows these value to give an idea of the data distribution.
A120: 7 | B120: Selected Data Section
B121: No user input is required in this section. This table is used by the
C122: bar chart on the 'Map' worksheet. Most cells are locked to protect formulas.
C123: Some cells remain unlocked when the worksheet is protected and are
C124: populated by a macro.
